﻿Department Family,Entity,Date,Expense Type,Expense Area,Supplier,Transaction Number,Amount,Item Description
BEIS,UKRI - AHRC,02/11/2020,Unspecified,Public Engagement,Unspecified,98842175,3600.00,Legal & Professional Services
BEIS,UKRI - AHRC,03/11/2020,Recruitment Costs,Operations,Agenda Resource Management Ltd,98841991,153.91,Recruitment Costs
BEIS,UKRI - AHRC,03/11/2020,T&S UK - Other Charges,Digital Arts and Humanities and Creative Industries,Unspecified,98843533,217.47,T&S UK - Other Charges
BEIS,UKRI - AHRC,03/11/2020,T&S UK - Other Charges,Operations,Unspecified,98843534,192.00,T&S UK - Other Charges
BEIS,UKRI - AHRC,04/11/2020,T&S UK - Other Charges,Digital Arts and Humanities and Creative Industries,Unspecified,98844009,209.98,T&S UK - Other Charges
BEIS,UKRI - AHRC,04/11/2020,T&S UK - Other Charges,Digital Arts and Humanities and Creative Industries,Unspecified,98844010,107.99,T&S UK - Other Charges
BEIS,UKRI - AHRC,05/11/2020,Hospitality,SMT,Centerplate UK Ltd,98843066,405.00,Hospitality
BEIS,UKRI - AHRC,05/11/2020,T&S UK - Other Charges,"History, Heritage, Languages and Literature",Unspecified,98844256,9.99,T&S UK - Other Charges
BEIS,UKRI - AHRC,06/11/2020,T&S UK - Other Charges,Digital Arts and Humanities and Creative Industries,Unspecified,98844563,49.99,T&S UK - Other Charges
BEIS,UKRI - AHRC,09/11/2020,Non-staff travel and subsistance,Public Policy Research,Non Employee Expenses Supplier,98844603,190.30,Non-staff travel and subsistance
BEIS,UKRI - AHRC,09/11/2020,Fees (Including College Members),FIC- US,Non Employee Expenses Supplier,98844604,460.00,Fees (Including College Members)
BEIS,UKRI - AHRC,09/11/2020,Fees (Including College Members),New Programme Development,Non Employee Expenses Supplier,98844605,170.00,Fees (Including College Members)
BEIS,UKRI - AHRC,09/11/2020,Fees (Including College Members),New Programme Development,Non Employee Expenses Supplier,98844606,170.00,Fees (Including College Members)
BEIS,UKRI - AHRC,09/11/2020,Fees (Including College Members),New Programme Development,Non Employee Expenses Supplier,98844607,170.00,Fees (Including College Members)
BEIS,UKRI - AHRC,10/11/2020,Recruitment Costs,Operations,Agenda Resource Management Ltd,98844688,153.91,Recruitment Costs
BEIS,UKRI - AHRC,10/11/2020,Recruitment Costs,Operations,Agenda Resource Management Ltd,98844690,153.91,Recruitment Costs
BEIS,UKRI - AHRC,10/11/2020,Financial Services,Corporate Services,CCI Credit Management Ltd,98846037,1.32,Financial Services
BEIS,UKRI - AHRC,11/11/2020,Fees (Including College Members),Modern Slavery and Human Rights (SPF),Non Employee Expenses Supplier,98845562,511.99,Fees (Including College Members)
BEIS,UKRI - AHRC,11/11/2020,Fees (Including College Members),New Programme Development,Non Employee Expenses Supplier,98846793,170.00,Fees (Including College Members)
BEIS,UKRI - AHRC,11/11/2020,Fees (Including College Members),Industrial Strategy Challenge Fund (ISCF) - Creative Clusters,Non Employee Expenses Supplier,98846794,230.00,Fees (Including College Members)
BEIS,UKRI - AHRC,11/11/2020,Fees (Including College Members),New Programme Development,Non Employee Expenses Supplier,98846795,170.00,Fees (Including College Members)
BEIS,UKRI - AHRC,11/11/2020,Fees (Including College Members),New Programme Development,Non Employee Expenses Supplier,98846796,170.00,Fees (Including College Members)
BEIS,UKRI - AHRC,11/11/2020,Fees (Including College Members),Industrial Strategy Challenge Fund (ISCF) - Creative Clusters,Non Employee Expenses Supplier,98846797,230.00,Fees (Including College Members)
BEIS,UKRI - AHRC,11/11/2020,Fees (Including College Members),New Programme Development,Non Employee Expenses Supplier,98846798,170.00,Fees (Including College Members)
BEIS,UKRI - AHRC,11/11/2020,Fees (Including College Members),New Programme Development,Non Employee Expenses Supplier,98846799,230.00,Fees (Including College Members)
BEIS,UKRI - AHRC,11/11/2020,Other Programme Costs,Infrastruture Roadmap,Historic Buildings and Monuments Commission for England T/A Historic England,98848567,12000.00,Other Programme Costs
BEIS,UKRI - AHRC,11/11/2020,Education Fees & Study Materials,Digital Arts and Humanities and Creative Industries,Unspecified,98848581,64.50,Education Fees & Study Materials
BEIS,UKRI - AHRC,11/11/2020,T&S UK - Other Charges,Digital Arts and Humanities and Creative Industries,Unspecified,98848582,214.98,T&S UK - Other Charges
BEIS,UKRI - AHRC,12/11/2020,Unspecified,Balance Sheet,HM Revenue & Customs,98845722,59917.71,NI Payable Salaries
BEIS,UKRI - AHRC,12/11/2020,Unspecified,Balance Sheet,HM Revenue & Customs,98845723,41462.87,PAYE Payable Salaries
BEIS,UKRI - AHRC,12/11/2020,Unspecified,Balance Sheet,HM Revenue & Customs,98845724,4962.00,Student Loans
BEIS,UKRI - AHRC,12/11/2020,Unspecified,Corporate Services,HM Revenue & Customs,98845725,1574.00,Apprenticeship Levy
BEIS,UKRI - AHRC,12/11/2020,Health & Safety (inc. Medicals & Opticians),Corporate Services,Open University,98846658,1440.00,Health & Safety (inc. Medicals & Opticians)
BEIS,UKRI - AHRC,12/11/2020,Conferences & Seminars,SMT,Partnership Media Group T/A GovNet Communications,98847644,354.00,Conferences & Seminars
BEIS,UKRI - AHRC,12/11/2020,T&S Overseas - Flights,SMT,Corporate Travel Management (North) Ltd,98848671,2.50,T&S Overseas - Flights
BEIS,UKRI - AHRC,12/11/2020,T&S Overseas - Flights,SMT,Corporate Travel Management (North) Ltd,98848671,48.61,T&S Overseas - Flights
BEIS,UKRI - AHRC,12/11/2020,T&S UK - Flights,"History, Heritage, Languages and Literature",Corporate Travel Management (North) Ltd,98848671,2.50,T&S UK - Flights
BEIS,UKRI - AHRC,12/11/2020,T&S UK - Flights,"History, Heritage, Languages and Literature",Corporate Travel Management (North) Ltd,98848671,196.98,T&S UK - Flights
BEIS,UKRI - AHRC,12/11/2020,T&S UK - Flights,SMT,Corporate Travel Management (North) Ltd,98848671,2.50,T&S UK - Flights
BEIS,UKRI - AHRC,12/11/2020,T&S UK - Flights,SMT,Corporate Travel Management (North) Ltd,98848671,198.96,T&S UK - Flights
BEIS,UKRI - AHRC,12/11/2020,T&S UK - Other Charges,Operations,Corporate Travel Management (North) Ltd,98848671,2.50,T&S UK - Other Charges
BEIS,UKRI - AHRC,12/11/2020,T&S UK - Other Charges,Operations,Corporate Travel Management (North) Ltd,98848671,54.00,T&S UK - Other Charges
BEIS,UKRI - AHRC,12/11/2020,T&S UK - Other Charges,Operations,Corporate Travel Management (North) Ltd,98848671,0.50,T&S UK - Other Charges
BEIS,UKRI - AHRC,13/11/2020,Voluntary Deductions,Balance Sheet,Chargive,98845730,570.83,Voluntary Deductions
BEIS,UKRI - AHRC,13/11/2020,Union Deductions,Balance Sheet,PCS Union,98845732,67.43,Union Deductions
BEIS,UKRI - AHRC,13/11/2020,Unspecified,Balance Sheet,RCPS Pension,98845733,10095.05,Ees Pension Deductions - JSS
BEIS,UKRI - AHRC,13/11/2020,Unspecified,Balance Sheet,RCPS Pension,98845734,45822.02,Ers Pension Deductions - JSS
BEIS,UKRI - AHRC,13/11/2020,Unspecified,Balance Sheet,Scottish Widows,98845735,376.28,Partnership Pension Deductions
BEIS,UKRI - AHRC,13/11/2020,Unspecified,Balance Sheet,Cabinet Office RM Shared Services,98845736,13.06,Ers Pension Deductions - JSS
BEIS,UKRI - AHRC,13/11/2020,Unspecified,Balance Sheet,Cabinet Office RM Shared Services,98845737,7798.05,Ees Pension Deductions - MyCSP
BEIS,UKRI - AHRC,13/11/2020,Unspecified,Balance Sheet,Cabinet Office RM Shared Services,98845738,39751.87,Ers Pension Deductions - MyCSP
BEIS,UKRI - AHRC,13/11/2020,Ees Pension Deductions - MRC,Balance Sheet,UKRI - Medical Research Council,98845739,136.75,Ees Pension Deductions - MRC
BEIS,UKRI - AHRC,13/11/2020,Ers Pension Deductions - MRC,Balance Sheet,UKRI - Medical Research Council,98845740,315.59,Ers Pension Deductions - MRC
BEIS,UKRI - AHRC,13/11/2020,Nursery Deductions,Balance Sheet,UKRI - Engineering & Physical Sciences Research Council,98845741,560.00,Nursery Deductions
BEIS,UKRI - AHRC,17/11/2020,Recruitment Costs,Operations,Agenda Resource Management Ltd,98847995,153.91,Recruitment Costs
BEIS,UKRI - AHRC,17/11/2020,T&S UK - Other Charges,Public and Stakeholder Engagement,Unspecified,98849893,72.97,T&S UK - Other Charges
BEIS,UKRI - AHRC,18/11/2020,Unspecified,Public Engagement,Giggabox Ltd,98848155,594.00,Legal & Professional Services
BEIS,UKRI - AHRC,18/11/2020,Other Programme Costs,Infrastruture Roadmap,The National Gallery,98850137,15840.00,Other Programme Costs
BEIS,UKRI - AHRC,19/11/2020,Unspecified,SMT,University of Oxford,98848636,26813.60,Secondments
BEIS,UKRI - AHRC,19/11/2020,Fees (Including College Members),Executive Office,Non Employee Expenses Supplier,98851062,500.00,Fees (Including College Members)
BEIS,UKRI - AHRC,19/11/2020,Fees (Including College Members),Executive Office,Non Employee Expenses Supplier,98851063,500.00,Fees (Including College Members)
BEIS,UKRI - AHRC,19/11/2020,Fees (Including College Members),Executive Office,Non Employee Expenses Supplier,98851357,500.00,Fees (Including College Members)
BEIS,UKRI - AHRC,19/11/2020,Fees (Including College Members),Executive Office,Non Employee Expenses Supplier,98851358,500.00,Fees (Including College Members)
BEIS,UKRI - AHRC,19/11/2020,Fees (Including College Members),Executive Office,Non Employee Expenses Supplier,98851359,500.00,Fees (Including College Members)
BEIS,UKRI - AHRC,19/11/2020,Fees (Including College Members),Executive Office,Non Employee Expenses Supplier,98851360,500.00,Fees (Including College Members)
BEIS,UKRI - AHRC,19/11/2020,Fees (Including College Members),Executive Office,Non Employee Expenses Supplier,98851361,500.00,Fees (Including College Members)
BEIS,UKRI - AHRC,19/11/2020,Fees (Including College Members),Executive Office,Non Employee Expenses Supplier,98851362,500.00,Fees (Including College Members)
BEIS,UKRI - AHRC,19/11/2020,Fees (Including College Members),Executive Office,Non Employee Expenses Supplier,98851363,500.00,Fees (Including College Members)
BEIS,UKRI - AHRC,19/11/2020,Fees (Including College Members),Executive Office,Non Employee Expenses Supplier,98851364,500.00,Fees (Including College Members)
BEIS,UKRI - AHRC,19/11/2020,Fees (Including College Members),Executive Office,Non Employee Expenses Supplier,98851365,500.00,Fees (Including College Members)
BEIS,UKRI - AHRC,19/11/2020,Fees (Including College Members),New Programme Development,Non Employee Expenses Supplier,98851366,170.00,Fees (Including College Members)
BEIS,UKRI - AHRC,19/11/2020,Unspecified,Public Engagement,Giggabox Ltd,98851499,4999.80,Legal & Professional Services
BEIS,UKRI - AHRC,20/11/2020,Recruitment Costs,Corporate Services,Warwick University Services Ltd,98850877,250.00,Recruitment Costs
BEIS,UKRI - AHRC,20/11/2020,Hospitality,SMT,Centerplate UK Ltd,98851775,2617.01,Hospitality
BEIS,UKRI - AHRC,23/11/2020,Other Programme Costs,Infrastruture Roadmap,University of York,98851402,1650.00,Other Programme Costs
BEIS,UKRI - AHRC,23/11/2020,Other Programme Costs,Infrastruture Roadmap,University of York,98851402,8350.00,Other Programme Costs
BEIS,UKRI - AHRC,23/11/2020,VAT Input Tax Control (for UK VAT),Balance Sheet,University of York,98851402,1670.00,VAT Input Tax Control (for UK VAT)
BEIS,UKRI - AHRC,23/11/2020,VAT Input Tax Control (for UK VAT),Balance Sheet,University of York,98851402,330.00,VAT Input Tax Control (for UK VAT)
BEIS,UKRI - AHRC,23/11/2020,Other Programme Costs,Infrastruture Roadmap,University of York,98852969,-8350.00,Other Programme Costs
BEIS,UKRI - AHRC,23/11/2020,Other Programme Costs,Infrastruture Roadmap,University of York,98852969,-1650.00,Other Programme Costs
BEIS,UKRI - AHRC,23/11/2020,VAT Input Tax Control (for UK VAT),Balance Sheet,University of York,98852969,-1670.00,VAT Input Tax Control (for UK VAT)
BEIS,UKRI - AHRC,23/11/2020,VAT Input Tax Control (for UK VAT),Balance Sheet,University of York,98852969,-330.00,VAT Input Tax Control (for UK VAT)
BEIS,UKRI - AHRC,24/11/2020,Unspecified,Executive Office,Department for International Trade,98736693,-16124.47,Secondments
BEIS,UKRI - AHRC,24/11/2020,Recruitment Costs,Operations,Onefix Recruitment Ltd,98853348,74.20,Recruitment Costs
BEIS,UKRI - AHRC,24/11/2020,T&S UK - Other Charges,Public Policy Research,Unspecified,98853523,496.96,T&S UK - Other Charges
BEIS,UKRI - AHRC,24/11/2020,Other Programme Costs,Infrastruture Roadmap,University of York,98854285,10020.00,Other Programme Costs
BEIS,UKRI - AHRC,25/11/2020,Voluntary Deductions,Balance Sheet,Swindon Office Sports and Social Club,98845731,32.00,Voluntary Deductions
BEIS,UKRI - AHRC,26/11/2020,Unspecified,Executive Office,Department for International Trade,98669219,67062.53,Secondments
BEIS,UKRI - AHRC,26/11/2020,Unspecified,Executive Office,Department for International Trade,98739093,-67062.53,Secondments
BEIS,UKRI - AHRC,26/11/2020,Fees (Including College Members),Cultural Value EDI,Non Employee Expenses Supplier,98853883,340.00,Fees (Including College Members)
BEIS,UKRI - AHRC,27/11/2020,Staff Training,Executive Office,Open University,98855168,3096.00,Staff Training
BEIS,UKRI - AHRC,27/11/2020,Unspecified,ISCF Creative Clusters,Beyond Conference Ltd,98855214,7468.00,Legal & Professional Services
BEIS,UKRI - AHRC,27/11/2020,VAT Input Tax Control (for UK VAT),Balance Sheet,Beyond Conference Ltd,98855214,1493.60,VAT Input Tax Control (for UK VAT)
BEIS,UKRI - AHRC,27/11/2020,Prepayments - AP USE ONLY,Balance Sheet,Beyond Conference Ltd,98855342,27000.00,Prepayments - AP USE ONLY
BEIS,UKRI - BBSRC,02/11/2020,T&S UK - Other Charges,CIMG - Information Management,Unspecified,98842341,9.08,T&S UK - Other Charges
BEIS,UKRI - BBSRC,03/11/2020,Training Awards - Postgraduates,Innovation and Skills Group,UKRI - Economic & Social Research Council,98841210,68030.50,Training Awards - Postgraduates
BEIS,UKRI - BBSRC,03/11/2020,Recruitment Costs,PDG - Director,Agenda Resource Management Ltd,98841993,153.91,Recruitment Costs
BEIS,UKRI - BBSRC,03/11/2020,Recruitment Costs,PDG - Director,Agenda Resource Management Ltd,98841996,153.91,Recruitment Costs
BEIS,UKRI - BBSRC,03/11/2020,T&S UK - Other Charges,Science Group,Unspecified,98843535,69.99,T&S UK - Other Charges
BEIS,UKRI - BBSRC,03/11/2020,T&S UK - Other Charges,Innovation and Skills Group CDSU,Unspecified,98843536,23.99,T&S UK - Other Charges
BEIS,UKRI - BBSRC,03/11/2020,T&S UK - Other Charges,CIMG - Information Management,Unspecified,98843537,13.57,T&S UK - Other Charges
BEIS,UKRI - BBSRC,03/11/2020,T&S UK - Other Charges,Science Group,Unspecified,98843538,99.99,T&S UK - Other Charges
BEIS,UKRI - BBSRC,04/11/2020,Recruitment Costs,PDG - Director,Warwick University Services Ltd,98842857,546.00,Recruitment Costs
BEIS,UKRI - BBSRC,04/11/2020,T&S UK - Other Charges,Innovation and Skills Group CDSU,Unspecified,98844022,228.68,T&S UK - Other Charges
BEIS,UKRI - BBSRC,04/11/2020,T&S UK - Other Charges,Innovation and Skills Group CDSU,Unspecified,98844023,211.30,T&S UK - Other Charges
BEIS,UKRI - BBSRC,05/11/2020,Health & Safety (inc. Medicals & Opticians),Innovation and Skills Group,Unspecified,98844255,12.99,Health & Safety (inc. Medicals & Opticians)
BEIS,UKRI - BBSRC,06/11/2020,Research Institutes - Capital Grants: Minor Works,Estates - Projects,Anglia Innovation Partnership LLP,98844462,19828.05,Research Institutes - Capital Grants: Minor Works
BEIS,UKRI - BBSRC,06/11/2020,Research Grant Expenditure,Innovation and Skills Group CDSU,Technology Strategy Board (Innovate UK),98844514,88504.32,Research Grant Expenditure
BEIS,UKRI - BBSRC,06/11/2020,Other Programme Costs,Science Group,Unspecified,98844524,2441.25,Other Programme Costs
BEIS,UKRI - BBSRC,06/11/2020,Other Programme Costs,Science Group,Unspecified,98844529,4297.50,Other Programme Costs
BEIS,UKRI - BBSRC,06/11/2020,T&S UK - Other Charges,CIMG - Information Management,Unspecified,98844565,260.91,T&S UK - Other Charges
BEIS,UKRI - BBSRC,06/11/2020,T&S UK - Other Charges,CE - IRU,Unspecified,98844566,60.00,T&S UK - Other Charges
BEIS,UKRI - BBSRC,09/11/2020,Other Programme Costs,Daphne Jackson Trust,Daphne Jackson Trust,98839618,7146.77,Other Programme Costs
BEIS,UKRI - BBSRC,09/11/2020,Unspecified,FG - Estates,Womble Bond Dickinson LLP,98844146,1042.04,Legal & Professional Services
BEIS,UKRI - BBSRC,09/11/2020,Unspecified,FG - Estates,Womble Bond Dickinson LLP,98844147,219.41,Legal & Professional Services
BEIS,UKRI - BBSRC,09/11/2020,Unspecified,FG - Estates,Womble Bond Dickinson LLP,98844148,136.80,Legal & Professional Services
BEIS,UKRI - BBSRC,09/11/2020,Unspecified,FG - Estates,Womble Bond Dickinson LLP,98844149,1211.04,Legal & Professional Services
BEIS,UKRI - BBSRC,09/11/2020,T&S UK - Other Charges,Innovation and Skills Group CDSU,Unspecified,98844981,16.48,T&S UK - Other Charges
BEIS,UKRI - BBSRC,10/11/2020,Research Grant Expenditure,FG - Accounts & Business Planning,Imperial College London,98807583,31457.68,Research Grant Expenditure
BEIS,UKRI - BBSRC,10/11/2020,Research Grant Expenditure,FG - Accounts & Business Planning,Imperial College London,98827117,1802.50,Research Grant Expenditure
BEIS,UKRI - BBSRC,10/11/2020,Research Grant Expenditure,FG - Accounts & Business Planning,Imperial College London,98834729,26921.74,Research Grant Expenditure
BEIS,UKRI - BBSRC,10/11/2020,Compensation Payments,FG - Accounts & Business Planning,JSS Pensions Administration,98840784,1267.18,Compensation Payments
BEIS,UKRI - BBSRC,10/11/2020,T&S UK - Other Charges,Innovation and Skills Group CDSU,Unspecified,98844254,16.87,T&S UK - Other Charges
BEIS,UKRI - BBSRC,10/11/2020,Recruitment Costs,PDG - Director,Agenda Resource Management Ltd,98844691,153.91,Recruitment Costs
BEIS,UKRI - BBSRC,10/11/2020,Research Grant Expenditure,FG - Accounts & Business Planning,Imperial College London,98845670,-26921.74,Research Grant Expenditure
BEIS,UKRI - BBSRC,10/11/2020,Research Grant Expenditure,FG - Accounts & Business Planning,Imperial College London,98845676,18812.28,Research Grant Expenditure
BEIS,UKRI - BBSRC,10/11/2020,Research Grant Expenditure,FG - Accounts & Business Planning,Imperial College London,98845688,-31457.68,Research Grant Expenditure
BEIS,UKRI - BBSRC,10/11/2020,Research Grant Expenditure,FG - Accounts & Business Planning,Imperial College London,98845695,-1802.50,Research Grant Expenditure
BEIS,UKRI - BBSRC,10/11/2020,Research Grant Expenditure,FG - Accounts & Business Planning,Imperial College London,98845697,29655.18,Research Grant Expenditure
BEIS,UKRI - BBSRC,11/11/2020,Research Institutes - Capital Grants: Minor Works,Rothamsted Research,Rothamsted Research Ltd,98842811,26123.22,Research Institutes - Capital Grants: Minor Works
BEIS,UKRI - BBSRC,11/11/2020,Research Institutes - Capital Grants: Minor Works,Rothamsted Research,Rothamsted Research Ltd,98842817,205307.95,Research Institutes - Capital Grants: Minor Works
BEIS,UKRI - BBSRC,11/11/2020,Research Grant Expenditure,CE - CPS,Zedem Media,98847272,4100.00,Research Grant Expenditure
BEIS,UKRI - BBSRC,11/11/2020,Research Grant Expenditure,Science Group,Zedem Media,98847272,1400.00,Research Grant Expenditure
BEIS,UKRI - BBSRC,11/11/2020,Fees (Including College Members),Science Group – Admin Function,Non Employee Expenses Supplier,98847286,510.00,Fees (Including College Members)
BEIS,UKRI - BBSRC,11/11/2020,Fees (Including College Members),Innovation and Skills Group CDSU,Non Employee Expenses Supplier,98847287,340.00,Fees (Including College Members)
BEIS,UKRI - BBSRC,11/11/2020,Fees (Including College Members),Innovation and Skills Group CDSU,Non Employee Expenses Supplier,98847288,170.00,Fees (Including College Members)
BEIS,UKRI - BBSRC,11/11/2020,Fees (Including College Members),Innovation and Skills Group CDSU,Non Employee Expenses Supplier,98847289,170.00,Fees (Including College Members)
BEIS,UKRI - BBSRC,11/11/2020,Fees (Including College Members),Innovation and Skills Group CDSU,Non Employee Expenses Supplier,98847290,340.00,Fees (Including College Members)
BEIS,UKRI - BBSRC,11/11/2020,Fees (Including College Members),Innovation and Skills Group CDSU,Non Employee Expenses Supplier,98847291,340.00,Fees (Including College Members)
BEIS,UKRI - BBSRC,11/11/2020,Fees (Including College Members),Innovation and Skills Group CDSU,Non Employee Expenses Supplier,98847292,340.00,Fees (Including College Members)
BEIS,UKRI - BBSRC,11/11/2020,Fees (Including College Members),Innovation and Skills Group CDSU,Non Employee Expenses Supplier,98847293,340.00,Fees (Including College Members)
BEIS,UKRI - BBSRC,11/11/2020,Fees (Including College Members),Innovation and Skills Group CDSU,Non Employee Expenses Supplier,98847294,170.00,Fees (Including College Members)
BEIS,UKRI - BBSRC,11/11/2020,Fees (Including College Members),Innovation and Skills Group CDSU,Non Employee Expenses Supplier,98847295,460.00,Fees (Including College Members)
BEIS,UKRI - BBSRC,11/11/2020,Fees (Including College Members),Innovation and Skills Group CDSU,Non Employee Expenses Supplier,98847296,170.00,Fees (Including College Members)
BEIS,UKRI - BBSRC,11/11/2020,Fees (Including College Members),Innovation and Skills Group CDSU,Non Employee Expenses Supplier,98847297,340.00,Fees (Including College Members)
BEIS,UKRI - BBSRC,11/11/2020,Fees (Including College Members),Innovation and Skills Group CDSU,Non Employee Expenses Supplier,98847298,170.00,Fees (Including College Members)
BEIS,UKRI - BBSRC,11/11/2020,Fees (Including College Members),Innovation and Skills Group CDSU,Non Employee Expenses Supplier,98847299,170.00,Fees (Including College Members)
BEIS,UKRI - BBSRC,11/11/2020,Fees (Including College Members),Science Group – Admin Function,Non Employee Expenses Supplier,98847300,340.00,Fees (Including College Members)
BEIS,UKRI - BBSRC,11/11/2020,T&S Overseas - Flights,CE - IRU,Corporate Travel Management (North) Ltd,98847360,60.00,T&S Overseas - Flights
BEIS,UKRI - BBSRC,11/11/2020,T&S Overseas - Public Transport,European Initiatives,Corporate Travel Management (North) Ltd,98847360,4.50,T&S Overseas - Public Transport
BEIS,UKRI - BBSRC,11/11/2020,T&S Overseas - Public Transport,European Initiatives,Corporate Travel Management (North) Ltd,98847360,159.00,T&S Overseas - Public Transport
BEIS,UKRI - BBSRC,12/11/2020,T&S UK - Other Charges,Innovation and Skills Group CDSU,Unspecified,98836459,153.60,T&S UK - Other Charges
BEIS,UKRI - BBSRC,12/11/2020,Unspecified,Balance Sheet,HM Revenue & Customs,98845359,1888.55,PAYE Payable Salaries
BEIS,UKRI - BBSRC,12/11/2020,Unspecified,Balance Sheet,HM Revenue & Customs,98845360,13.98,NI Payable Salaries
BEIS,UKRI - BBSRC,12/11/2020,Unspecified,FG - Accounts & Business Planning,HM Revenue & Customs,98845361,30.00,Apprenticeship Levy
BEIS,UKRI - BBSRC,12/11/2020,Unspecified,Balance Sheet,HM Revenue & Customs,98847562,66673.20,PAYE Payable Salaries
BEIS,UKRI - BBSRC,12/11/2020,Unspecified,Balance Sheet,HM Revenue & Customs,98847563,4501.00,Student Loans
BEIS,UKRI - BBSRC,12/11/2020,Unspecified,Balance Sheet,HM Revenue & Customs,98847564,89097.25,NI Payable Salaries
BEIS,UKRI - BBSRC,12/11/2020,Unspecified,FG - Accounts & Business Planning,HM Revenue & Customs,98847565,2349.00,Apprenticeship Levy
BEIS,UKRI - BBSRC,12/11/2020,T&S UK - Other Charges,Innovation and Skills Group CDSU,Unspecified,98847702,10.00,T&S UK - Other Charges
BEIS,UKRI - BBSRC,13/11/2020,Voluntary Deductions,Balance Sheet,St Elizabeth’s Centre,98845362,570.83,Voluntary Deductions
BEIS,UKRI - BBSRC,13/11/2020,Union Deductions,Balance Sheet,PCS Union,98847566,44.34,Union Deductions
BEIS,UKRI - BBSRC,13/11/2020,Unspecified,Balance Sheet,RCPS Pension,98847568,20590.26,Ees Pension Deductions - JSS
BEIS,UKRI - BBSRC,13/11/2020,Unspecified,Balance Sheet,RCPS Pension,98847569,88445.96,Ers Pension Deductions - JSS
BEIS,UKRI - BBSRC,13/11/2020,Unspecified,Balance Sheet,Scottish Widows Life Assurance,98847571,10.00,Other Pension Deductions
BEIS,UKRI - BBSRC,13/11/2020,Unspecified,Balance Sheet,Cabinet Office RM Shared Services,98847572,16.24,Ers Pension Deductions - JSS
BEIS,UKRI - BBSRC,13/11/2020,Unspecified,Balance Sheet,Cabinet Office RM Shared Services,98847573,7716.77,Ees Pension Deductions - MyCSP
BEIS,UKRI - BBSRC,13/11/2020,Unspecified,Balance Sheet,Cabinet Office RM Shared Services,98847574,38454.38,Ers Pension Deductions - MyCSP
BEIS,UKRI - BBSRC,13/11/2020,Nursery Deductions,Balance Sheet,UKRI - Engineering & Physical Sciences Research Council,98847577,1385.00,Nursery Deductions
BEIS,UKRI - BBSRC,13/11/2020,Other Programme Costs,FG - Estates,Rothamsted Research Ltd,98847757,74515.50,Other Programme Costs
BEIS,UKRI - BBSRC,13/11/2020,Reward & Recognition Team Advances,Balance Sheet,UKRI - Engineering & Physical Sciences Research Council,98848786,418.00,Reward & Recognition Team Advances
BEIS,UKRI - BBSRC,16/11/2020,Research Grant Expenditure,SPF W1 EMBL EBI,EMBL (European Molecular Biology Laboratory),98848175,11539.12,Research Grant Expenditure
BEIS,UKRI - BBSRC,16/11/2020,Other Programme Costs,Innovation and Skills Group CDSU,NNFCC Ltd,98848187,9072.00,Other Programme Costs
BEIS,UKRI - BBSRC,16/11/2020,Unspecified,Innovation and Skills Group CDSU,United Kingdom Science Park Association (UKSPA),98848202,2023.20,Legal & Professional Services
BEIS,UKRI - BBSRC,16/11/2020,Unspecified,Innovation and Skills Group CDSU,United Kingdom Science Park Association (UKSPA),98848202,-56.20,Legal & Professional Services
BEIS,UKRI - BBSRC,16/11/2020,Unspecified,Innovation and Skills Group CDSU,United Kingdom Science Park Association (UKSPA),98848202,-281.00,Legal & Professional Services
BEIS,UKRI - BBSRC,16/11/2020,Recruitment Costs,PDG - Director,Warwick University Services Ltd,98849127,546.00,Recruitment Costs
BEIS,UKRI - BBSRC,17/11/2020,Recruitment Costs,PDG - Director,Agenda Resource Management Ltd,98847997,153.91,Recruitment Costs
BEIS,UKRI - BBSRC,17/11/2020,Unspecified,OpEx SPF W2 Food Systems,University of Southampton,98849825,27610.74,Secondments
BEIS,UKRI - BBSRC,17/11/2020,Health & Safety (inc. Medicals & Opticians),Innovation and Skills Group CDSU,Unspecified,98849865,346.90,Health & Safety (inc. Medicals & Opticians)
BEIS,UKRI - BBSRC,17/11/2020,Health & Safety (inc. Medicals & Opticians),Innovation and Skills Group,Unspecified,98849866,12.99,Health & Safety (inc. Medicals & Opticians)
BEIS,UKRI - BBSRC,17/11/2020,Unspecified,FG - Estates,MORTON FRASER LLP,98850685,3148.70,Legal & Professional Services
BEIS,UKRI - BBSRC,18/11/2020,Other Programme Costs,International,TEXAS A&M AGRILIFE RESEARCH,98847688,271536.59,Other Programme Costs
BEIS,UKRI - BBSRC,18/11/2020,Conferences & Seminars,Science Group,The Society of Biology / The Royal Society of Biology,98848064,6000.00,Conferences & Seminars
BEIS,UKRI - BBSRC,18/11/2020,Research Institutes - Capital Grants: Minor Works,Rothamsted Research,Rothamsted Research Ltd,98849706,62343.06,Research Institutes - Capital Grants: Minor Works
BEIS,UKRI - BBSRC,18/11/2020,Research Institutes - Capital Grants: Minor Works,Rothamsted Research,Rothamsted Research Ltd,98850617,7080.00,Research Institutes - Capital Grants: Minor Works
BEIS,UKRI - BBSRC,18/11/2020,Research Institutes - Capital Grants: Minor Works,Estates - Projects,EMBL (European Molecular Biology Laboratory),98850716,93023.00,Research Institutes - Capital Grants: Minor Works
BEIS,UKRI - BBSRC,18/11/2020,Health & Safety (inc. Medicals & Opticians),CE - IRU,Unspecified,98851347,13.99,Health & Safety (inc. Medicals & Opticians)
BEIS,UKRI - BBSRC,19/11/2020,Research Institutes - Capital Grants: Major Works,IFR,Quadram Institute Bioscience,98842840,121433.25,Research Institutes - Capital Grants: Major Works
BEIS,UKRI - BBSRC,19/11/2020,Institute Grant Expenditure,Rothamsted Research,Rothamsted Research Ltd,98842956,49250.00,Institute Grant Expenditure
BEIS,UKRI - BBSRC,19/11/2020,Research Institutes - Competitive Strategic Grant,Rothamsted Research,Rothamsted Research Ltd,98843119,111253.33,Research Institutes - Competitive Strategic Grant
BEIS,UKRI - BBSRC,19/11/2020,Research Institutes - Competitive Strategic Grant,Rothamsted Research,Rothamsted Research Ltd,98843119,418416.67,Research Institutes - Competitive Strategic Grant
BEIS,UKRI - BBSRC,19/11/2020,Research Institutes - Competitive Strategic Grant,Rothamsted Research,Rothamsted Research Ltd,98843119,64666.67,Research Institutes - Competitive Strategic Grant
BEIS,UKRI - BBSRC,19/11/2020,Research Institutes - Competitive Strategic Grant,Rothamsted Research,Rothamsted Research Ltd,98843119,197000.00,Research Institutes - Competitive Strategic Grant
BEIS,UKRI - BBSRC,19/11/2020,Research Institutes - Competitive Strategic Grant,Rothamsted Research,Rothamsted Research Ltd,98843119,7083.33,Research Institutes - Competitive Strategic Grant
BEIS,UKRI - BBSRC,19/11/2020,Research Institutes - Competitive Strategic Grant,Babraham Institute,Babraham Institute,98843865,352459.91,Research Institutes - Competitive Strategic Grant
BEIS,UKRI - BBSRC,19/11/2020,Research Institutes - Competitive Strategic Grant,Babraham Institute,Babraham Institute,98843865,48750.01,Research Institutes - Competitive Strategic Grant
BEIS,UKRI - BBSRC,19/11/2020,Research Institutes - Competitive Strategic Grant,Babraham Institute,Babraham Institute,98843865,395666.75,Research Institutes - Competitive Strategic Grant
BEIS,UKRI - BBSRC,19/11/2020,Research Institutes - Competitive Strategic Grant,Babraham Institute,Babraham Institute,98843865,5833.33,Research Institutes - Competitive Strategic Grant
BEIS,UKRI - BBSRC,19/11/2020,Research Institutes - Competitive Strategic Grant,TGAC,Earlham Institute,98843880,167372.13,Research Institutes - Competitive Strategic Grant
BEIS,UKRI - BBSRC,19/11/2020,Research Institutes - Competitive Strategic Grant,TGAC,Earlham Institute,98843880,78195.44,Research Institutes - Competitive Strategic Grant
BEIS,UKRI - BBSRC,19/11/2020,Research Institutes - Competitive Strategic Grant,TGAC,Earlham Institute,98843880,41249.97,Research Institutes - Competitive Strategic Grant
BEIS,UKRI - BBSRC,19/11/2020,Research Institutes - Competitive Strategic Grant,TGAC,Earlham Institute,98843880,33333.31,Research Institutes - Competitive Strategic Grant
BEIS,UKRI - BBSRC,19/11/2020,Research Institutes - Competitive Strategic Grant,TGAC,Earlham Institute,98843880,117765.49,Research Institutes - Competitive Strategic Grant
BEIS,UKRI - BBSRC,19/11/2020,Research Institutes - Competitive Strategic Grant,TGAC,Earlham Institute,98843880,2916.66,Research Institutes - Competitive Strategic Grant
BEIS,UKRI - BBSRC,19/11/2020,Research Institutes - Competitive Strategic Grant,JIC,John Innes Centre,98843884,21499.99,Research Institutes - Competitive Strategic Grant
BEIS,UKRI - BBSRC,19/11/2020,Research Institutes - Competitive Strategic Grant,JIC,John Innes Centre,98843884,499916.52,Research Institutes - Competitive Strategic Grant
BEIS,UKRI - BBSRC,19/11/2020,Research Institutes - Competitive Strategic Grant,JIC,John Innes Centre,98843884,65333.31,Research Institutes - Competitive Strategic Grant
BEIS,UKRI - BBSRC,19/11/2020,Research Institutes - Competitive Strategic Grant,JIC,John Innes Centre,98843884,513249.85,Research Institutes - Competitive Strategic Grant
BEIS,UKRI - BBSRC,19/11/2020,Research Institutes - Competitive Strategic Grant,JIC,John Innes Centre,98843884,7083.33,Research Institutes - Competitive Strategic Grant
BEIS,UKRI - BBSRC,19/11/2020,Research Institutes - Competitive Strategic Grant,IFR,Quadram Institute Bioscience,98843893,23130.89,Research Institutes - Competitive Strategic Grant
BEIS,UKRI - BBSRC,19/11/2020,Research Institutes - Competitive Strategic Grant,IFR,Quadram Institute Bioscience,98843893,344143.33,Research Institutes - Competitive Strategic Grant
BEIS,UKRI - BBSRC,19/11/2020,Research Institutes - Competitive Strategic Grant,IFR,Quadram Institute Bioscience,98843893,46083.29,Research Institutes - Competitive Strategic Grant
BEIS,UKRI - BBSRC,19/11/2020,Research Institutes - Competitive Strategic Grant,IFR,Quadram Institute Bioscience,98843893,265775.16,Research Institutes - Competitive Strategic Grant
BEIS,UKRI - BBSRC,19/11/2020,Research Institutes - Competitive Strategic Grant,IFR,Quadram Institute Bioscience,98843893,5833.33,Research Institutes - Competitive Strategic Grant
BEIS,UKRI - BBSRC,19/11/2020,Research Institutes - Competitive Strategic Grant,Pirbright,The Pirbright Institute,98845853,816143.93,Research Institutes - Competitive Strategic Grant
BEIS,UKRI - BBSRC,19/11/2020,Research Institutes - Competitive Strategic Grant,Pirbright,The Pirbright Institute,98845853,233969.59,Research Institutes - Competitive Strategic Grant
BEIS,UKRI - BBSRC,19/11/2020,Research Institutes - Competitive Strategic Grant,Pirbright,The Pirbright Institute,98845853,33329.00,Research Institutes - Competitive Strategic Grant
BEIS,UKRI - BBSRC,19/11/2020,Research Institutes - Competitive Strategic Grant,Pirbright,The Pirbright Institute,98845853,199807.36,Research Institutes - Competitive Strategic Grant
BEIS,UKRI - BBSRC,19/11/2020,Research Institutes - Competitive Strategic Grant,Pirbright,The Pirbright Institute,98845853,4166.13,Research Institutes - Competitive Strategic Grant
BEIS,UKRI - BBSRC,19/11/2020,Research Institutes - Competitive Strategic Grant,EBRC (Roslin),University of Edinburgh,98848535,277179.92,Research Institutes - Competitive Strategic Grant
BEIS,UKRI - BBSRC,19/11/2020,Research Institutes - Competitive Strategic Grant,EBRC (Roslin),University of Edinburgh,98848535,206087.50,Research Institutes - Competitive Strategic Grant
BEIS,UKRI - BBSRC,19/11/2020,Research Institutes - Competitive Strategic Grant,EBRC (Roslin),University of Edinburgh,98848535,5833.33,Research Institutes - Competitive Strategic Grant
BEIS,UKRI - BBSRC,19/11/2020,Research Institutes - Competitive Strategic Grant,IBERS,Aberystwyth University,98848642,86360.99,Research Institutes - Competitive Strategic Grant
BEIS,UKRI - BBSRC,19/11/2020,Research Institutes - Competitive Strategic Grant,IBERS,Aberystwyth University,98848642,46980.67,Research Institutes - Competitive Strategic Grant
BEIS,UKRI - BBSRC,19/11/2020,Research Institutes - Competitive Strategic Grant,IBERS,Aberystwyth University,98848642,2916.67,Research Institutes - Competitive Strategic Grant
BEIS,UKRI - BBSRC,19/11/2020,Dep't of Environ Food & Rural Affairs (DEFRA),Pirbright,The Pirbright Institute,98849262,338372.00,Dep't of Environ Food & Rural Affairs (DEFRA)
BEIS,UKRI - BBSRC,19/11/2020,Dep't of Environ Food & Rural Affairs (DEFRA),Pirbright,The Pirbright Institute,98849263,317203.00,Dep't of Environ Food & Rural Affairs (DEFRA)
BEIS,UKRI - BBSRC,19/11/2020,Dep't of Environ Food & Rural Affairs (DEFRA),Pirbright,The Pirbright Institute,98849266,42275.00,Dep't of Environ Food & Rural Affairs (DEFRA)
BEIS,UKRI - BBSRC,19/11/2020,Dep't of Environ Food & Rural Affairs (DEFRA),Pirbright,The Pirbright Institute,98849268,6701.00,Dep't of Environ Food & Rural Affairs (DEFRA)
BEIS,UKRI - BBSRC,19/11/2020,Research Institutes - Capital Grants: Minor Works,JIC,John Innes Centre,98851524,21816.96,Research Institutes - Capital Grants: Minor Works
BEIS,UKRI - BBSRC,19/11/2020,Research Institutes - Capital Grants: Minor Works,JIC,John Innes Centre,98851525,170931.50,Research Institutes - Capital Grants: Minor Works
BEIS,UKRI - BBSRC,19/11/2020,Research Institutes - Capital Grants: Major Works,John Innes Centre (JIC) - WCL 2020 Uplift,John Innes Centre,98851528,34488.00,Research Institutes - Capital Grants: Major Works
BEIS,UKRI - BBSRC,19/11/2020,Research Institutes - Capital Grants: Minor Works,JIC,John Innes Centre,98851529,22494.00,Research Institutes - Capital Grants: Minor Works
BEIS,UKRI - BBSRC,19/11/2020,Research Institutes - Capital Grants: Minor Works,JIC,John Innes Centre,98851530,141378.00,Research Institutes - Capital Grants: Minor Works
BEIS,UKRI - BBSRC,19/11/2020,Research Institutes - Capital Grants: Minor Works,JIC,John Innes Centre,98851532,26347.73,Research Institutes - Capital Grants: Minor Works
BEIS,UKRI - BBSRC,19/11/2020,Research Institutes - Capital Grants: Minor Works,JIC,John Innes Centre,98851533,4523.18,Research Institutes - Capital Grants: Minor Works
BEIS,UKRI - BBSRC,19/11/2020,Research Institutes - Capital Grants: Minor Works,TGAC,Earlham Institute,98851534,6350.00,Research Institutes - Capital Grants: Minor Works
BEIS,UKRI - BBSRC,19/11/2020,Research Institutes - Capital Grants: Minor Works,JIC,John Innes Centre,98851586,2797.50,Research Institutes - Capital Grants: Minor Works
BEIS,UKRI - BBSRC,20/11/2020,Research Grant Expenditure,Impact & Knowledge Exchange,Technology Strategy Board (Innovate UK),98850713,108257.46,Research Grant Expenditure
BEIS,UKRI - BBSRC,20/11/2020,Research Grant Expenditure,Impact & Knowledge Exchange,Technology Strategy Board (Innovate UK),98850715,66246.37,Research Grant Expenditure
BEIS,UKRI - BBSRC,20/11/2020,Research Institutes - Capital Grants: Minor Works,TGAC,Earlham Institute,98851802,37000.00,Research Institutes - Capital Grants: Minor Works
BEIS,UKRI - BBSRC,20/11/2020,Research Institutes - Capital Grants: Minor Works,TGAC,Earlham Institute,98851818,52297.20,Research Institutes - Capital Grants: Minor Works
BEIS,UKRI - BBSRC,20/11/2020,Fees (Including College Members),Innovation and Skills Group CDSU,Non Employee Expenses Supplier,98852345,170.00,Fees (Including College Members)
BEIS,UKRI - BBSRC,20/11/2020,Fees (Including College Members),Innovation and Skills Group CDSU,Non Employee Expenses Supplier,98852346,170.00,Fees (Including College Members)
BEIS,UKRI - BBSRC,20/11/2020,Non-staff travel and subsistance,CE - IRU,The University of Manchester,98852426,1910.73,Non-staff travel and subsistance
BEIS,UKRI - BBSRC,23/11/2020,Research Grant Expenditure,SPF W1 UK Animal & Plant Health,John Innes Centre,98841884,1938800.00,Research Grant Expenditure
BEIS,UKRI - BBSRC,23/11/2020,Research Institutes - Capital Grants: Major Works,Pirbright,The Pirbright Institute,98852042,24500.80,Research Institutes - Capital Grants: Major Works
BEIS,UKRI - BBSRC,23/11/2020,Research Institutes - Capital Grants: Minor Works,Pirbright,The Pirbright Institute,98852044,203723.00,Research Institutes - Capital Grants: Minor Works
BEIS,UKRI - BBSRC,23/11/2020,Research Institutes - Capital Grants: Minor Works,Pirbright,The Pirbright Institute,98852046,42955.41,Research Institutes - Capital Grants: Minor Works
BEIS,UKRI - BBSRC,23/11/2020,Research Grant Expenditure,SPF W1 UK Animal & Plant Health,John Innes Centre,98852638,-1938800.00,Research Grant Expenditure
BEIS,UKRI - BBSRC,23/11/2020,Research Institutes - Capital Grants: Minor Works,Rothamsted Research,Rothamsted Research Ltd,98852684,76323.19,Research Institutes - Capital Grants: Minor Works
BEIS,UKRI - BBSRC,23/11/2020,T&S UK - Other Charges,Innovation and Skills Group CDSU,Unspecified,98853058,277.00,T&S UK - Other Charges
BEIS,UKRI - BBSRC,23/11/2020,T&S UK - Other Charges,Science Group,Unspecified,98853059,9.08,T&S UK - Other Charges
BEIS,UKRI - BBSRC,24/11/2020,Research Grant Expenditure,SPF W1 EMBL EBI,EMBL (European Molecular Biology Laboratory),98850088,266044.37,Research Grant Expenditure
BEIS,UKRI - BBSRC,24/11/2020,Research Grant Expenditure,SPF W1 EMBL EBI,EMBL (European Molecular Biology Laboratory),98850168,149850.00,Research Grant Expenditure
BEIS,UKRI - BBSRC,24/11/2020,Research Grant Expenditure,SPF W1 EMBL EBI,EMBL (European Molecular Biology Laboratory),98850767,1600000.00,Research Grant Expenditure
BEIS,UKRI - BBSRC,24/11/2020,Research Institutes - Capital Grants: Minor Works,JIC,John Innes Centre,98851527,293035.70,Research Institutes - Capital Grants: Minor Works
BEIS,UKRI - BBSRC,24/11/2020,Research Institutes - Capital Grants: Major Works,Pirbright,The Pirbright Institute,98851753,1622999.95,Research Institutes - Capital Grants: Major Works
BEIS,UKRI - BBSRC,24/11/2020,Research Institutes - Capital Grants: Minor Works,Pirbright,The Pirbright Institute,98851754,409715.44,Research Institutes - Capital Grants: Minor Works
BEIS,UKRI - BBSRC,24/11/2020,Research Institutes - Capital Grants: Minor Works,Pirbright,The Pirbright Institute,98851755,1445.00,Research Institutes - Capital Grants: Minor Works
BEIS,UKRI - BBSRC,24/11/2020,Research Institutes - Capital Grants: Minor Works,Pirbright,The Pirbright Institute,98851756,14688.00,Research Institutes - Capital Grants: Minor Works
BEIS,UKRI - BBSRC,24/11/2020,Research Institutes - Capital Grants: Minor Works,Pirbright,The Pirbright Institute,98851757,2880.00,Research Institutes - Capital Grants: Minor Works
BEIS,UKRI - BBSRC,24/11/2020,Research Institutes - Capital Grants: Major Works,Pirbright,The Pirbright Institute,98851758,65566.49,Research Institutes - Capital Grants: Major Works
BEIS,UKRI - BBSRC,24/11/2020,Research Institutes - Capital Grants: Minor Works,Pirbright,The Pirbright Institute,98851759,1029.48,Research Institutes - Capital Grants: Minor Works
BEIS,UKRI - BBSRC,24/11/2020,Research Institutes - Capital Grants: Minor Works,Pirbright,The Pirbright Institute,98851760,66989.48,Research Institutes - Capital Grants: Minor Works
BEIS,UKRI - BBSRC,24/11/2020,Research Institutes - Capital Grants: Minor Works,Pirbright,The Pirbright Institute,98851762,2229.60,Research Institutes - Capital Grants: Minor Works
BEIS,UKRI - BBSRC,24/11/2020,Research Institutes - Capital Grants: Minor Works,Pirbright,The Pirbright Institute,98851764,68571.99,Research Institutes - Capital Grants: Minor Works
BEIS,UKRI - BBSRC,24/11/2020,Research Institutes - Capital Grants: Major Works,John Innes Centre (JIC) - WCL 2020 Uplift,John Innes Centre,98851885,1090147.50,Research Institutes - Capital Grants: Major Works
BEIS,UKRI - BBSRC,24/11/2020,Research Institutes - Capital Grants: Major Works,Pirbright,The Pirbright Institute,98852039,41864.35,Research Institutes - Capital Grants: Major Works
BEIS,UKRI - BBSRC,24/11/2020,T&S UK - Other Charges,CE - Chief Executive,Unspecified,98854532,24.00,T&S UK - Other Charges
BEIS,UKRI - BBSRC,25/11/2020,Voluntary Deductions,Balance Sheet,Swindon Office Sports and Social Club,98847567,50.00,Voluntary Deductions
BEIS,UKRI - BBSRC,25/11/2020,T&S UK - Other Charges,CE - CPS,Unspecified,98849583,43.18,T&S UK - Other Charges
BEIS,UKRI - BBSRC,25/11/2020,Research Grant Expenditure,CE - CPS,Zedem Media,98852217,4100.00,Research Grant Expenditure
BEIS,UKRI - BBSRC,25/11/2020,Research Grant Expenditure,SPF W1 EMBL EBI,EMBL (European Molecular Biology Laboratory),98853685,5540.92,Research Grant Expenditure
BEIS,UKRI - BBSRC,25/11/2020,Health & Safety (inc. Medicals & Opticians),Innovation and Skills Group CDSU,Unspecified,98853694,35.00,Health & Safety (inc. Medicals & Opticians)
BEIS,UKRI - BBSRC,25/11/2020,Health & Safety (inc. Medicals & Opticians),CE - CPS,Unspecified,98853696,13.99,Health & Safety (inc. Medicals & Opticians)
BEIS,UKRI - BBSRC,26/11/2020,T&S UK - Other Charges,Innovation and Skills Group CDSU,Unspecified,98851948,264.82,T&S UK - Other Charges
BEIS,UKRI - BBSRC,26/11/2020,T&S UK - Other Charges,CE - CPS,Unspecified,98855147,25.00,T&S UK - Other Charges
BEIS,UKRI - BBSRC,26/11/2020,Rates,JBOS - Maintenance,Swindon Borough Council,98855183,64000.00,Rates
BEIS,UKRI - BBSRC,27/11/2020,T&S UK - Other Charges,Science Group,Unspecified,98856360,50.94,T&S UK - Other Charges
BEIS,UKRI - BBSRC,30/11/2020,Research Grant Expenditure,FG - Accounts & Business Planning,London School of Hygiene & Tropical Medicine,98854965,9493.97,Research Grant Expenditure
BEIS,UKRI - BBSRC,30/11/2020,Research Grant Expenditure,FG - Accounts & Business Planning,London School of Hygiene & Tropical Medicine,98854966,7255.08,Research Grant Expenditure
BEIS,UKRI - BBSRC,30/11/2020,Research Grant Expenditure,FG - Accounts & Business Planning,London School of Hygiene & Tropical Medicine,98854970,-9493.97,Research Grant Expenditure
BEIS,UKRI - BBSRC,30/11/2020,Recruitment Costs,PDG - Director,Agenda Resource Management Ltd,98855355,153.91,Recruitment Costs
BEIS,UKRI - BBSRC,30/11/2020,Research Grant Expenditure,FG - Accounts & Business Planning,University of Oxford,98856450,4524.56,Research Grant Expenditure
BEIS,UKRI - BBSRC,30/11/2020,Research Grant Expenditure,FG - Accounts & Business Planning,University of Oxford,98856469,1206.55,Research Grant Expenditure
BEIS,UKRI - UKRI,02/11/2020,Printing & Stationery,UKRI - Digital Data and Technology BAU Costs,Banner Group Ltd,98780869,0.62,Printing & Stationery
BEIS,UKRI - UKRI,02/11/2020,Printing & Stationery,UKRI - Digital Data and Technology BAU Costs,Banner Group Ltd,98780869,4.39,Printing & Stationery
BEIS,UKRI - UKRI,02/11/2020,Vehicle Leasing Costs,UKRI - JBOS,Enterprise Rent-A-Car UK Ltd,98791733,1128.00,Vehicle Leasing Costs
BEIS,UKRI - UKRI,02/11/2020,Vehicle Leasing Costs,UKRI - JBOS,Enterprise Rent-A-Car UK Ltd,98791735,1179.86,Vehicle Leasing Costs
BEIS,UKRI - UKRI,02/11/2020,Vehicle Leasing Costs,UKRI - JBOS,Enterprise Rent-A-Car UK Ltd,98798706,1277.51,Vehicle Leasing Costs
BEIS,UKRI - UKRI,02/11/2020,Computer Software Licences,UKRI - Digital Data and Technology BAU Costs,Softcat plc,98800839,196.34,Computer Software Licences
BEIS,UKRI - UKRI,02/11/2020,Vehicle Leasing Costs,UKRI - JBOS,Enterprise Rent-A-Car UK Ltd,98814617,1128.00,Vehicle Leasing Costs
BEIS,UKRI - UKRI,02/11/2020,Computer Software Licences,UKRI - Digital Data and Technology BAU Costs,Unspecified,98825117,1546.80,Computer Software Licences
BEIS,UKRI - UKRI,02/11/2020,Computer Software Licences,UKRI - Digital Data and Technology BAU Costs,Unspecified,98825490,10344.60,Computer Software Licences
BEIS,UKRI - UKRI,02/11/2020,Computer Software Licences,UKRI - Digital Data and Technology BAU Costs,Softcat plc,98826139,5594.33,Computer Software Licences
BEIS,UKRI - UKRI,02/11/2020,General Building Maintenance,UKRI - Digital Data and Technology BAU Costs,AR Electrical (Swindon) Ltd,98834447,11418.00,General Building Maintenance
BEIS,UKRI - UKRI,02/11/2020,General Building Maintenance,UKRI - Digital Data and Technology BAU Costs,AR Electrical (Swindon) Ltd,98834448,2224.80,General Building Maintenance
BEIS,UKRI - UKRI,02/11/2020,Computer Software Licences,UKRI - Digital Data and Technology BAU Costs,BYTES SOFTWARE SERVICES LTD,98837114,14289.60,Computer Software Licences
BEIS,UKRI - UKRI,02/11/2020,Hardware/Software Maintenance,UKRI - Digital Data and Technology BAU Costs,Logicalis Uk Ltd,98838056,19076.10,Hardware/Software Maintenance
BEIS,UKRI - UKRI,02/11/2020,Unspecified,UKRI - Digital Data and Technology BAU Costs,Alexander Mann Solutions Ltd,98838878,3079.62,Contract Staff
BEIS,UKRI - UKRI,02/11/2020,Unspecified,UKRI - Digital Data and Technology Project Costs,Alexander Mann Solutions Ltd,98839681,1970.98,Contract Staff
BEIS,UKRI - UKRI,02/11/2020,Advertising & Promotion,UKRI - Communications Content,CASS Productions Ltd,98841207,2400.00,Advertising & Promotion
BEIS,UKRI - UKRI,02/11/2020,Conferences & Seminars,UKRI - GCRF Delivery,Elizabeth Smith T/A Liz Smith Consulting,98841236,300.00,Conferences & Seminars
BEIS,UKRI - UKRI,02/11/2020,Advertising & Promotion,UKRI - Communications Projects and Services,Dragon Rouge Ltd,98841670,10080.00,Advertising & Promotion
BEIS,UKRI - UKRI,02/11/2020,Unspecified,UKRI - JRS,Alexander Mann Solutions Ltd,98841989,1332.00,Contract Staff
BEIS,UKRI - UKRI,02/11/2020,Unspecified,UKRI - JRS,Alexander Mann Solutions Ltd,98841994,3423.12,Contract Staff
BEIS,UKRI - UKRI,02/11/2020,Vehicle Leasing Costs,UKRI - JBOS,Enterprise Rent-A-Car UK Ltd,98842140,1128.00,Vehicle Leasing Costs
BEIS,UKRI - UKRI,02/11/2020,Unspecified,UKRI - Funding Service,Alexander Mann Solutions Ltd,98842151,2992.80,Contract Staff
BEIS,UKRI - UKRI,02/11/2020,Unspecified,UKRI - Management Reporting,Alexander Mann Solutions Ltd,98842158,1260.12,Agency Staff
BEIS,UKRI - UKRI,02/11/2020,Unspecified,UKRI - Management Reporting,Alexander Mann Solutions Ltd,98842165,902.35,Agency Staff
BEIS,UKRI - UKRI,02/11/2020,Unspecified,UKRI - Digital Data and Technology Project Costs,Alexander Mann Solutions Ltd,98842167,1200.18,Contract Staff
BEIS,UKRI - UKRI,02/11/2020,Mobile Phone Costs,UKRI - Estates,Everbridge Europe Ltd,98842183,9912.72,Mobile Phone Costs
BEIS,UKRI - UKRI,02/11/2020,Corporate Events,UKRI - Human Resources Support,Baxter Storey Ltd,98842185,856.76,Corporate Events
BEIS,UKRI - UKRI,02/11/2020,Unspecified,UKRI - Digital Data and Technology BAU Costs,Alexander Mann Solutions Ltd,98842240,3079.62,Contract Staff
BEIS,UKRI - UKRI,02/11/2020,Unspecified,UKRI - Strategic Finance Business Partners,Alexander Mann Solutions Ltd,98842242,809.41,Agency Staff
BEIS,UKRI - EPSRC,02/11/2020,Recruitment Costs,EPSRC Corporate Services,Alexander Mann Solutions Ltd,98842249,643.80,Recruitment Costs
BEIS,UKRI - UKRI,02/11/2020,Unspecified,UKRI - Financial Accounting,Alexander Mann Solutions Ltd,98842253,2362.74,Agency Staff
BEIS,UKRI - UKRI,02/11/2020,Unspecified,UKRI - Digital Data and Technology Project Costs,Alexander Mann Solutions Ltd,98842256,1478.23,Contract Staff
BEIS,UKRI - UKRI,02/11/2020,Vehicle Leasing Costs,UKRI - JBOS,Enterprise Rent-A-Car UK Ltd,98842296,1195.79,Vehicle Leasing Costs
BEIS,UKRI - EPSRC,02/11/2020,Health & Safety (inc. Medicals & Opticians),Business Engagement,Unspecified,98842343,12.99,Health & Safety (inc. Medicals & Opticians)
BEIS,UKRI - UKRI,02/11/2020,Health & Safety (inc. Medicals & Opticians),UKRI - GCRF Delivery,Unspecified,98842346,8.00,Health & Safety (inc. Medicals & Opticians)
BEIS,UKRI - EPSRC,02/11/2020,Other Programme Costs,International Centre to Centre,University of Sheffield,98843250,2172.00,Other Programme Costs
BEIS,UKRI - EPSRC,02/11/2020,Other Programme Costs,Manufacturing Manufacturing,University of Sheffield,98843250,14088.00,Other Programme Costs
BEIS,UKRI - EPSRC,02/11/2020,Other Programme Costs,NC Engineering,University of Sheffield,98843250,1218.00,Other Programme Costs
BEIS,UKRI - EPSRC,02/11/2020,Other Programme Costs,NC ICT,University of Sheffield,98843250,12009.07,Other Programme Costs
BEIS,UKRI - EPSRC,02/11/2020,Other Programme Costs,NC Physical Sciences,University of Sheffield,98843250,26887.45,Other Programme Costs
BEIS,UKRI - EPSRC,02/11/2020,Other Programme Costs,Quantum Technology Programme,University of Sheffield,98843250,2370.00,Other Programme Costs
BEIS,UKRI - UKRI,03/11/2020,Other Bought In Services,UKRI - Research Funding Support,UK Shared Business Services Ltd,98797722,40000.00,Other Bought In Services
BEIS,UKRI - UKRI,03/11/2020,Staff Training,UKRI - Governance,Fivium Ltd,98825487,5758.80,Staff Training
BEIS,UKRI - UKRI,03/11/2020,Unspecified,UKRI - Strategic Finance Business Partners,Alexander Mann Solutions Ltd,98826163,809.41,Agency Staff
BEIS,UKRI - UKRI,03/11/2020,Unspecified,UKRI - Management Reporting,Alexander Mann Solutions Ltd,98826180,1127.94,Agency Staff
BEIS,UKRI - UKRI,03/11/2020,Unspecified,"UKRI People, Policies and Management",Alexander Mann Solutions Ltd,98827566,10350.29,Agency Staff
BEIS,UKRI - UKRI,03/11/2020,Hardware/Software Maintenance,UKRI - Digital Data and Technology BAU Costs,Dell Corporation Ltd,98834814,3567.95,Hardware/Software Maintenance
BEIS,UKRI - UKRI,03/11/2020,Unspecified,"UKRI People, Policies and Management",Alexander Mann Solutions Ltd,98835881,12937.86,Agency Staff
BEIS,UKRI - UKRI,03/11/2020,Marketing & PR,UKRI - Communications Web and Intranet Service,Derek Holmes T/A Derek Holmes Media,98836013,1500.00,Marketing & PR
BEIS,UKRI - UKRI,03/11/2020,Consumables,UKRI - JRS,Antalis Ltd t/a Antalis Document Supplies,98839025,95.04,Consumables
BEIS,UKRI - UKRI,03/11/2020,Consumables,UKRI - JRS,Antalis Ltd t/a Antalis Document Supplies,98839025,12.00,Consumables
BEIS,UKRI - UKRI,03/11/2020,Unspecified,"UKRI People, Policies and Management",Alexander Mann Solutions Ltd,98839651,3450.10,Agency Staff
BEIS,UKRI - UKRI,03/11/2020,Unspecified,UKRI - Strategic Finance Business Partners,Alexander Mann Solutions Ltd,98839672,809.41,Agency Staff
BEIS,UKRI - UKRI,03/11/2020,Unspecified,UKRI - GCRF Delivery,UKRI - Economic & Social Research Council,98840990,40814.28,Recharges From Councils - Salary
BEIS,UKRI - UKRI,03/11/2020,Unspecified,UKRI - GCRF Delivery,UKRI - Economic & Social Research Council,98840992,63892.80,Recharges From Councils - Salary
BEIS,UKRI - UKRI,03/11/2020,Unspecified,UKRI - GCRF Delivery,UKRI - Economic & Social Research Council,98840993,48904.92,Recharges From Councils - Salary
BEIS,UKRI - EPSRC,03/11/2020,Fees (Including College Members),Programme Delivery Infrastructure,Non Employee Expenses Supplier,98841094,160.72,Fees (Including College Members)
BEIS,UKRI - EPSRC,03/11/2020,Other Programme Costs,NC Physical Sciences,The University of Manchester,98841106,13050.00,Other Programme Costs
BEIS,UKRI - UKRI,03/11/2020,T&S UK - Other Charges,"UKRI - Data Policy, Governance and MI",Unspecified,98841150,198.23,T&S UK - Other Charges
BEIS,UKRI - UKRI,03/11/2020,Unspecified,UKRI - Health and Safety,Abbey Business Interiors Ltd,98841281,120.00,Legal & Professional Services
BEIS,UKRI - EPSRC,03/11/2020,Fees (Including College Members),SPF - Trustworthy Autonomous Systems OpEx,Non Employee Expenses Supplier,98841522,160.41,Fees (Including College Members)
BEIS,UKRI - UKRI,03/11/2020,Advertising & Promotion,UKRI - Communications Projects and Services,Dragon Rouge Ltd,98841668,11760.00,Advertising & Promotion
BEIS,UKRI - EPSRC,03/11/2020,Recruitment Costs,EPSRC Corporate Services,Agenda Resource Management Ltd,98841997,153.91,Recruitment Costs
BEIS,UKRI - UKRI,03/11/2020,Recruitment Costs,UKRI People and Organisation Development,Alexander Mann Solutions Ltd,98842159,2155.80,Recruitment Costs
BEIS,UKRI - Research England,03/11/2020,Recruitment Costs,RE - Operations and Private Office,Agenda Resource Management Ltd,98842260,153.91,Recruitment Costs
BEIS,UKRI - UKRI,03/11/2020,Recruitment Costs,UKRI People and Organisation Development,Agenda Resource Management Ltd,98842262,153.91,Recruitment Costs
BEIS,UKRI - UKRI,03/11/2020,Recruitment Costs,UKRI People and Organisation Development,Agenda Resource Management Ltd,98842263,153.91,Recruitment Costs
BEIS,UKRI - Research England,03/11/2020,Recruitment Costs,RE - Operations and Private Office,Agenda Resource Management Ltd,98842264,153.91,Recruitment Costs
BEIS,UKRI - UKRI,03/11/2020,Recruitment Costs,UKRI People and Organisation Development,Agenda Resource Management Ltd,98842265,153.91,Recruitment Costs
BEIS,UKRI - UKRI,03/11/2020,Recruitment Costs,UKRI People and Organisation Development,Agenda Resource Management Ltd,98842266,153.91,Recruitment Costs
BEIS,UKRI - UKRI,03/11/2020,Recruitment Costs,UKRI People and Organisation Development,Agenda Resource Management Ltd,98842267,153.91,Recruitment Costs
BEIS,UKRI - UKRI,03/11/2020,Recruitment Costs,UKRI People and Organisation Development,Agenda Resource Management Ltd,98842268,153.91,Recruitment Costs
BEIS,UKRI - UKRI,03/11/2020,Recruitment Costs,UKRI People and Organisation Development,Agenda Resource Management Ltd,98842269,153.91,Recruitment Costs
BEIS,UKRI - EPSRC,03/11/2020,Fees (Including College Members),Programme Delivery Physical Sciences,Non Employee Expenses Supplier,98842388,320.00,Fees (Including College Members)
BEIS,UKRI - EPSRC,03/11/2020,Fees (Including College Members),Programme Delivery Physical Sciences,Non Employee Expenses Supplier,98842389,320.00,Fees (Including College Members)
BEIS,UKRI - EPSRC,03/11/2020,Fees (Including College Members),Programme Delivery Physical Sciences,Non Employee Expenses Supplier,98842390,160.00,Fees (Including College Members)
BEIS,UKRI - EPSRC,03/11/2020,Fees (Including College Members),Programme Delivery Physical Sciences,Non Employee Expenses Supplier,98842391,160.00,Fees (Including College Members)
BEIS,UKRI - EPSRC,03/11/2020,Fees (Including College Members),Programme Delivery Manufacturing,Non Employee Expenses Supplier,98842392,160.00,Fees (Including College Members)
BEIS,UKRI - EPSRC,03/11/2020,Fees (Including College Members),Programme Delivery Manufacturing,Non Employee Expenses Supplier,98842393,160.00,Fees (Including College Members)
BEIS,UKRI - EPSRC,03/11/2020,Fees (Including College Members),Programme Delivery Physical Sciences,Non Employee Expenses Supplier,98842394,160.00,Fees (Including College Members)
BEIS,UKRI - EPSRC,03/11/2020,Fees (Including College Members),Programme Delivery Physical Sciences,Non Employee Expenses Supplier,98842395,320.00,Fees (Including College Members)
BEIS,UKRI - UKRI,03/11/2020,Tax Advice,UKRI - Financial Accounting,Pump Court Tax Chambers,98842598,7800.00,Tax Advice
BEIS,UKRI - UKRI,03/11/2020,Recruitment Costs,UKRI People and Organisation Development,Cabinet Office,98842659,17179.67,Recruitment Costs
BEIS,UKRI - UKRI,03/11/2020,Hardware/Software Maintenance,UKRI - Digital Data and Technology Project Costs,Logicalis Uk Ltd,98843255,12527.81,Hardware/Software Maintenance
BEIS,UKRI - UKRI,03/11/2020,Unspecified,UKRI - GCRF Challenge Leaders,UNIVERSITY OF ULSTER,98843331,13849.57,Secondments
BEIS,UKRI - UKRI,03/11/2020,Corporate Events,UKRI - Digital Data and Technology BAU Costs,Gartner UK Ltd,98843334,2706.00,Corporate Events
BEIS,UKRI - EPSRC,03/11/2020,Non-staff travel and subsistance,Programme Delivery ICT,Non Employee Expenses Supplier,98843377,2.50,Non-staff travel and subsistance
BEIS,UKRI - EPSRC,03/11/2020,Fees (Including College Members),Programme Delivery ICT,Non Employee Expenses Supplier,98843378,160.00,Fees (Including College Members)
BEIS,UKRI - EPSRC,03/11/2020,Fees (Including College Members),SPF - Trustworthy Autonomous Systems OpEx,Non Employee Expenses Supplier,98843379,320.00,Fees (Including College Members)
BEIS,UKRI - EPSRC,03/11/2020,Fees (Including College Members),Programme Delivery Engineering,Non Employee Expenses Supplier,98843380,320.00,Fees (Including College Members)
BEIS,UKRI - EPSRC,03/11/2020,Fees (Including College Members),Programme Delivery Engineering,Non Employee Expenses Supplier,98843381,160.00,Fees (Including College Members)
BEIS,UKRI - EPSRC,03/11/2020,Fees (Including College Members),Programme Delivery Engineering,Non Employee Expenses Supplier,98843382,160.00,Fees (Including College Members)
BEIS,UKRI - EPSRC,03/11/2020,Fees (Including College Members),Business Improvement,Non Employee Expenses Supplier,98843383,320.00,Fees (Including College Members)
BEIS,UKRI - EPSRC,03/11/2020,Fees (Including College Members),Business Improvement,Non Employee Expenses Supplier,98843384,160.00,Fees (Including College Members)
BEIS,UKRI - EPSRC,03/11/2020,Fees (Including College Members),Business Improvement,Non Employee Expenses Supplier,98843385,320.00,Fees (Including College Members)
BEIS,UKRI - EPSRC,03/11/2020,Fees (Including College Members),Business Improvement,Non Employee Expenses Supplier,98843386,320.00,Fees (Including College Members)
BEIS,UKRI - EPSRC,03/11/2020,Fees (Including College Members),Programme Delivery Engineering,Non Employee Expenses Supplier,98843387,160.00,Fees (Including College Members)
BEIS,UKRI - EPSRC,03/11/2020,Health & Safety (inc. Medicals & Opticians),Programme Delivery Engineering,Unspecified,98843573,12.99,Health & Safety (inc. Medicals & Opticians)
BEIS,UKRI - UKRI,03/11/2020,T&S UK - Mileage,UKRI - Risk and Counter Fraud,Unspecified,98843574,111.60,T&S UK - Mileage
BEIS,UKRI - UKRI,03/11/2020,T&S UK - Subsistence,UKRI - Risk and Counter Fraud,Unspecified,98843574,17.97,T&S UK - Subsistence
BEIS,UKRI - UKRI,03/11/2020,Health & Safety (inc. Medicals & Opticians),UKRI - Communication and Engagement,Unspecified,98843575,12.99,Health & Safety (inc. Medicals & Opticians)
BEIS,UKRI - UKRI,03/11/2020,Health & Safety (inc. Medicals & Opticians),UKRI - Strategic Finance Business Partners,Unspecified,98843576,13.99,Health & Safety (inc. Medicals & Opticians)
BEIS,UKRI - EPSRC,03/11/2020,Health & Safety (inc. Medicals & Opticians),Programme Delivery Maths,Unspecified,98843580,9.00,Health & Safety (inc. Medicals & Opticians)
BEIS,UKRI - EPSRC,03/11/2020,T&S UK - Public Transport,Programme Delivery ICT,Unspecified,98843581,11.40,T&S UK - Public Transport
BEIS,UKRI - EPSRC,03/11/2020,T&S UK - Mileage,Programme Delivery ICT,Unspecified,98843582,88.20,T&S UK - Mileage
BEIS,UKRI - EPSRC,03/11/2020,T&S UK - Parking Tolls Congestion Charges,Programme Delivery ICT,Unspecified,98843582,7.50,T&S UK - Parking Tolls Congestion Charges
BEIS,UKRI - EPSRC,03/11/2020,T&S UK - Public Transport,Programme Delivery ICT,Unspecified,98843582,9.00,T&S UK - Public Transport
BEIS,UKRI - EPSRC,03/11/2020,T&S UK - Subsistence,Programme Delivery ICT,Unspecified,98843582,6.15,T&S UK - Subsistence
BEIS,UKRI - EPSRC,03/11/2020,T&S UK - Subsistence,Programme Delivery ICT,Unspecified,98843583,2.30,T&S UK - Subsistence
BEIS,UKRI - EPSRC,03/11/2020,T&S UK - Subsistence,Programme Delivery ICT,Unspecified,98843583,4.79,T&S UK - Subsistence
BEIS,UKRI - EPSRC,03/11/2020,T&S UK - Subsistence,Programme Delivery ICT,Unspecified,98843583,5.30,T&S UK - Subsistence
BEIS,UKRI - EPSRC,03/11/2020,T&S UK - Public Transport,Programme Delivery ICT,Unspecified,98843584,6.60,T&S UK - Public Transport
BEIS,UKRI - EPSRC,03/11/2020,T&S UK - Subsistence,Programme Delivery ICT,Unspecified,98843584,8.49,T&S UK - Subsistence
BEIS,UKRI - EPSRC,03/11/2020,T&S UK - Subsistence,Programme Delivery ICT,Unspecified,98843585,16.50,T&S UK - Subsistence
BEIS,UKRI - EPSRC,03/11/2020,T&S UK - Subsistence,Programme Delivery ICT,Unspecified,98843586,20.08,T&S UK - Subsistence
BEIS,UKRI - EPSRC,03/11/2020,T&S UK - Public Transport,Programme Delivery ICT,Unspecified,98843587,9.00,T&S UK - Public Transport
BEIS,UKRI - EPSRC,03/11/2020,T&S UK - Subsistence,Programme Delivery ICT,Unspecified,98843587,4.94,T&S UK - Subsistence
BEIS,UKRI - EPSRC,03/11/2020,T&S UK - Subsistence,Programme Delivery ICT,Unspecified,98843587,9.45,T&S UK - Subsistence
BEIS,UKRI - EPSRC,03/11/2020,T&S UK - Public Transport,Programme Delivery ICT,Unspecified,98843588,19.10,T&S UK - Public Transport
BEIS,UKRI - EPSRC,03/11/2020,T&S UK - Subsistence,Programme Delivery ICT,Unspecified,98843588,4.10,T&S UK - Subsistence
BEIS,UKRI - EPSRC,03/11/2020,T&S UK - Subsistence,Programme Delivery ICT,Unspecified,98843588,10.30,T&S UK - Subsistence
BEIS,UKRI - EPSRC,03/11/2020,T&S UK - Public Transport,Programme Delivery ICT,Unspecified,98843589,6.00,T&S UK - Public Transport
BEIS,UKRI - EPSRC,03/11/2020,T&S UK - Public Transport,Programme Delivery ICT,Unspecified,98843589,11.90,T&S UK - Public Transport
BEIS,UKRI - EPSRC,03/11/2020,T&S UK - Subsistence,Programme Delivery ICT,Unspecified,98843589,18.54,T&S UK - Subsistence
BEIS,UKRI - EPSRC,03/11/2020,T&S UK - Subsistence,Programme Delivery ICT,Unspecified,98843590,29.25,T&S UK - Subsistence
BEIS,UKRI - EPSRC,03/11/2020,T&S UK - Subsistence,Programme Delivery ICT,Unspecified,98843590,8.90,T&S UK - Subsistence
BEIS,UKRI - EPSRC,03/11/2020,T&S UK - Public Transport,Programme Delivery ICT,Unspecified,98843591,38.10,T&S UK - Public Transport
BEIS,UKRI - EPSRC,03/11/2020,T&S UK - Subsistence,Programme Delivery ICT,Unspecified,98843591,5.00,T&S UK - Subsistence
BEIS,UKRI - EPSRC,03/11/2020,T&S UK - Subsistence,Programme Delivery ICT,Unspecified,98843591,5.00,T&S UK - Subsistence
BEIS,UKRI - EPSRC,03/11/2020,T&S UK - Public Transport,Programme Delivery ICT,Unspecified,98843592,24.50,T&S UK - Public Transport
BEIS,UKRI - EPSRC,03/11/2020,T&S UK - Public Transport,Programme Delivery ICT,Unspecified,98843592,8.40,T&S UK - Public Transport
BEIS,UKRI - EPSRC,03/11/2020,T&S UK - Subsistence,Programme Delivery ICT,Unspecified,98843592,2.50,T&S UK - Subsistence
BEIS,UKRI - EPSRC,03/11/2020,T&S UK - Subsistence,Programme Delivery ICT,Unspecified,98843592,16.95,T&S UK - Subsistence
BEIS,UKRI - EPSRC,03/11/2020,T&S UK - Public Transport,Programme Delivery ICT,Unspecified,98843593,15.20,T&S UK - Public Transport
BEIS,UKRI - EPSRC,03/11/2020,T&S UK - Public Transport,Programme Delivery ICT,Unspecified,98843593,23.00,T&S UK - Public Transport
BEIS,UKRI - EPSRC,03/11/2020,T&S UK - Subsistence,Programme Delivery ICT,Unspecified,98843593,3.99,T&S UK - Subsistence
BEIS,UKRI - EPSRC,03/11/2020,T&S UK - Subsistence,Programme Delivery ICT,Unspecified,98843593,20.08,T&S UK - Subsistence
BEIS,UKRI - EPSRC,03/11/2020,T&S UK - Subsistence,Programme Delivery ICT,Unspecified,98843593,2.30,T&S UK - Subsistence
BEIS,UKRI - EPSRC,03/11/2020,T&S UK - Other Charges,Programme Delivery ICT,Unspecified,98843594,4.68,T&S UK - Other Charges
BEIS,UKRI - EPSRC,03/11/2020,T&S UK - Public Transport,Programme Delivery ICT,Unspecified,98843594,38.50,T&S UK - Public Transport
BEIS,UKRI - EPSRC,03/11/2020,T&S UK - Subsistence,Programme Delivery ICT,Unspecified,98843594,23.47,T&S UK - Subsistence
BEIS,UKRI - EPSRC,03/11/2020,T&S UK - Public Transport,Programme Delivery ICT,Unspecified,98843595,86.98,T&S UK - Public Transport
BEIS,UKRI - EPSRC,03/11/2020,T&S UK - Public Transport,Programme Delivery ICT,Unspecified,98843596,39.70,T&S UK - Public Transport
BEIS,UKRI - EPSRC,03/11/2020,T&S UK - Subsistence,Programme Delivery ICT,Unspecified,98843596,44.58,T&S UK - Subsistence
BEIS,UKRI - EPSRC,03/11/2020,T&S UK - Subsistence,Programme Delivery ICT,Unspecified,98843596,8.10,T&S UK - Subsistence
BEIS,UKRI - EPSRC,03/11/2020,T&S UK - Other Charges,Managing Our Portfolio and Priorities,Unspecified,98843598,9.08,T&S UK - Other Charges
BEIS,UKRI - UKRI,03/11/2020,T&S UK - Other Charges,UKRI - Digital Data and Technology BAU Costs,Unspecified,98843600,129.97,T&S UK - Other Charges
BEIS,UKRI - UKRI,03/11/2020,T&S UK - Subsistence,UKRI - Risk and Counter Fraud,Unspecified,98843601,51.42,T&S UK - Subsistence
BEIS,UKRI - UKRI,03/11/2020,T&S UK - Subsistence,UKRI - Risk and Counter Fraud,Unspecified,98843601,19.79,T&S UK - Subsistence
BEIS,UKRI - UKRI,03/11/2020,T&S UK - Other Charges,UKRI - Risk and Counter Fraud,Unspecified,98843602,1.49,T&S UK - Other Charges
BEIS,UKRI - UKRI,03/11/2020,T&S UK - Subsistence,UKRI - Risk and Counter Fraud,Unspecified,98843602,39.44,T&S UK - Subsistence
BEIS,UKRI - UKRI,03/11/2020,T&S UK - Subsistence,UKRI - Risk and Counter Fraud,Unspecified,98843602,14.58,T&S UK - Subsistence
BEIS,UKRI - UKRI,04/11/2020,Health & Safety (inc. Medicals & Opticians),UKRI - Health and Safety,Abbey Business Interiors Ltd,98730759,360.00,Health & Safety (inc. Medicals & Opticians)
BEIS,UKRI - UKRI,04/11/2020,Electricity,UKRI - JBOS,EDF Energy,98811163,29213.81,Electricity
BEIS,UKRI - UKRI,04/11/2020,Telecoms - Non Capital Hardware Costs,UKRI - Digital Data and Technology BAU Costs,Telefonica UK Ltd (O2),98820529,6.60,Telecoms - Non Capital Hardware Costs
BEIS,UKRI - UKRI,04/11/2020,Telecoms - Non Capital Hardware Costs,UKRI - Digital Data and Technology BAU Costs,Telefonica UK Ltd (O2),98820529,33.00,Telecoms - Non Capital Hardware Costs
BEIS,UKRI - UKRI,04/11/2020,Electricity,UKRI - JBOS,EDF Energy,98831140,30327.89,Electricity
BEIS,UKRI - UKRI,04/11/2020,Staff Training,UKRI - Risk and Counter Fraud,The Institute Of Risk Management,98833606,1300.00,Staff Training
BEIS,UKRI - UKRI,04/11/2020,Hardware/Software Maintenance,UKRI - Digital Data and Technology Recharges,Park Place Technologies Ltd,98835957,37100.58,Hardware/Software Maintenance
BEIS,UKRI - UKRI,04/11/2020,Cleaning Services,UKRI - JBOS,ISS Mediclean Ltd,98839469,85501.69,Cleaning Services
BEIS,UKRI - UKRI,04/11/2020,Computer Hardware,UKRI - Digital Data and Technology BAU Costs,Logicalis Uk Ltd,98839704,21307.37,Computer Hardware
BEIS,UKRI - EPSRC,04/11/2020,Other Programme Costs,Business Partnerships Fund,University of Surrey,98842428,11985.12,Other Programme Costs
BEIS,UKRI - EPSRC,04/11/2020,Other Programme Costs,Energy Energy,University of Surrey,98842428,26650.60,Other Programme Costs
BEIS,UKRI - EPSRC,04/11/2020,Other Programme Costs,ISCF Skills,University of Surrey,98842428,3118.09,Other Programme Costs
BEIS,UKRI - EPSRC,04/11/2020,Other Programme Costs,Manufacturing Manufacturing,University of Surrey,98842428,152.24,Other Programme Costs
BEIS,UKRI - EPSRC,04/11/2020,Other Programme Costs,NC ICT,University of Surrey,98842428,57829.48,Other Programme Costs
BEIS,UKRI - EPSRC,04/11/2020,Other Programme Costs,NC ICT,University of Surrey,98842428,14574.49,Other Programme Costs
BEIS,UKRI - EPSRC,04/11/2020,Other Programme Costs,NC Physical Sciences,University of Surrey,98842428,57829.48,Other Programme Costs
BEIS,UKRI - EPSRC,04/11/2020,Other Programme Costs,NC Physical Sciences,University of Surrey,98842428,30498.78,Other Programme Costs
BEIS,UKRI - UKRI,04/11/2020,Consumables,UKRI - JRS,Antalis Ltd t/a Antalis Document Supplies,98842743,0.01,Consumables
BEIS,UKRI - UKRI,04/11/2020,Consumables,UKRI - JRS,Antalis Ltd t/a Antalis Document Supplies,98842743,408.00,Consumables
BEIS,UKRI - UKRI,04/11/2020,Postage & Courier Services,UKRI - JBOS,Unspecified,98842809,6.55,Postage & Courier Services
BEIS,UKRI - UKRI,04/11/2020,Postage & Courier Services,UKRI - JBOS,Unspecified,98842814,430.82,Postage & Courier Services
BEIS,UKRI - Research England,04/11/2020,Recruitment Costs,RE - Operations and Private Office,Warwick University Services Ltd,98842861,300.00,Recruitment Costs
BEIS,UKRI - UKRI,04/11/2020,Computer Software Licences,UKRI - Digital Data and Technology BAU Costs,Jisc Services Ltd,98842895,3540.00,Computer Software Licences
BEIS,UKRI - UKRI,04/11/2020,General Building Maintenance,UKRI - JBOS,Interior Design And Developments,98842912,728.40,General Building Maintenance
BEIS,UKRI - UKRI,04/11/2020,Staff Training,UKRI - Project Management Office,Corinium Human Resource Management Ltd,98842931,300.00,Staff Training
BEIS,UKRI - UKRI,04/11/2020,Consumables,UKRI - JRS,Antalis Ltd t/a Antalis Document Supplies,98843769,204.60,Consumables
BEIS,UKRI - UKRI,04/11/2020,Consumables,UKRI - JRS,Antalis Ltd t/a Antalis Document Supplies,98843769,0.01,Consumables
BEIS,UKRI - UKRI,04/11/2020,Health & Safety (inc. Medicals & Opticians),UKRI Strategic HR Business Partners,Swindon Occupational Medical Services Ltd,98843813,1050.00,Health & Safety (inc. Medicals & Opticians)
BEIS,UKRI - UKRI,04/11/2020,Health & Safety (inc. Medicals & Opticians),UKRI Strategic HR Business Partners,Swindon Occupational Medical Services Ltd,98843856,175.00,Health & Safety (inc. Medicals & Opticians)
BEIS,UKRI - UKRI,04/11/2020,Unspecified,UKRI - Digital Data and Technology BAU Costs,Highplaces Consulting Ltd,98843876,14400.00,Contract Staff
BEIS,UKRI - UKRI,04/11/2020,Staff Training,UKRI - Risk and Counter Fraud,The Institute Of Risk Management,98843889,2095.00,Staff Training
BEIS,UKRI - UKRI,04/11/2020,Staff Training,"Corporate Strategy, Governance and Performance",KPMG LLP,98843895,4800.00,Staff Training
BEIS,UKRI - UKRI,04/11/2020,T&S UK - Other Charges,UKRI - Grants Policy,Unspecified,98844025,13.57,T&S UK - Other Charges
BEIS,UKRI - UKRI,04/11/2020,T&S UK - Other Charges,UKRI - Procurement and Commercial,Unspecified,98844026,107.99,T&S UK - Other Charges
BEIS,UKRI - UKRI,04/11/2020,T&S UK - Mileage,UKRI Strategic HR Business Partners,Unspecified,98844027,21.60,T&S UK - Mileage
BEIS,UKRI - EPSRC,04/11/2020,T&S UK - Other Charges,Circular Economy OpEx,Unspecified,98844029,5.99,T&S UK - Other Charges
BEIS,UKRI - UKRI,04/11/2020,T&S UK - Other Charges,UKRI - International,Unspecified,98844030,187.41,T&S UK - Other Charges
BEIS,UKRI - UKRI,04/11/2020,T&S UK - Other Charges,UKRI People and Organisation Development,Unspecified,98844031,477.54,T&S UK - Other Charges
BEIS,UKRI - UKRI,04/11/2020,T&S UK - Other Charges,UKRI - GCRF Delivery,Unspecified,98844032,22.05,T&S UK - Other Charges
BEIS,UKRI - UKRI,04/11/2020,T&S UK - Other Charges,UKRI - Corporate Services,Unspecified,98844033,15.00,T&S UK - Other Charges
BEIS,UKRI - UKRI,05/11/2020,Marketing & PR,UKRI - Internal Communications,Rachel Everington Marketing Ltd,98813807,302.50,Marketing & PR
BEIS,UKRI - UKRI,05/11/2020,Marketing & PR,UKRI - Internal Communications,Rachel Everington Marketing Ltd,98813807,178.75,Marketing & PR
BEIS,UKRI - UKRI,05/11/2020,Advertising & Promotion,UKRI - Communications Content,Unspecified,98832305,375.00,Advertising & Promotion
BEIS,UKRI - UKRI,05/11/2020,Telecoms - Non Capital Hardware Costs,UKRI - Digital Data and Technology BAU Costs,Telefonica UK Ltd (O2),98837203,410.40,Telecoms - Non Capital Hardware Costs
BEIS,UKRI - UKRI,05/11/2020,Telecoms - Non Capital Hardware Costs,UKRI - Digital Data and Technology BAU Costs,Telefonica UK Ltd (O2),98837204,410.40,Telecoms - Non Capital Hardware Costs
BEIS,UKRI - UKRI,05/11/2020,Telecoms - Non Capital Hardware Costs,UKRI - Digital Data and Technology BAU Costs,Telefonica UK Ltd (O2),98837800,410.40,Telecoms - Non Capital Hardware Costs
BEIS,UKRI - UKRI,05/11/2020,Telecoms - Non Capital Hardware Costs,UKRI - Digital Data and Technology BAU Costs,Telefonica UK Ltd (O2),98837908,410.40,Telecoms - Non Capital Hardware Costs
BEIS,UKRI - UKRI,05/11/2020,Advertising & Promotion,UKRI - Communications Content,Unspecified,98838578,375.00,Advertising & Promotion
BEIS,UKRI - UKRI,05/11/2020,Unspecified,UKRI - Digital Data and Technology BAU Costs,Alexander Mann Solutions Ltd,98838861,3150.30,Contract Staff
BEIS,UKRI - UKRI,05/11/2020,Unspecified,UKRI - Digital Data and Technology Project Costs,Alexander Mann Solutions Ltd,98838881,4095.36,Contract Staff
BEIS,UKRI - UKRI,05/11/2020,Unspecified,UKRI - Digital Data and Technology Project Costs,Alexander Mann Solutions Ltd,98838893,4003.56,Contract Staff
BEIS,UKRI - UKRI,05/11/2020,Advertising & Promotion,UKRI - Communications Content,Itsdevelopmental Ltd t/a Insights Media,98838971,400.00,Advertising & Promotion
BEIS,UKRI - UKRI,05/11/2020,Advertising & Promotion,UKRI - Communications Content,Itsdevelopmental Ltd t/a Insights Media,98838997,400.00,Advertising & Promotion
BEIS,UKRI - UKRI,05/11/2020,Advertising & Promotion,UKRI - Communications Content,Unspecified,98839429,440.00,Advertising & Promotion
BEIS,UKRI - UKRI,05/11/2020,Telecoms - Non Capital Hardware Costs,UKRI - Digital Data and Technology Recharges,Telefonica UK Ltd (O2),98840294,416.05,Telecoms - Non Capital Hardware Costs
BEIS,UKRI - UKRI,05/11/2020,Unspecified,"UKRI People, Policies and Management",Ministry of Justice (MOJ),98840567,61343.65,Secondments
BEIS,UKRI - UKRI,05/11/2020,Marketing & PR,UKRI - Communications Content,Unspecified,98841966,900.00,Marketing & PR
BEIS,UKRI - UKRI,05/11/2020,Unspecified,UKRI - Funding Service,Alexander Mann Solutions Ltd,98842144,3911.16,Contract Staff
BEIS,UKRI - UKRI,05/11/2020,Recruitment Costs,UKRI - Funding Service,Alexander Mann Solutions Ltd,98842147,4003.56,Recruitment Costs
BEIS,UKRI - UKRI,05/11/2020,Unspecified,UKRI - Funding Service,Alexander Mann Solutions Ltd,98842149,3150.30,Contract Staff
BEIS,UKRI - UKRI,05/11/2020,Unspecified,UKRI - Funding Service,Alexander Mann Solutions Ltd,98842155,3849.54,Contract Staff
BEIS,UKRI - UKRI,05/11/2020,Unspecified,UKRI - Digital Data and Technology Project Costs,Alexander Mann Solutions Ltd,98842157,3387.66,Contract Staff
BEIS,UKRI - UKRI,05/11/2020,Unspecified,UKRI - Digital Data and Technology Project Costs,Alexander Mann Solutions Ltd,98842162,1847.77,Contract Staff
BEIS,UKRI - UKRI,05/11/2020,Unspecified,UKRI - Digital Data and Technology Project Costs,Alexander Mann Solutions Ltd,98842164,1732.68,Contract Staff
BEIS,UKRI - UKRI,05/11/2020,Unspecified,UKRI - Digital Data and Technology BAU Costs,Alexander Mann Solutions Ltd,98842169,862.30,Contract Staff
BEIS,UKRI - UKRI,05/11/2020,Unspecified,UKRI - Funding Service,Alexander Mann Solutions Ltd,98842170,3150.30,Contract Staff
BEIS,UKRI - UKRI,05/11/2020,Unspecified,UKRI - Digital Data and Technology Project Costs,Alexander Mann Solutions Ltd,98842247,4095.36,Contract Staff
BEIS,UKRI - UKRI,05/11/2020,Unspecified,UKRI - Digital Data and Technology Project Costs,Alexander Mann Solutions Ltd,98842248,2001.78,Contract Staff
BEIS,UKRI - UKRI,05/11/2020,Unspecified,UKRI - Funding Service,Alexander Mann Solutions Ltd,98842251,4139.04,Contract Staff
BEIS,UKRI - UKRI,05/11/2020,Unspecified,UKRI - Digital Data and Technology Project Costs,Alexander Mann Solutions Ltd,98842252,2205.18,Contract Staff
BEIS,UKRI - UKRI,05/11/2020,Staff Training,"Corporate Strategy, Governance and Performance",The Leadership Centre For Local Government,98842420,9480.00,Staff Training
BEIS,UKRI - UKRI,05/11/2020,Advertising & Promotion,UKRI - Communications Content,Unspecified,98842837,200.00,Advertising & Promotion
BEIS,UKRI - UKRI,05/11/2020,Printing & Stationery,UKRI Strategic HR Business Partners,Banner Group Ltd,98842974,21.62,Printing & Stationery
BEIS,UKRI - UKRI,05/11/2020,Recruitment Costs,UKRI People and Organisation Development,Onefix Recruitment Ltd,98842983,820.80,Recruitment Costs
BEIS,UKRI - UKRI,05/11/2020,Staff Training,"UKRI People, Policies and Management",Pearn Kandola LLP,98843010,1560.00,Staff Training
BEIS,UKRI - UKRI,05/11/2020,General Building Maintenance,UKRI - Estates,Ambient Electrical Services Ltd,98843037,384.00,General Building Maintenance
BEIS,UKRI - UKRI,05/11/2020,Unspecified,UKRI - Digital Data and Technology Project Costs,Alexander Mann Solutions Ltd,98843242,2771.70,Contract Staff
BEIS,UKRI - UKRI,05/11/2020,Computer Software Licences,UKRI - Information Governance,Fivium Ltd,98843330,180.00,Computer Software Licences
BEIS,UKRI - UKRI,05/11/2020,Computer Software Licences,UKRI - Information Governance,Fivium Ltd,98843330,3360.00,Computer Software Licences
BEIS,UKRI - UKRI,05/11/2020,Marketing & PR,UKRI - Communications Content,Unspecified,98843350,450.00,Marketing & PR
BEIS,UKRI - UKRI,05/11/2020,Marketing & PR,UKRI - Communications Content,McDaid Public Relations Ltd,98843846,1044.00,Marketing & PR
BEIS,UKRI - UKRI,05/11/2020,Rates,UKRI - Estates,Stamford Street Tenant Ltd T/A Weework,98844159,55344.00,Rates
BEIS,UKRI - UKRI,05/11/2020,Consumables,UKRI - JRS,Premier Paper Group Ltd,98844192,312.96,Consumables
BEIS,UKRI - UKRI,05/11/2020,Consumables,UKRI - JRS,Premier Paper Group Ltd,98844192,-0.03,Consumables
BEIS,UKRI - UKRI,05/11/2020,Consumables,UKRI - JRS,Premier Paper Group Ltd,98844192,-0.01,Consumables
BEIS,UKRI - UKRI,05/11/2020,Unspecified,UKRI - Digital Data and Technology BAU Costs,Capita Business Services Ltd,98844212,11000.40,IT Cloud Services
BEIS,UKRI - UKRI,05/11/2020,Unspecified,UKRI - Digital Data and Technology BAU Costs,Capita Business Services Ltd,98844214,6000.00,IT Cloud Services
BEIS,UKRI - UKRI,05/11/2020,Unspecified,UKRI - Digital Data and Technology BAU Costs,Capita Business Services Ltd,98844215,28680.00,IT Cloud Services
BEIS,UKRI - UKRI,05/11/2020,Unspecified,UKRI - Digital Data and Technology BAU Costs,Capita Business Services Ltd,98844218,5700.00,IT Cloud Services
BEIS,UKRI - UKRI,05/11/2020,Unspecified,UKRI - Digital Data and Technology BAU Costs,Capita Business Services Ltd,98844220,69780.00,IT Cloud Services
BEIS,UKRI - UKRI,05/11/2020,Unspecified,UKRI - Digital Data and Technology BAU Costs,Capita Business Services Ltd,98844221,28680.00,IT Cloud Services
BEIS,UKRI - UKRI,05/11/2020,Unspecified,UKRI - Digital Data and Technology BAU Costs,Capita Business Services Ltd,98844222,3600.00,IT Cloud Services
BEIS,UKRI - UKRI,05/11/2020,Health & Safety (inc. Medicals & Opticians),UKRI People and Organisation Development,Unspecified,98844290,15.00,Health & Safety (inc. Medicals & Opticians)
BEIS,UKRI - UKRI,05/11/2020,Health & Safety (inc. Medicals & Opticians),UKRI - Strategic Finance Business Partners,Unspecified,98844291,35.00,Health & Safety (inc. Medicals & Opticians)
BEIS,UKRI - UKRI,05/11/2020,T&S UK - Other Charges,Research Culture,Unspecified,98844292,46.99,T&S UK - Other Charges
BEIS,UKRI - UKRI,05/11/2020,T&S UK - Other Charges,UKRI - Strategic Finance Business Partners,Unspecified,98844293,8.98,T&S UK - Other Charges
BEIS,UKRI - UKRI,05/11/2020,T&S UK - Other Charges,UKRI - Project Management Office,Unspecified,98844295,185.95,T&S UK - Other Charges
BEIS,UKRI - UKRI,05/11/2020,T&S UK - Other Charges,UKRI - Overseas Office India,Unspecified,98844297,450.00,T&S UK - Other Charges
BEIS,UKRI - UKRI,05/11/2020,T&S UK - Other Charges,UKRI - Risk and Counter Fraud,Unspecified,98844298,76.95,T&S UK - Other Charges
BEIS,UKRI - UKRI,06/11/2020,Consumables,UKRI - JRS,Antalis Ltd t/a Antalis Document Supplies,98842999,669.00,Consumables
BEIS,UKRI - UKRI,06/11/2020,Health & Safety (inc. Medicals & Opticians),UKRI Strategic HR Business Partners,Swindon Occupational Medical Services Ltd,98843192,2100.00,Health & Safety (inc. Medicals & Opticians)
BEIS,UKRI - UKRI,06/11/2020,Health & Safety (inc. Medicals & Opticians),UKRI Strategic HR Business Partners,Swindon Occupational Medical Services Ltd,98843211,1050.00,Health & Safety (inc. Medicals & Opticians)
BEIS,UKRI - UKRI,06/11/2020,Computer Hardware,UKRI - Digital Data and Technology BAU Costs,Academia Ltd,98843936,9616.21,Computer Hardware
BEIS,UKRI - UKRI,06/11/2020,Health & Safety (inc. Medicals & Opticians),UKRI Strategic HR Business Partners,Swindon Occupational Medical Services Ltd,98844172,-3500.00,Health & Safety (inc. Medicals & Opticians)
BEIS,UKRI - UKRI,06/11/2020,Health & Safety (inc. Medicals & Opticians),UKRI Strategic HR Business Partners,Swindon Occupational Medical Services Ltd,98844247,525.00,Health & Safety (inc. Medicals & Opticians)
BEIS,UKRI - UKRI,06/11/2020,Waste Management Services,UKRI - Estates,Restore Datashred Ltd T/A Restore DataShred,98844463,69.51,Waste Management Services
BEIS,UKRI - UKRI,06/11/2020,Mobile Phone Costs,UKRI - Digital Data and Technology Recharges,Vodafone Ltd,98844494,32.40,Mobile Phone Costs
BEIS,UKRI - UKRI,06/11/2020,Mobile Phone Costs,UKRI - Digital Data and Technology BAU Costs,Telefonica UK Ltd (O2),98844500,14.40,Mobile Phone Costs
BEIS,UKRI - UKRI,06/11/2020,Cleaning Services,UKRI - Estates,NESTA,98844526,9021.89,Cleaning Services
BEIS,UKRI - UKRI,06/11/2020,Postage & Courier Services,UKRI - JBOS,CitySprint (UK) Ltd,98844540,228.49,Postage & Courier Services
BEIS,UKRI - UKRI,06/11/2020,Computer Software Licences,UKRI - Digital Data and Technology BAU Costs,Affinity Digital (Technology) Ltd,98844543,11352.60,Computer Software Licences
BEIS,UKRI - EPSRC,06/11/2020,Fees (Including College Members),Business Improvement,Non Employee Expenses Supplier,98845221,320.00,Fees (Including College Members)
BEIS,UKRI - EPSRC,06/11/2020,Fees (Including College Members),Business Improvement,Non Employee Expenses Supplier,98845222,320.00,Fees (Including College Members)
BEIS,UKRI - EPSRC,06/11/2020,Fees (Including College Members),Programme Delivery ICT,Non Employee Expenses Supplier,98845223,480.00,Fees (Including College Members)
BEIS,UKRI - EPSRC,06/11/2020,Fees (Including College Members),Programme Delivery ICT,Non Employee Expenses Supplier,98845224,480.00,Fees (Including College Members)
BEIS,UKRI - EPSRC,06/11/2020,Fees (Including College Members),Programme Delivery ICT,Non Employee Expenses Supplier,98845225,480.00,Fees (Including College Members)
BEIS,UKRI - EPSRC,06/11/2020,Fees (Including College Members),Programme Delivery ICT,Non Employee Expenses Supplier,98845226,480.00,Fees (Including College Members)
BEIS,UKRI - EPSRC,06/11/2020,Fees (Including College Members),Programme Delivery ICT,Non Employee Expenses Supplier,98845227,480.00,Fees (Including College Members)
BEIS,UKRI - EPSRC,06/11/2020,Fees (Including College Members),Programme Delivery ICT,Non Employee Expenses Supplier,98845228,480.00,Fees (Including College Members)
BEIS,UKRI - EPSRC,06/11/2020,Fees (Including College Members),Programme Delivery ICT,Non Employee Expenses Supplier,98845229,480.00,Fees (Including College Members)
BEIS,UKRI - Research England,06/11/2020,Staff Training,RE - Operations and Private Office,Knowledge Train,98845279,598.80,Staff Training
BEIS,UKRI - UKRI,06/11/2020,Advertising & Promotion,UKRI - Communications Content,Stephen Lawson T/A Constructive Coaching,98845286,3825.00,Advertising & Promotion
BEIS,UKRI - UKRI,06/11/2020,Mobile Phone Costs,UKRI - Digital Data and Technology BAU Costs,Telefonica UK Ltd (O2),98845365,2987.41,Mobile Phone Costs
BEIS,UKRI - EPSRC,06/11/2020,Fees (Including College Members),Programme Delivery Infrastructure,Non Employee Expenses Supplier,98845369,240.00,Fees (Including College Members)
BEIS,UKRI - EPSRC,06/11/2020,Fees (Including College Members),Business Improvement,Non Employee Expenses Supplier,98845370,320.00,Fees (Including College Members)
BEIS,UKRI - EPSRC,06/11/2020,Fees (Including College Members),Business Improvement,Non Employee Expenses Supplier,98845371,480.00,Fees (Including College Members)
BEIS,UKRI - EPSRC,06/11/2020,Fees (Including College Members),Business Improvement,Non Employee Expenses Supplier,98845372,80.00,Fees (Including College Members)
BEIS,UKRI - EPSRC,06/11/2020,Fees (Including College Members),Business Improvement,Non Employee Expenses Supplier,98845373,320.00,Fees (Including College Members)
BEIS,UKRI - UKRI,06/11/2020,Mobile Phone Costs,UKRI - Digital Data and Technology BAU Costs,Telefonica UK Ltd (O2),98845375,187.08,Mobile Phone Costs
BEIS,UKRI - UKRI,06/11/2020,Mobile Phone Costs,UKRI - Digital Data and Technology BAU Costs,Telefonica UK Ltd (O2),98845376,5069.94,Mobile Phone Costs
BEIS,UKRI - UKRI,06/11/2020,Mobile Phone Costs,UKRI - Digital Data and Technology BAU Costs,Telefonica UK Ltd (O2),98845378,3464.60,Mobile Phone Costs
BEIS,UKRI - UKRI,06/11/2020,Mobile Phone Costs,UKRI - Digital Data and Technology BAU Costs,Telefonica UK Ltd (O2),98845492,287.98,Mobile Phone Costs
BEIS,UKRI - UKRI,06/11/2020,Mobile Phone Costs,UKRI - Digital Data and Technology BAU Costs,Telefonica UK Ltd (O2),98845494,306.49,Mobile Phone Costs
BEIS,UKRI - UKRI,06/11/2020,Mobile Phone Costs,UKRI - Digital Data and Technology BAU Costs,Telefonica UK Ltd (O2),98845496,1801.14,Mobile Phone Costs
BEIS,UKRI - UKRI,06/11/2020,Mobile Phone Costs,UKRI - Digital Data and Technology BAU Costs,Telefonica UK Ltd (O2),98845506,476.70,Mobile Phone Costs
BEIS,UKRI - UKRI,06/11/2020,Mobile Phone Costs,UKRI - Digital Data and Technology BAU Costs,Telefonica UK Ltd (O2),98845509,284.69,Mobile Phone Costs
BEIS,UKRI - UKRI,06/11/2020,Mobile Phone Costs,UKRI - Digital Data and Technology BAU Costs,Telefonica UK Ltd (O2),98845510,1.16,Mobile Phone Costs
BEIS,UKRI - EPSRC,06/11/2020,T&S UK - Other Charges,EDI and People,Unspecified,98845547,197.73,T&S UK - Other Charges
BEIS,UKRI - UKRI,06/11/2020,T&S UK - Other Charges,UKRI - International,Unspecified,98845548,8.00,T&S UK - Other Charges
BEIS,UKRI - UKRI,06/11/2020,Conferences & Seminars,UKRI - Strategic Finance Business Partners,Unspecified,98845549,125.00,Conferences & Seminars
BEIS,UKRI - UKRI,06/11/2020,T&S UK - Subsistence,UKRI - Communication and Engagement,Unspecified,98845550,45.84,T&S UK - Subsistence
BEIS,UKRI - UKRI,06/11/2020,T&S UK - Other Charges,UKRI - Digital Data and Technology BAU Costs,Unspecified,98845551,168.88,T&S UK - Other Charges
BEIS,UKRI - EPSRC,06/11/2020,Health & Safety (inc. Medicals & Opticians),University Regional Managers,Unspecified,98845552,9.00,Health & Safety (inc. Medicals & Opticians)
BEIS,UKRI - UKRI,06/11/2020,T&S UK - Other Charges,UKRI - Research Funding Support,Unspecified,98845554,110.39,T&S UK - Other Charges
BEIS,UKRI - UKRI,09/11/2020,Printing & Stationery,UKRI Strategic HR Business Partners,RS Components,98843013,28.14,Printing & Stationery
BEIS,UKRI - UKRI,09/11/2020,Unspecified,UKRI - Digital Data and Technology Project Costs,Objective Corporation Ltd,98843454,2011.95,Legal & Professional Services
BEIS,UKRI - UKRI,09/11/2020,IT / Computing Support Services,UKRI - Digital Data and Technology BAU Costs,Sanderson Government and Defence Ltd,98844451,5472.00,IT / Computing Support Services
BEIS,UKRI - UKRI,09/11/2020,Mobile Phone Costs,UKRI - Digital Data and Technology BAU Costs,Telefonica UK Ltd (O2),98844501,30.00,Mobile Phone Costs
BEIS,UKRI - UKRI,09/11/2020,Consultancy Services,UKRI - Information Governance,Lancaster University,98844595,1188.00,Consultancy Services
BEIS,UKRI - UKRI,09/11/2020,Marketing & PR,UKRI - Overseas Office India,Foreign & Commonwealth Office,98844612,742.00,Marketing & PR
BEIS,UKRI - UKRI,09/11/2020,Recruitment Costs,UKRI People and Organisation Development,Agenda Resource Management Ltd,98844695,56.11,Recruitment Costs
BEIS,UKRI - UKRI,09/11/2020,Staff Training,UKRI - Estates,St John Ambulance,98844713,238.80,Staff Training
BEIS,UKRI - UKRI,09/11/2020,Recruitment Costs,UKRI People and Organisation Development,Agenda Resource Management Ltd,98844735,56.11,Recruitment Costs
BEIS,UKRI - UKRI,09/11/2020,Recruitment Costs,UKRI People and Organisation Development,Agenda Resource Management Ltd,98844740,56.11,Recruitment Costs
BEIS,UKRI - UKRI,09/11/2020,Postage & Courier Services,UKRI - Estates,CitySprint (UK) Ltd,98844833,123.18,Postage & Courier Services
BEIS,UKRI - UKRI,09/11/2020,Postage & Courier Services,UKRI - Estates,CitySprint (UK) Ltd,98844833,21.80,Postage & Courier Services
BEIS,UKRI - UKRI,09/11/2020,Postage & Courier Services,UKRI - Estates,CitySprint (UK) Ltd,98844833,28.99,Postage & Courier Services
BEIS,UKRI - UKRI,09/11/2020,Postage & Courier Services,UKRI - Executive Group,CitySprint (UK) Ltd,98844833,26.30,Postage & Courier Services
BEIS,UKRI - UKRI,09/11/2020,Postage & Courier Services,UKRI - Executive Group,CitySprint (UK) Ltd,98844833,5.26,Postage & Courier Services
BEIS,UKRI - UKRI,09/11/2020,Postage & Courier Services,UKRI - Strategy,CitySprint (UK) Ltd,98844833,27.53,Postage & Courier Services
BEIS,UKRI - UKRI,09/11/2020,Postage & Courier Services,UKRI - Strategy,CitySprint (UK) Ltd,98844833,5.51,Postage & Courier Services
BEIS,UKRI - UKRI,09/11/2020,Unspecified,UKRI - JRS,Alexander Mann Solutions Ltd,98844858,2738.50,Contract Staff
BEIS,UKRI - UKRI,09/11/2020,Unspecified,UKRI - Management Reporting,Alexander Mann Solutions Ltd,98844920,789.56,Agency Staff
BEIS,UKRI - UKRI,09/11/2020,Unspecified,UKRI - Digital Data and Technology Project Costs,Alexander Mann Solutions Ltd,98844935,1478.23,Contract Staff
BEIS,UKRI - UKRI,09/11/2020,Unspecified,UKRI - Funding Service,Alexander Mann Solutions Ltd,98844942,1890.18,Contract Staff
BEIS,UKRI - UKRI,09/11/2020,Recruitment Costs,UKRI People and Organisation Development,Alexander Mann Solutions Ltd,98844943,2155.80,Recruitment Costs
BEIS,UKRI - UKRI,09/11/2020,T&S UK - Other Charges,UKRI - Digital Data and Technology BAU Costs,Unspecified,98844982,170.00,T&S UK - Other Charges
BEIS,UKRI - UKRI,09/11/2020,T&S UK - Other Charges,UKRI - Strategic Finance Business Partners,Unspecified,98844984,199.96,T&S UK - Other Charges
BEIS,UKRI - UKRI,09/11/2020,Health & Safety (inc. Medicals & Opticians),UKRI - Digital Data and Technology BAU Costs,Unspecified,98844985,9.00,Health & Safety (inc. Medicals & Opticians)
BEIS,UKRI - UKRI,09/11/2020,UK - Professional Memberships & Subscriptions,UKRI - Financial Accounting,Unspecified,98844987,395.00,UK - Professional Memberships & Subscriptions
BEIS,UKRI - UKRI,09/11/2020,Conferences & Seminars,UKRI - Communications Projects and Services,Scarecrow Events Ltd,98845337,3942.00,Conferences & Seminars
BEIS,UKRI - UKRI,09/11/2020,Provision for Early Retirement Liability,"UKRI People, Policies and Management",Towers Watson Ltd,98845555,14616.00,Provision for Early Retirement Liability
BEIS,UKRI - UKRI,09/11/2020,Printing & Stationery,UKRI - JRS,Antalis Ltd t/a Antalis Document Supplies,98845556,0.01,Printing & Stationery
BEIS,UKRI - UKRI,09/11/2020,Printing & Stationery,UKRI - JRS,Antalis Ltd t/a Antalis Document Supplies,98845556,50.54,Printing & Stationery
BEIS,UKRI - EPSRC,09/11/2020,Fees (Including College Members),Business Improvement,Non Employee Expenses Supplier,98845568,320.00,Fees (Including College Members)
BEIS,UKRI - EPSRC,09/11/2020,Fees (Including College Members),Business Improvement,Non Employee Expenses Supplier,98845569,320.00,Fees (Including College Members)
BEIS,UKRI - EPSRC,09/11/2020,Fees (Including College Members),Business Improvement,Non Employee Expenses Supplier,98845570,320.00,Fees (Including College Members)
BEIS,UKRI - EPSRC,09/11/2020,Fees (Including College Members),EDI and People,Non Employee Expenses Supplier,98845571,80.00,Fees (Including College Members)
BEIS,UKRI - UKRI,09/11/2020,Computer Software Licences,UKRI - Digital Data and Technology BAU Costs,DATABARRACKS LTD,98845578,6840.00,Computer Software Licences
BEIS,UKRI - UKRI,09/11/2020,Hardware/Software Maintenance,UKRI - JRS,Kodak Ltd,98845596,1586.52,Hardware/Software Maintenance
BEIS,UKRI - UKRI,09/11/2020,IT / Computing Support Services,UKRI - Communications Projects and Services,McCann Synergy Ltd,98845719,3504.00,IT / Computing Support Services
BEIS,UKRI - UKRI,09/11/2020,Removal Services,UKRI - Estates,Harrow Green Ltd T/A Restore Harrow Green,98845840,124.80,Removal Services
BEIS,UKRI - UKRI,09/11/2020,Marketing & PR,UKRI - Transformation Communications,CASS Productions Ltd,98845841,4140.00,Marketing & PR
BEIS,UKRI - UKRI,09/11/2020,Computer Software Licences,UKRI - Communications Web and Intranet Service,Unspecified,98845894,18600.00,Computer Software Licences
BEIS,UKRI - UKRI,09/11/2020,Unspecified,UKRI - Management Reporting,Alexander Mann Solutions Ltd,98845901,1260.12,Agency Staff
BEIS,UKRI - UKRI,09/11/2020,Unspecified,UKRI - Strategic Finance Business Partners,Alexander Mann Solutions Ltd,98845906,809.41,Agency Staff
BEIS,UKRI - UKRI,09/11/2020,Unspecified,UKRI - Financial Accounting,Alexander Mann Solutions Ltd,98845910,2217.36,Contract Staff
BEIS,UKRI - UKRI,09/11/2020,Unspecified,UKRI - Financial Accounting,Alexander Mann Solutions Ltd,98845918,3695.58,Contract Staff
BEIS,UKRI - UKRI,09/11/2020,Unspecified,UKRI - Financial Accounting,Alexander Mann Solutions Ltd,98845923,2710.08,Agency Staff
BEIS,UKRI - UKRI,09/11/2020,Unspecified,UKRI - Financial Accounting,Alexander Mann Solutions Ltd,98845924,1890.19,Agency Staff
BEIS,UKRI - UKRI,10/11/2020,Staff Training,UKRI - Communication and Engagement,Luther Pendragon Ltd,98836965,3840.00,Staff Training
BEIS,UKRI - UKRI,10/11/2020,Staff Training,UKRI - Communication and Engagement,Luther Pendragon Ltd,98836969,2400.00,Staff Training
BEIS,UKRI - UKRI,10/11/2020,Unspecified,UKRI - Digital Data and Technology BAU Costs,Hays Specialist Recruitment Ltd,98838293,5886.94,Contract Staff
BEIS,UKRI - UKRI,10/11/2020,Unspecified,UKRI - Financial Accounting,Hays Specialist Recruitment Ltd,98838306,7434.36,Contract Staff
BEIS,UKRI - UKRI,10/11/2020,Unspecified,UKRI - Procurement and Commercial,Hays Specialist Recruitment Ltd,98838306,7434.36,Contract Staff
BEIS,UKRI - UKRI,10/11/2020,T&S UK - Other Charges,UKRI - Research Funding Support,Unspecified,98839771,100.00,T&S UK - Other Charges
BEIS,UKRI - UKRI,10/11/2020,Computer Software,UKRI - Digital Data and Technology BAU Costs,Dell Corporation Ltd,98842711,2239.27,Computer Software
BEIS,UKRI - EPSRC,10/11/2020,T&S UK - Other Charges,Programme Delivery Energy,Unspecified,98844296,276.95,T&S UK - Other Charges
BEIS,UKRI - UKRI,10/11/2020,Recruitment Costs,UKRI People and Organisation Development,Agenda Resource Management Ltd,98844733,153.91,Recruitment Costs
BEIS,UKRI - UKRI,10/11/2020,Recruitment Costs,UKRI - Legal,Agenda Resource Management Ltd,98844734,153.91,Recruitment Costs
BEIS,UKRI - UKRI,10/11/2020,Recruitment Costs,UKRI - Strategic Finance Business Partners,Agenda Resource Management Ltd,98844736,153.91,Recruitment Costs
BEIS,UKRI - UKRI,10/11/2020,Recruitment Costs,UKRI People and Organisation Development,Agenda Resource Management Ltd,98844737,153.91,Recruitment Costs
BEIS,UKRI - UKRI,10/11/2020,Recruitment Costs,UKRI People and Organisation Development,Agenda Resource Management Ltd,98844738,153.91,Recruitment Costs
BEIS,UKRI - UKRI,10/11/2020,Recruitment Costs,UKRI People and Organisation Development,Agenda Resource Management Ltd,98844739,153.91,Recruitment Costs
BEIS,UKRI - UKRI,10/11/2020,Recruitment Costs,UKRI - Legal,Agenda Resource Management Ltd,98844741,153.91,Recruitment Costs
BEIS,UKRI - UKRI,10/11/2020,Recruitment Costs,UKRI - Legal,Agenda Resource Management Ltd,98844743,153.91,Recruitment Costs
BEIS,UKRI - UKRI,10/11/2020,Recruitment Costs,UKRI People and Organisation Development,Agenda Resource Management Ltd,98844744,153.91,Recruitment Costs
BEIS,UKRI - UKRI,10/11/2020,Recruitment Costs,UKRI - Legal,Agenda Resource Management Ltd,98844745,153.91,Recruitment Costs
BEIS,UKRI - UKRI,10/11/2020,Recruitment Costs,UKRI - Procurement and Commercial,Agenda Resource Management Ltd,98844746,153.91,Recruitment Costs
BEIS,UKRI - UKRI,10/11/2020,Recruitment Costs,UKRI People and Organisation Development,Agenda Resource Management Ltd,98844748,153.91,Recruitment Costs
BEIS,UKRI - UKRI,10/11/2020,Health & Safety (inc. Medicals & Opticians),UKRI - Health and Safety,Abbey Business Interiors Ltd,98845055,300.00,Health & Safety (inc. Medicals & Opticians)
BEIS,UKRI - Research England,10/11/2020,Consultancy Services,RE - Knowledge Exchange,SQW Ltd,98845079,22819.20,Consultancy Services
BEIS,UKRI - UKRI,10/11/2020,IT / Computing Support Services,UKRI - Digital Data and Technology BAU Costs,MAYTECH COMMUNICATIONS LTD,98845117,2071.20,IT / Computing Support Services
BEIS,UKRI - UKRI,10/11/2020,Recruitment Costs,UKRI - Project Management Office,Onefix Recruitment Ltd,98845214,150.00,Recruitment Costs
BEIS,UKRI - UKRI,10/11/2020,Staff Training,UKRI - Procurement and Commercial,MARVELLOUS MINDS LTD,98845655,360.00,Staff Training
BEIS,UKRI - UKRI,10/11/2020,General Building Maintenance,UKRI - JBOS,Statius Management Services Ltd,98845705,1438.52,General Building Maintenance
BEIS,UKRI - UKRI,10/11/2020,Marketing & PR,UKRI - Transformation,The Fifth Business (Scotland) Ltd,98845788,9217.50,Marketing & PR
BEIS,UKRI - UKRI,10/11/2020,Consumables,UKRI - JRS,Ricoh Uk Ltd,98845988,306.06,Consumables
BEIS,UKRI - UKRI,10/11/2020,Consumables,UKRI - JRS,Ricoh Uk Ltd,98845988,153.02,Consumables
BEIS,UKRI - UKRI,10/11/2020,Consumables,UKRI - JRS,Ricoh Uk Ltd,98845988,153.02,Consumables
BEIS,UKRI - UKRI,10/11/2020,Consumables,UKRI - JRS,Ricoh Uk Ltd,98845988,153.02,Consumables
BEIS,UKRI - Research England,10/11/2020,Unspecified,RE - Research Excellence Framework (REF),Muya Research Management Ltd,98846023,875.00,Council & Committee Honoraria
BEIS,UKRI - UKRI,10/11/2020,Unspecified,Horizon Europe Short Term Transitions Arrangement,Alexander Mann Solutions Ltd,98846094,2394.24,Agency Staff
BEIS,UKRI - UKRI,10/11/2020,Staff Training,"UKRI People, Policies and Management",ASK Europe PLC,98846470,171.60,Staff Training
BEIS,UKRI - UKRI,10/11/2020,Staff Training,"UKRI People, Policies and Management",Pearn Kandola LLP,98846492,1560.00,Staff Training
BEIS,UKRI - UKRI,10/11/2020,T&S UK - Other Charges,UKRI People and Organisation Development,Unspecified,98846519,455.71,T&S UK - Other Charges
BEIS,UKRI - EPSRC,10/11/2020,T&S UK - Other Charges,Programme Delivery Physical Sciences,Unspecified,98846522,184.99,T&S UK - Other Charges
BEIS,UKRI - Research England,10/11/2020,Health & Safety (inc. Medicals & Opticians),RE - Research,Unspecified,98846523,12.99,Health & Safety (inc. Medicals & Opticians)
BEIS,UKRI - EPSRC,10/11/2020,T&S UK - Other Charges,Programme Delivery Engineering,Unspecified,98846525,232.80,T&S UK - Other Charges
BEIS,UKRI - UKRI,10/11/2020,T&S UK - Other Charges,UKRI - Strategic Finance Business Partners,Unspecified,98846526,154.82,T&S UK - Other Charges
BEIS,UKRI - UKRI,10/11/2020,T&S UK - Other Charges,UKRI - International Communications,Unspecified,98846527,196.53,T&S UK - Other Charges
BEIS,UKRI - Research England,10/11/2020,T&S UK - Other Charges,RE - Operations and Private Office,Unspecified,98846529,56.99,T&S UK - Other Charges
BEIS,UKRI - UKRI,10/11/2020,T&S UK - Other Charges,UKRI - Risk and Counter Fraud,Unspecified,98846530,45.99,T&S UK - Other Charges
BEIS,UKRI - EPSRC,10/11/2020,Health & Safety (inc. Medicals & Opticians),EDI and People,Unspecified,98846531,8.00,Health & Safety (inc. Medicals & Opticians)
BEIS,UKRI - EPSRC,10/11/2020,Health & Safety (inc. Medicals & Opticians),Programme Delivery Engineering,Unspecified,98846532,12.99,Health & Safety (inc. Medicals & Opticians)
BEIS,UKRI - UKRI,10/11/2020,T&S UK - Other Charges,UKRI People and Organisation Development,Unspecified,98846533,258.91,T&S UK - Other Charges
BEIS,UKRI - UKRI,10/11/2020,T&S UK - Other Charges,UKRI People and Organisation Development,Unspecified,98846534,28.50,T&S UK - Other Charges
BEIS,UKRI - UKRI,10/11/2020,T&S UK - Other Charges,UKRI Strategic HR Business Partners,Unspecified,98846535,15.95,T&S UK - Other Charges
BEIS,UKRI - EPSRC,10/11/2020,Financial Services,PSU Finance,Royal Bank of Scotland plc/Natwest,98846657,200.00,Financial Services
BEIS,UKRI - EPSRC,11/11/2020,Unspecified,Governance and Planning,Hays Specialist Recruitment Ltd,98832452,368.47,Agency Staff
BEIS,UKRI - UKRI,11/11/2020,T&S UK - Other Charges,UKRI People and Organisation Development,Unspecified,98835753,115.57,T&S UK - Other Charges
BEIS,UKRI - UKRI,11/11/2020,Unspecified,UKRI - Assurance,Cambridge Risk Solutions Ltd,98836017,3150.00,Legal & Professional Services
BEIS,UKRI - UKRI,11/11/2020,Health & Safety (inc. Medicals & Opticians),"UKRI - Data Policy, Governance and MI",Unspecified,98839765,13.99,Health & Safety (inc. Medicals & Opticians)
BEIS,UKRI - UKRI,11/11/2020,T&S UK - Other Charges,"Corporate Strategy, Governance and Performance",Unspecified,98841423,176.97,T&S UK - Other Charges
BEIS,UKRI - UKRI,11/11/2020,T&S UK - Other Charges,UKRI - Strategy,Unspecified,98844294,364.78,T&S UK - Other Charges
BEIS,UKRI - UKRI,11/11/2020,Unspecified,UKRI - Funding Service,Alexander Mann Solutions Ltd,98844930,3150.30,Contract Staff
BEIS,UKRI - UKRI,11/11/2020,Unspecified,UKRI - Funding Service,Alexander Mann Solutions Ltd,98844932,3104.28,Contract Staff
BEIS,UKRI - UKRI,11/11/2020,Unspecified,UKRI - Digital Data and Technology Project Costs,Alexander Mann Solutions Ltd,98844934,4095.36,Contract Staff
BEIS,UKRI - UKRI,11/11/2020,Unspecified,UKRI - Digital Data and Technology Project Costs,Alexander Mann Solutions Ltd,98844939,1323.11,Contract Staff
BEIS,UKRI - UKRI,11/11/2020,Unspecified,UKRI - Funding Service,Alexander Mann Solutions Ltd,98844945,3849.54,Contract Staff
BEIS,UKRI - UKRI,11/11/2020,Unspecified,UKRI - Digital Data and Technology BAU Costs,Generation Digital Ltd,98845068,59983.20,IT Cloud Services
BEIS,UKRI - UKRI,11/11/2020,Unspecified,UKRI - Funding Service,Alexander Mann Solutions Ltd,98845898,3911.16,Contract Staff
BEIS,UKRI - UKRI,11/11/2020,Unspecified,UKRI - Funding Service,Alexander Mann Solutions Ltd,98845902,3603.20,Contract Staff
BEIS,UKRI - UKRI,11/11/2020,Unspecified,UKRI - Digital Data and Technology Project Costs,Alexander Mann Solutions Ltd,98845905,3387.66,Contract Staff
BEIS,UKRI - UKRI,11/11/2020,Unspecified,UKRI - Funding Service,Alexander Mann Solutions Ltd,98845916,2992.80,Contract Staff
BEIS,UKRI - UKRI,11/11/2020,Unspecified,UKRI - Digital Data and Technology BAU Costs,Alexander Mann Solutions Ltd,98845917,3150.30,Contract Staff
BEIS,UKRI - EPSRC,11/11/2020,Fees (Including College Members),EDI and People,Non Employee Expenses Supplier,98846198,80.00,Fees (Including College Members)
BEIS,UKRI - EPSRC,11/11/2020,Fees (Including College Members),EDI and People,Non Employee Expenses Supplier,98846199,80.00,Fees (Including College Members)
BEIS,UKRI - EPSRC,11/11/2020,Fees (Including College Members),Business Improvement,Non Employee Expenses Supplier,98846200,320.00,Fees (Including College Members)
BEIS,UKRI - EPSRC,11/11/2020,Fees (Including College Members),Business Improvement,Non Employee Expenses Supplier,98846201,320.00,Fees (Including College Members)
BEIS,UKRI - EPSRC,11/11/2020,Fees (Including College Members),Programme Delivery Physical Sciences,Non Employee Expenses Supplier,98846202,320.00,Fees (Including College Members)
BEIS,UKRI - EPSRC,11/11/2020,Fees (Including College Members),Business Improvement,Non Employee Expenses Supplier,98846811,320.00,Fees (Including College Members)
BEIS,UKRI - EPSRC,11/11/2020,Fees (Including College Members),Business Improvement,Non Employee Expenses Supplier,98846812,320.00,Fees (Including College Members)
BEIS,UKRI - EPSRC,11/11/2020,Fees (Including College Members),Business Improvement,Non Employee Expenses Supplier,98846813,320.00,Fees (Including College Members)
BEIS,UKRI - EPSRC,11/11/2020,Fees (Including College Members),Business Improvement,Non Employee Expenses Supplier,98846814,320.00,Fees (Including College Members)
BEIS,UKRI - UKRI,11/11/2020,General Building Maintenance,UKRI - Digital Data and Technology Project Costs,Ogel IT Ltd,98847260,10800.96,General Building Maintenance
BEIS,UKRI - UKRI,11/11/2020,Computer Software Licences,UKRI - Digital Data and Technology Project Costs,Ogel IT Ltd,98847262,7565.33,Computer Software Licences
BEIS,UKRI - UKRI,11/11/2020,Fees (Including College Members),UKRI - GCRF Challenge Leaders,Non Employee Expenses Supplier,98847309,59.44,Fees (Including College Members)
BEIS,UKRI - UKRI,11/11/2020,Recruitment Costs,UKRI People and Organisation Development,Onefix Recruitment Ltd,98847320,510.00,Recruitment Costs
BEIS,UKRI - UKRI,11/11/2020,Recruitment Costs,UKRI People and Organisation Development,Onefix Recruitment Ltd,98847321,510.00,Recruitment Costs
BEIS,UKRI - UKRI,11/11/2020,Recruitment Costs,UKRI People and Organisation Development,Onefix Recruitment Ltd,98847322,360.00,Recruitment Costs
BEIS,UKRI - UKRI,11/11/2020,Recruitment Costs,UKRI People and Organisation Development,Onefix Recruitment Ltd,98847322,150.00,Recruitment Costs
BEIS,UKRI - EPSRC,11/11/2020,Recruitment Costs,Governance and Planning,Onefix Recruitment Ltd,98847323,150.00,Recruitment Costs
BEIS,UKRI - UKRI,11/11/2020,Unspecified,UKRI - JRS,Winwood Haines Ltd,98847387,150.00,Patents/ Non Computer Licences
BEIS,UKRI - UKRI,11/11/2020,Staff Training,"UKRI People, Policies and Management",ASK Europe PLC,98847395,1080.00,Staff Training
BEIS,UKRI - EPSRC,11/11/2020,Health & Safety (inc. Medicals & Opticians),Programme Delivery Manufacturing,Unspecified,98847404,12.99,Health & Safety (inc. Medicals & Opticians)
BEIS,UKRI - UKRI,11/11/2020,T&S UK - Mileage,UKRI - Communications Projects and Services,Unspecified,98847405,70.20,T&S UK - Mileage
BEIS,UKRI - UKRI,11/11/2020,T&S UK - Other Charges,UKRI - Communications Projects and Services,Unspecified,98847405,19.99,T&S UK - Other Charges
BEIS,UKRI - UKRI,11/11/2020,T&S UK - Vehicle Hire,UKRI - Communications Projects and Services,Unspecified,98847405,10.00,T&S UK - Vehicle Hire
BEIS,UKRI - EPSRC,11/11/2020,T&S UK - Other Charges,Circular Economy OpEx,Unspecified,98847407,227.14,T&S UK - Other Charges
BEIS,UKRI - UKRI,11/11/2020,T&S UK - Other Charges,UKRI - International,Unspecified,98847408,6.87,T&S UK - Other Charges
BEIS,UKRI - EPSRC,11/11/2020,T&S UK - Other Charges,Programme Delivery Quantum Technology,Unspecified,98847410,47.94,T&S UK - Other Charges
BEIS,UKRI - EPSRC,11/11/2020,T&S UK - Other Charges,Programme Delivery Quantum Technology,Unspecified,98847411,7.99,T&S UK - Other Charges
BEIS,UKRI - UKRI,11/11/2020,T&S UK - Mileage,UKRI - Corporate Services,Unspecified,98847413,31.50,T&S UK - Mileage
BEIS,UKRI - UKRI,11/11/2020,T&S UK - Other Charges,UKRI - Corporate Services,Unspecified,98847413,12.70,T&S UK - Other Charges
BEIS,UKRI - UKRI,11/11/2020,T&S UK - Other Charges,UKRI Strategic HR Business Partners,Unspecified,98847414,38.48,T&S UK - Other Charges
BEIS,UKRI - UKRI,11/11/2020,T&S UK - Other Charges,UKRI - Information Governance,Unspecified,98847417,116.94,T&S UK - Other Charges
BEIS,UKRI - UKRI,11/11/2020,Health & Safety (inc. Medicals & Opticians),UKRI - GCRF Delivery,Unspecified,98847418,20.48,Health & Safety (inc. Medicals & Opticians)
BEIS,UKRI - Research England,11/11/2020,T&S UK - Other Charges,RE - Knowledge Exchange,Unspecified,98847419,148.99,T&S UK - Other Charges
BEIS,UKRI - UKRI,11/11/2020,Books Professional Journals & Guides,UKRI - Strategic Finance Business Partners,Oxford Learning Online Ltd,98848452,100.00,Books Professional Journals & Guides
BEIS,UKRI - UKRI,11/11/2020,Electricity,UKRI - JBOS,EDF Energy,98848462,30028.05,Electricity
BEIS,UKRI - UKRI,11/11/2020,Telecoms - Non Capital Hardware Costs,UKRI - Digital Data and Technology BAU Costs,Telefonica UK Ltd (O2),98848513,410.40,Telecoms - Non Capital Hardware Costs
BEIS,UKRI - UKRI,11/11/2020,Advertising & Promotion,UKRI - Communications Content,Impact Media Specialists Ltd,98848516,420.00,Advertising & Promotion
BEIS,UKRI - UKRI,11/11/2020,Staff Training,UKRI - Human Resources Support,TRAINING BYTE SIZE LTD,98848527,357.60,Staff Training
BEIS,UKRI - UKRI,11/11/2020,Unspecified,UKRI - Digital Data and Technology Project Costs,Centiant Intl Ltd,98848536,1166.40,Networking Maintenance
BEIS,UKRI - EPSRC,12/11/2020,T&S UK - Subsistence,EPSRC Corporate Services,Unspecified,98338915,19.50,T&S UK - Subsistence
BEIS,UKRI - EPSRC,12/11/2020,T&S UK - Subsistence,EPSRC Corporate Services,Unspecified,98338915,5.00,T&S UK - Subsistence
BEIS,UKRI - UKRI,12/11/2020,T&S UK - Mileage,UKRI - Public Engagement,Unspecified,98595504,35.10,T&S UK - Mileage
BEIS,UKRI - UKRI,12/11/2020,T&S UK - Mileage,UKRI - Public Engagement,Unspecified,98600955,45.00,T&S UK - Mileage
BEIS,UKRI - UKRI,12/11/2020,Health & Safety (inc. Medicals & Opticians),UKRI - Health and Safety,Posturite Ltd,98748048,2400.00,Health & Safety (inc. Medicals & Opticians)
BEIS,UKRI - UKRI,12/11/2020,T&S UK - Public Transport,UKRI - Public Engagement,Unspecified,98831428,17.30,T&S UK - Public Transport
BEIS,UKRI - UKRI,12/11/2020,Staff Training,"UKRI People, Policies and Management",Coaching Focus Ltd,98838089,1440.00,Staff Training
BEIS,UKRI - UKRI,12/11/2020,Staff Training,"UKRI People, Policies and Management",Coaching Focus Ltd,98838089,35.28,Staff Training
BEIS,UKRI - EPSRC,12/11/2020,T&S UK - Other Charges,EPSRC Corporate Services,Unspecified,98842344,144.99,T&S UK - Other Charges
BEIS,UKRI - UKRI,12/11/2020,Unspecified,UKRI - Funding Service,Made Tech Ltd,98844685,35521.26,Legal & Professional Services
BEIS,UKRI - UKRI,12/11/2020,Marketing & PR,UKRI - Communications Themes and Partnerships,Big Voice Communications Ltd,98845298,2362.50,Marketing & PR
BEIS,UKRI - EPSRC,12/11/2020,Unspecified,Balance Sheet,HM Revenue & Customs,98845966,3526.50,PAYE Payable Salaries
BEIS,UKRI - EPSRC,12/11/2020,Unspecified,Balance Sheet,HM Revenue & Customs,98845967,713.19,NI Payable Salaries
BEIS,UKRI - EPSRC,12/11/2020,Unspecified,EPSRC Corporate Services,HM Revenue & Customs,98845968,51.00,Apprenticeship Levy
BEIS,UKRI - UKRI,12/11/2020,Computer Software Licences,UKRI - Digital Data and Technology BAU Costs,Softcat plc,98846503,5261.70,Computer Software Licences
BEIS,UKRI - UKRI,12/11/2020,Staff Training,"UKRI People, Policies and Management",Visionsports Ltd,98847386,420.00,Staff Training
BEIS,UKRI - UKRI,12/11/2020,Advertising & Promotion,UKRI - Communications Content,Unspecified,98847393,500.00,Advertising & Promotion
BEIS,UKRI - UKRI,12/11/2020,Advertising & Promotion,UKRI - Communications Content,Unspecified,98847394,500.00,Advertising & Promotion
BEIS,UKRI - UKRI,12/11/2020,Computer Software Licences,UKRI - Digital Data and Technology BAU Costs,Phoenix Software Ltd,98847478,3343.80,Computer Software Licences
BEIS,UKRI - UKRI,12/11/2020,General Building Maintenance,UKRI - Estates,3MSE Ltd,98847506,594.00,General Building Maintenance
BEIS,UKRI - UKRI,12/11/2020,Corporate Events,UKRI - Communications Projects and Services,Scarecrow Events Ltd,98847517,474.00,Corporate Events
BEIS,UKRI - EPSRC,12/11/2020,Fees (Including College Members),EDI and People,Non Employee Expenses Supplier,98847540,80.00,Fees (Including College Members)
BEIS,UKRI - EPSRC,12/11/2020,Fees (Including College Members),Programme Delivery Digital Economy,Non Employee Expenses Supplier,98847541,160.00,Fees (Including College Members)
BEIS,UKRI - EPSRC,12/11/2020,Fees (Including College Members),Business Improvement,Non Employee Expenses Supplier,98847542,320.00,Fees (Including College Members)
BEIS,UKRI - UKRI,12/11/2020,Unspecified,UKRI People and Organisation Development,Allen Lane Ltd,98847554,25875.00,Contract Staff
BEIS,UKRI - UKRI,12/11/2020,Unspecified,UKRI People and Organisation Development,Allen Lane Ltd,98847556,21627.00,Contract Staff
BEIS,UKRI - UKRI,12/11/2020,T&S UK - Other Charges,UKRI - Information Governance,Unspecified,98847722,109.98,T&S UK - Other Charges
BEIS,UKRI - UKRI,12/11/2020,T&S UK - Other Charges,UKRI - Information Governance,Unspecified,98847723,176.99,T&S UK - Other Charges
BEIS,UKRI - UKRI,12/11/2020,UK - Professional Memberships & Subscriptions,"UKRI People, Policies and Management",Unspecified,98847724,190.00,UK - Professional Memberships & Subscriptions
BEIS,UKRI - EPSRC,12/11/2020,T&S UK - Other Charges,EPSRC Corporate Services,Unspecified,98847725,13.80,T&S UK - Other Charges
BEIS,UKRI - UKRI,12/11/2020,T&S UK - Other Charges,UKRI Strategic HR Business Partners,Unspecified,98847728,211.99,T&S UK - Other Charges
BEIS,UKRI - UKRI,12/11/2020,Health & Safety (inc. Medicals & Opticians),UKRI Strategic HR Business Partners,Unspecified,98847729,25.00,Health & Safety (inc. Medicals & Opticians)
BEIS,UKRI - UKRI,12/11/2020,T&S UK - Other Charges,UKRI - Newton Delivery,Unspecified,98847730,19.99,T&S UK - Other Charges
BEIS,UKRI - UKRI,12/11/2020,T&S UK - Other Charges,UKRI People and Organisation Development,Unspecified,98847731,47.47,T&S UK - Other Charges
BEIS,UKRI - UKRI,12/11/2020,Health & Safety (inc. Medicals & Opticians),UKRI - Research Funding Support,Unspecified,98847732,8.00,Health & Safety (inc. Medicals & Opticians)
BEIS,UKRI - UKRI,12/11/2020,Marketing & PR,UKRI - External Communications,Escott Hunt Ltd,98848576,540.00,Marketing & PR
BEIS,UKRI - UKRI,12/11/2020,Recruitment Costs,UKRI People and Organisation Development,Onefix Recruitment Ltd,98848648,300.00,Recruitment Costs
BEIS,UKRI - EPSRC,12/11/2020,Fees (Including College Members),Business Improvement,Non Employee Expenses Supplier,98848652,320.00,Fees (Including College Members)
BEIS,UKRI - EPSRC,12/11/2020,Fees (Including College Members),Business Improvement,Non Employee Expenses Supplier,98848653,80.00,Fees (Including College Members)
BEIS,UKRI - EPSRC,12/11/2020,Fees (Including College Members),Business Improvement,Non Employee Expenses Supplier,98848654,80.00,Fees (Including College Members)
BEIS,UKRI - UKRI,12/11/2020,T&S Overseas - Accommodation,UKRI - Executive Group,Corporate Travel Management (North) Ltd,98848680,0.80,T&S Overseas - Accommodation
BEIS,UKRI - UKRI,12/11/2020,T&S Overseas - Accommodation,UKRI - Executive Group,Corporate Travel Management (North) Ltd,98848680,55.24,T&S Overseas - Accommodation
BEIS,UKRI - UKRI,12/11/2020,T&S Overseas - Accommodation,UKRI - Executive Group,Corporate Travel Management (North) Ltd,98848680,0.16,T&S Overseas - Accommodation
BEIS,UKRI - UKRI,12/11/2020,T&S Overseas - Flights,UKRI - BEIS ODA,Corporate Travel Management (North) Ltd,98848680,9.50,T&S Overseas - Flights
BEIS,UKRI - UKRI,12/11/2020,T&S Overseas - Flights,UKRI - BEIS ODA,Corporate Travel Management (North) Ltd,98848680,46.61,T&S Overseas - Flights
BEIS,UKRI - UKRI,12/11/2020,T&S Overseas - Flights,UKRI - Digital Data and Technology BAU Costs,Corporate Travel Management (North) Ltd,98848680,2.50,T&S Overseas - Flights
BEIS,UKRI - UKRI,12/11/2020,T&S Overseas - Flights,UKRI - Digital Data and Technology BAU Costs,Corporate Travel Management (North) Ltd,98848680,88.12,T&S Overseas - Flights
BEIS,UKRI - UKRI,12/11/2020,T&S UK - Accommodation,UKRI - Digital Data and Technology BAU Costs,Corporate Travel Management (North) Ltd,98848680,2.00,T&S UK - Accommodation
BEIS,UKRI - UKRI,12/11/2020,T&S UK - Accommodation,UKRI - Digital Data and Technology BAU Costs,Corporate Travel Management (North) Ltd,98848680,0.40,T&S UK - Accommodation
BEIS,UKRI - UKRI,12/11/2020,T&S UK - Accommodation,UKRI - Newton Delivery,Corporate Travel Management (North) Ltd,98848680,1.00,T&S UK - Accommodation
BEIS,UKRI - UKRI,12/11/2020,T&S UK - Accommodation,UKRI - Newton Delivery,Corporate Travel Management (North) Ltd,98848680,781.64,T&S UK - Accommodation
BEIS,UKRI - UKRI,12/11/2020,T&S UK - Accommodation,UKRI - Newton Delivery,Corporate Travel Management (North) Ltd,98848680,0.20,T&S UK - Accommodation
BEIS,UKRI - UKRI,12/11/2020,T&S UK - Flights,UKRI - Information Governance,Corporate Travel Management (North) Ltd,98848680,4.50,T&S UK - Flights
BEIS,UKRI - UKRI,12/11/2020,T&S UK - Flights,UKRI - Information Governance,Corporate Travel Management (North) Ltd,98848680,47.98,T&S UK - Flights
BEIS,UKRI - UKRI,12/11/2020,T&S UK - Public Transport,UKRI - Communication and Engagement,Corporate Travel Management (North) Ltd,98848680,0.25,T&S UK - Public Transport
BEIS,UKRI - UKRI,12/11/2020,T&S UK - Public Transport,UKRI - Communication and Engagement,Corporate Travel Management (North) Ltd,98848680,77.25,T&S UK - Public Transport
BEIS,UKRI - UKRI,12/11/2020,T&S UK - Public Transport,UKRI - Communication and Engagement,Corporate Travel Management (North) Ltd,98848680,0.25,T&S UK - Public Transport
BEIS,UKRI - UKRI,12/11/2020,T&S UK - Public Transport,UKRI - Communication and Engagement,Corporate Travel Management (North) Ltd,98848680,109.00,T&S UK - Public Transport
BEIS,UKRI - UKRI,12/11/2020,T&S UK - Public Transport,"UKRI - Data Policy, Governance and MI",Corporate Travel Management (North) Ltd,98848680,0.25,T&S UK - Public Transport
BEIS,UKRI - UKRI,12/11/2020,T&S UK - Public Transport,"UKRI - Data Policy, Governance and MI",Corporate Travel Management (North) Ltd,98848680,67.40,T&S UK - Public Transport
BEIS,UKRI - UKRI,12/11/2020,T&S UK - Public Transport,UKRI - Digital Data and Technology BAU Costs,Corporate Travel Management (North) Ltd,98848680,0.25,T&S UK - Public Transport
BEIS,UKRI - UKRI,12/11/2020,T&S UK - Public Transport,UKRI - Digital Data and Technology BAU Costs,Corporate Travel Management (North) Ltd,98848680,109.50,T&S UK - Public Transport
BEIS,UKRI - UKRI,12/11/2020,T&S UK - Public Transport,UKRI - Executive Group,Corporate Travel Management (North) Ltd,98848680,0.25,T&S UK - Public Transport
BEIS,UKRI - UKRI,12/11/2020,T&S UK - Public Transport,UKRI - Executive Group,Corporate Travel Management (North) Ltd,98848680,86.50,T&S UK - Public Transport
BEIS,UKRI - UKRI,12/11/2020,T&S UK - Public Transport,UKRI - Executive Group,Corporate Travel Management (North) Ltd,98848680,0.25,T&S UK - Public Transport
BEIS,UKRI - UKRI,12/11/2020,T&S UK - Public Transport,UKRI - Executive Group,Corporate Travel Management (North) Ltd,98848680,58.10,T&S UK - Public Transport
BEIS,UKRI - UKRI,12/11/2020,T&S UK - Public Transport,UKRI - Procurement and Commercial,Corporate Travel Management (North) Ltd,98848680,0.25,T&S UK - Public Transport
BEIS,UKRI - UKRI,12/11/2020,T&S UK - Public Transport,UKRI - Procurement and Commercial,Corporate Travel Management (North) Ltd,98848680,79.30,T&S UK - Public Transport
BEIS,UKRI - EPSRC,12/11/2020,Unspecified,Balance Sheet,HM Revenue & Customs,98848687,86947.36,PAYE Payable Salaries
BEIS,UKRI - EPSRC,12/11/2020,Unspecified,Balance Sheet,HM Revenue & Customs,98848688,119956.99,NI Payable Salaries
BEIS,UKRI - EPSRC,12/11/2020,Unspecified,Balance Sheet,HM Revenue & Customs,98848689,8549.00,Student Loans
BEIS,UKRI - EPSRC,12/11/2020,Unspecified,EPSRC Corporate Services,HM Revenue & Customs,98848690,3410.00,Apprenticeship Levy
BEIS,UKRI - UKRI,12/11/2020,Non-staff travel and subsistance,UKRI - GCRF Delivery,Corporate Travel Management (North) Ltd,98848710,7.00,Non-staff travel and subsistance
BEIS,UKRI - Research England,12/11/2020,T&S Overseas - Flights,RE - Executive Group,Corporate Travel Management (North) Ltd,98848710,7.00,T&S Overseas - Flights
BEIS,UKRI - Research England,12/11/2020,T&S Overseas - Flights,RE - Executive Group,Corporate Travel Management (North) Ltd,98848710,219.00,T&S Overseas - Flights
BEIS,UKRI - Research England,12/11/2020,T&S Overseas - Flights,RE - Executive Group,Corporate Travel Management (North) Ltd,98848710,9.50,T&S Overseas - Flights
BEIS,UKRI - Research England,12/11/2020,T&S Overseas - Flights,RE - Executive Group,Corporate Travel Management (North) Ltd,98848710,1863.90,T&S Overseas - Flights
BEIS,UKRI - UKRI,12/11/2020,T&S Overseas - Flights,UKRI - GCRF Delivery,Corporate Travel Management (North) Ltd,98848710,4.50,T&S Overseas - Flights
BEIS,UKRI - UKRI,12/11/2020,T&S Overseas - Flights,UKRI - GCRF Delivery,Corporate Travel Management (North) Ltd,98848710,100.00,T&S Overseas - Flights
BEIS,UKRI - UKRI,12/11/2020,T&S Overseas - Flights,UKRI - International,Corporate Travel Management (North) Ltd,98848710,60.00,T&S Overseas - Flights
BEIS,UKRI - UKRI,12/11/2020,T&S Overseas - Flights,UKRI - Newton Programme,Corporate Travel Management (North) Ltd,98848710,452.60,T&S Overseas - Flights
BEIS,UKRI - UKRI,12/11/2020,T&S Overseas - Flights,UKRI - Newton Programme,Corporate Travel Management (North) Ltd,98848710,391.30,T&S Overseas - Flights
BEIS,UKRI - UKRI,12/11/2020,T&S Overseas - Flights,UKRI - UKRO,Corporate Travel Management (North) Ltd,98848710,4.50,T&S Overseas - Flights
BEIS,UKRI - UKRI,12/11/2020,T&S Overseas - Flights,UKRI - UKRO,Corporate Travel Management (North) Ltd,98848710,4.50,T&S Overseas - Flights
BEIS,UKRI - UKRI,12/11/2020,T&S Overseas - Flights,UKRI - UKRO,Corporate Travel Management (North) Ltd,98848710,184.00,T&S Overseas - Flights
BEIS,UKRI - UKRI,12/11/2020,T&S Overseas - Other Charges,UKRI - Overseas Office USA,Corporate Travel Management (North) Ltd,98848710,2.50,T&S Overseas - Other Charges
BEIS,UKRI - UKRI,12/11/2020,T&S Overseas - Other Charges,UKRI - Overseas Office USA,Corporate Travel Management (North) Ltd,98848710,1040.97,T&S Overseas - Other Charges
BEIS,UKRI - UKRI,12/11/2020,T&S Overseas - Public Transport,UKRI - UKRO,Corporate Travel Management (North) Ltd,98848710,4.50,T&S Overseas - Public Transport
BEIS,UKRI - UKRI,12/11/2020,T&S Overseas - Public Transport,UKRI - UKRO,Corporate Travel Management (North) Ltd,98848710,97.00,T&S Overseas - Public Transport
BEIS,UKRI - UKRI,12/11/2020,T&S UK - Accommodation,UKRI - Risk and Counter Fraud,Corporate Travel Management (North) Ltd,98848710,0.80,T&S UK - Accommodation
BEIS,UKRI - UKRI,12/11/2020,T&S UK - Accommodation,UKRI - Risk and Counter Fraud,Corporate Travel Management (North) Ltd,98848710,2.00,T&S UK - Accommodation
BEIS,UKRI - UKRI,12/11/2020,T&S UK - Accommodation,UKRI - Risk and Counter Fraud,Corporate Travel Management (North) Ltd,98848710,162.90,T&S UK - Accommodation
BEIS,UKRI - UKRI,12/11/2020,T&S UK - Accommodation,UKRI - Risk and Counter Fraud,Corporate Travel Management (North) Ltd,98848710,0.80,T&S UK - Accommodation
BEIS,UKRI - UKRI,12/11/2020,T&S UK - Accommodation,UKRI - Risk and Counter Fraud,Corporate Travel Management (North) Ltd,98848710,220.00,T&S UK - Accommodation
BEIS,UKRI - UKRI,12/11/2020,T&S UK - Accommodation,UKRI - Risk and Counter Fraud,Corporate Travel Management (North) Ltd,98848710,0.80,T&S UK - Accommodation
BEIS,UKRI - UKRI,12/11/2020,T&S UK - Accommodation,UKRI - Risk and Counter Fraud,Corporate Travel Management (North) Ltd,98848710,220.00,T&S UK - Accommodation
BEIS,UKRI - UKRI,12/11/2020,T&S UK - Accommodation,UKRI - Risk and Counter Fraud,Corporate Travel Management (North) Ltd,98848710,0.80,T&S UK - Accommodation
BEIS,UKRI - UKRI,12/11/2020,T&S UK - Accommodation,UKRI - Risk and Counter Fraud,Corporate Travel Management (North) Ltd,98848710,89.09,T&S UK - Accommodation
BEIS,UKRI - UKRI,12/11/2020,T&S UK - Accommodation,UKRI - Risk and Counter Fraud,Corporate Travel Management (North) Ltd,98848710,1.04,T&S UK - Accommodation
BEIS,UKRI - UKRI,12/11/2020,T&S UK - Accommodation,UKRI - Communications Content,Corporate Travel Management (North) Ltd,98848710,2.00,T&S UK - Accommodation
BEIS,UKRI - UKRI,12/11/2020,T&S UK - Accommodation,UKRI - Communications Content,Corporate Travel Management (North) Ltd,98848710,120.00,T&S UK - Accommodation
BEIS,UKRI - UKRI,12/11/2020,T&S UK - Accommodation,UKRI - Communications Content,Corporate Travel Management (North) Ltd,98848710,0.40,T&S UK - Accommodation
BEIS,UKRI - EPSRC,12/11/2020,T&S UK - Flights,Executive Chair and Deputy Exec Chairs,Corporate Travel Management (North) Ltd,98848710,25.99,T&S UK - Flights
BEIS,UKRI - EPSRC,12/11/2020,T&S UK - Flights,Programme Delivery Engineering,Corporate Travel Management (North) Ltd,98848710,25.00,T&S UK - Flights
BEIS,UKRI - EPSRC,12/11/2020,T&S UK - Flights,University Regional Managers,Corporate Travel Management (North) Ltd,98848710,2.50,T&S UK - Flights
BEIS,UKRI - EPSRC,12/11/2020,T&S UK - Flights,University Regional Managers,Corporate Travel Management (North) Ltd,98848710,184.99,T&S UK - Flights
BEIS,UKRI - EPSRC,12/11/2020,T&S UK - Flights,University Regional Managers,Corporate Travel Management (North) Ltd,98848710,1.71,T&S UK - Flights
BEIS,UKRI - EPSRC,12/11/2020,T&S UK - Flights,University Regional Managers,Corporate Travel Management (North) Ltd,98848710,184.81,T&S UK - Flights
BEIS,UKRI - UKRI,12/11/2020,T&S UK - Public Transport,UKRI - Communication and Engagement,Corporate Travel Management (North) Ltd,98848710,0.25,T&S UK - Public Transport
BEIS,UKRI - UKRI,12/11/2020,T&S UK - Public Transport,UKRI - Communication and Engagement,Corporate Travel Management (North) Ltd,98848710,13.50,T&S UK - Public Transport
BEIS,UKRI - UKRI,12/11/2020,T&S UK - Public Transport,UKRI - Communication and Engagement,Corporate Travel Management (North) Ltd,98848710,0.25,T&S UK - Public Transport
BEIS,UKRI - UKRI,12/11/2020,T&S UK - Public Transport,UKRI - Communication and Engagement,Corporate Travel Management (North) Ltd,98848710,75.20,T&S UK - Public Transport
BEIS,UKRI - UKRI,12/11/2020,T&S UK - Public Transport,UKRI - Communication and Engagement,Corporate Travel Management (North) Ltd,98848710,0.25,T&S UK - Public Transport
BEIS,UKRI - UKRI,12/11/2020,T&S UK - Public Transport,UKRI - Communication and Engagement,Corporate Travel Management (North) Ltd,98848710,13.50,T&S UK - Public Transport
BEIS,UKRI - UKRI,12/11/2020,T&S UK - Public Transport,UKRI - Communications Content,Corporate Travel Management (North) Ltd,98848710,0.25,T&S UK - Public Transport
BEIS,UKRI - UKRI,12/11/2020,T&S UK - Public Transport,UKRI - Communications Content,Corporate Travel Management (North) Ltd,98848710,91.00,T&S UK - Public Transport
BEIS,UKRI - UKRI,12/11/2020,T&S UK - Public Transport,UKRI - Communications Content,Corporate Travel Management (North) Ltd,98848710,0.25,T&S UK - Public Transport
BEIS,UKRI - UKRI,12/11/2020,T&S UK - Public Transport,UKRI - Communications Content,Corporate Travel Management (North) Ltd,98848710,8.30,T&S UK - Public Transport
BEIS,UKRI - UKRI,12/11/2020,T&S UK - Public Transport,UKRI - Communications Themes and Partnerships,Corporate Travel Management (North) Ltd,98848710,0.25,T&S UK - Public Transport
BEIS,UKRI - UKRI,12/11/2020,T&S UK - Public Transport,UKRI - Communications Themes and Partnerships,Corporate Travel Management (North) Ltd,98848710,17.00,T&S UK - Public Transport
BEIS,UKRI - UKRI,12/11/2020,T&S UK - Public Transport,UKRI - Communications Themes and Partnerships,Corporate Travel Management (North) Ltd,98848710,0.25,T&S UK - Public Transport
BEIS,UKRI - UKRI,12/11/2020,T&S UK - Public Transport,UKRI - Communications Themes and Partnerships,Corporate Travel Management (North) Ltd,98848710,17.00,T&S UK - Public Transport
BEIS,UKRI - UKRI,12/11/2020,Staff Training,"UKRI People, Policies and Management",Visionsports Ltd,98848772,420.00,Staff Training
BEIS,UKRI - UKRI,12/11/2020,Advertising & Promotion,UKRI - Communications Content,Spare Davies Creative Ltd,98848865,420.00,Advertising & Promotion
BEIS,UKRI - EPSRC,12/11/2020,Unspecified,Balance Sheet,HM Revenue & Customs,98849244,496335.02,PAYE Payable Salaries
BEIS,UKRI - EPSRC,12/11/2020,Unspecified,Balance Sheet,HM Revenue & Customs,98849245,659092.12,NI Payable Salaries
BEIS,UKRI - EPSRC,12/11/2020,Unspecified,Balance Sheet,HM Revenue & Customs,98849246,23103.00,Student Loans
BEIS,UKRI - EPSRC,12/11/2020,Unspecified,EPSRC Corporate Services,HM Revenue & Customs,98849247,17517.00,Apprenticeship Levy
BEIS,UKRI - EPSRC,12/11/2020,Unspecified,Balance Sheet,HM Revenue & Customs,98849252,41348.60,PAYE Payable Salaries
BEIS,UKRI - EPSRC,12/11/2020,Unspecified,Balance Sheet,HM Revenue & Customs,98849253,52437.33,NI Payable Salaries
BEIS,UKRI - EPSRC,12/11/2020,Unspecified,Balance Sheet,HM Revenue & Customs,98849254,4222.00,Student Loans
BEIS,UKRI - EPSRC,12/11/2020,Unspecified,EPSRC Corporate Services,HM Revenue & Customs,98849255,1265.00,Apprenticeship Levy
BEIS,UKRI - UKRI,13/11/2020,Unspecified,UKRI - Digital Data and Technology BAU Costs,Alexander Mann Solutions Ltd,98820628,1200.18,Contract Staff
BEIS,UKRI - UKRI,13/11/2020,Unspecified,UKRI - Digital Data and Technology Project Costs,Alexander Mann Solutions Ltd,98821794,4465.50,Contract Staff
BEIS,UKRI - UKRI,13/11/2020,Unspecified,UKRI - Digital Data and Technology Project Costs,Alexander Mann Solutions Ltd,98823964,4465.50,Contract Staff
BEIS,UKRI - UKRI,13/11/2020,Unspecified,UKRI - Digital Data and Technology BAU Costs,Alexander Mann Solutions Ltd,98823968,1200.18,Contract Staff
BEIS,UKRI - UKRI,13/11/2020,Unspecified,UKRI - Digital Data and Technology BAU Costs,Alexander Mann Solutions Ltd,98826178,1200.18,Contract Staff
BEIS,UKRI - UKRI,13/11/2020,Unspecified,UKRI - Digital Data and Technology Project Costs,Alexander Mann Solutions Ltd,98827572,4465.50,Contract Staff
BEIS,UKRI - UKRI,13/11/2020,Unspecified,UKRI - Digital Data and Technology BAU Costs,Alexander Mann Solutions Ltd,98833246,1200.18,Contract Staff
BEIS,UKRI - UKRI,13/11/2020,Unspecified,UKRI - Digital Data and Technology Project Costs,Alexander Mann Solutions Ltd,98833428,4465.50,Contract Staff
BEIS,UKRI - UKRI,13/11/2020,Unspecified,UKRI - Digital Data and Technology BAU Costs,Alexander Mann Solutions Ltd,98836266,1200.18,Contract Staff
BEIS,UKRI - UKRI,13/11/2020,Unspecified,UKRI - Digital Data and Technology Project Costs,Alexander Mann Solutions Ltd,98836400,4465.50,Contract Staff
BEIS,UKRI - UKRI,13/11/2020,Unspecified,UKRI - Digital Data and Technology Project Costs,Alexander Mann Solutions Ltd,98838889,4465.50,Contract Staff
BEIS,UKRI - UKRI,13/11/2020,Unspecified,UKRI - Digital Data and Technology BAU Costs,Alexander Mann Solutions Ltd,98839673,1200.18,Contract Staff
BEIS,UKRI - EPSRC,13/11/2020,Health & Safety (inc. Medicals & Opticians),Programme Delivery Manufacturing,Unspecified,98843578,9.00,Health & Safety (inc. Medicals & Opticians)
BEIS,UKRI - UKRI,13/11/2020,SSC Service Charges,UKRI - Corporate Services,UK Shared Business Services Ltd,98845561,1949182.50,SSC Service Charges
BEIS,UKRI - UKRI,13/11/2020,Unspecified,UKRI - Digital Data and Technology BAU Costs,Alexander Mann Solutions Ltd,98845899,1200.18,Contract Staff
BEIS,UKRI - UKRI,13/11/2020,Unspecified,UKRI - Digital Data and Technology Project Costs,Alexander Mann Solutions Ltd,98845914,4465.50,Contract Staff
BEIS,UKRI - UKRI,13/11/2020,Unspecified,UKRI - Digital Data and Technology Project Costs,Alexander Mann Solutions Ltd,98845993,-4465.50,Contract Staff
BEIS,UKRI - UKRI,13/11/2020,Health & Safety (inc. Medicals & Opticians),UKRI Strategic HR Business Partners,Swindon Occupational Medical Services Ltd,98846471,3850.00,Health & Safety (inc. Medicals & Opticians)
BEIS,UKRI - UKRI,13/11/2020,Unspecified,UKRI - Digital Data and Technology Project Costs,Alexander Mann Solutions Ltd,98847326,-1200.18,Contract Staff
BEIS,UKRI - UKRI,13/11/2020,Unspecified,UKRI - Digital Data and Technology BAU Costs,Alexander Mann Solutions Ltd,98847327,1200.18,Contract Staff
BEIS,UKRI - UKRI,13/11/2020,Staff Training,UKRI Strategic HR Business Partners,ACAS,98847447,642.00,Staff Training
BEIS,UKRI - UKRI,13/11/2020,Unspecified,"UKRI - Data Policy, Governance and MI",Interfolio UK Ltd,98847855,1920.00,IT Cloud Services
BEIS,UKRI - UKRI,13/11/2020,Advertising & Promotion,UKRI - Communications Content,Whole New Chapter Ltd,98847891,6300.00,Advertising & Promotion
BEIS,UKRI - UKRI,13/11/2020,Printing & Stationery,UKRI - Estates,Banner Group Ltd,98847897,77.04,Printing & Stationery
BEIS,UKRI - UKRI,13/11/2020,Staff Training,UKRI People and Organisation Development,ASK Europe PLC,98847902,468.00,Staff Training
BEIS,UKRI - EPSRC,13/11/2020,Union Deductions,Balance Sheet,PCS Union,98847916,70.29,Union Deductions
BEIS,UKRI - EPSRC,13/11/2020,Voluntary Deductions,Balance Sheet,The Office for Students,98847917,28.00,Voluntary Deductions
BEIS,UKRI - EPSRC,13/11/2020,Unspecified,Balance Sheet,Cabinet Office RM Shared Services,98847918,516.22,Ees Pension Deductions - JSS
BEIS,UKRI - EPSRC,13/11/2020,Unspecified,Balance Sheet,Cabinet Office RM Shared Services,98847919,2128.12,Ers Pension Deductions - JSS
BEIS,UKRI - EPSRC,13/11/2020,Unspecified,Balance Sheet,Cabinet Office RM Shared Services,98847920,29.44,Ers Pension Deductions - JSS
BEIS,UKRI - EPSRC,13/11/2020,Voluntary Deductions,Balance Sheet,Civil Service Benevolent Fund,98847921,2.50,Voluntary Deductions
BEIS,UKRI - EPSRC,13/11/2020,Unspecified,Balance Sheet,Cabinet Office RM Shared Services,98847922,13837.01,Ees Pension Deductions - MyCSP
BEIS,UKRI - EPSRC,13/11/2020,Unspecified,Balance Sheet,Cabinet Office RM Shared Services,98847923,64269.41,Ers Pension Deductions - MyCSP
BEIS,UKRI - EPSRC,13/11/2020,Unspecified,Balance Sheet,RCPS Pension,98847924,5523.32,Ers Pension Deductions - JSS
BEIS,UKRI - EPSRC,13/11/2020,Unspecified,Balance Sheet,RCPS Pension,98847925,1238.59,Ees Pension Deductions - JSS
BEIS,UKRI - EPSRC,13/11/2020,Unspecified,Balance Sheet,Scottish Widows,98848691,109.50,Other Pension Deductions
BEIS,UKRI - EPSRC,13/11/2020,Unspecified,Balance Sheet,Scottish Widows,98848692,852.49,Partnership Pension Deductions
BEIS,UKRI - EPSRC,13/11/2020,Union Deductions,Balance Sheet,PCS Union,98848693,94.97,Union Deductions
BEIS,UKRI - EPSRC,13/11/2020,Unspecified,Balance Sheet,RCPS Pension,98848695,118186.93,Ers Pension Deductions - JSS
BEIS,UKRI - EPSRC,13/11/2020,Unspecified,Balance Sheet,RCPS Pension,98848696,27709.11,Ees Pension Deductions - JSS
BEIS,UKRI - EPSRC,13/11/2020,Unspecified,Balance Sheet,Cabinet Office RM Shared Services,98848697,26.10,Ers Pension Deductions - JSS
BEIS,UKRI - EPSRC,13/11/2020,Unspecified,Balance Sheet,Cabinet Office RM Shared Services,98848698,13652.73,Ees Pension Deductions - MyCSP
BEIS,UKRI - EPSRC,13/11/2020,Unspecified,Balance Sheet,Cabinet Office RM Shared Services,98848699,68461.11,Ers Pension Deductions - MyCSP
BEIS,UKRI - EPSRC,13/11/2020,Ees Pension Deductions - MRC,Balance Sheet,UKRI - Medical Research Council,98848700,212.42,Ees Pension Deductions - MRC
BEIS,UKRI - EPSRC,13/11/2020,Ers Pension Deductions - MRC,Balance Sheet,UKRI - Medical Research Council,98848701,490.20,Ers Pension Deductions - MRC
BEIS,UKRI - UKRI,13/11/2020,Unspecified,"UKRI People, Policies and Management",Menopause in the Workplace Ltd,98849076,2190.00,Legal & Professional Services
BEIS,UKRI - EPSRC,13/11/2020,Fees (Including College Members),Business Improvement,Non Employee Expenses Supplier,98849079,160.00,Fees (Including College Members)
BEIS,UKRI - EPSRC,13/11/2020,Fees (Including College Members),Business Improvement,Non Employee Expenses Supplier,98849080,160.00,Fees (Including College Members)
BEIS,UKRI - EPSRC,13/11/2020,Fees (Including College Members),Business Improvement,Non Employee Expenses Supplier,98849081,320.00,Fees (Including College Members)
BEIS,UKRI - UKRI,13/11/2020,Unspecified,UKRI - JRS,Winwood Haines Ltd,98849084,150.00,Patents/ Non Computer Licences
BEIS,UKRI - UKRI,13/11/2020,Computer Software Licences,UKRI - Digital Data and Technology BAU Costs,Chess Cybersecurity Ltd,98849086,37440.00,Computer Software Licences
BEIS,UKRI - UKRI,13/11/2020,Staff Training,UKRI - Digital Data and Technology BAU Costs,Agile Centre (Northampton) Ltd,98849131,894.00,Staff Training
BEIS,UKRI - UKRI,13/11/2020,Corporate Events,UKRI - Communications Projects and Services,Reed Exhibitions Ltd,98849135,5999.86,Corporate Events
BEIS,UKRI - UKRI,13/11/2020,UK - Professional Memberships & Subscriptions,"UKRI - Data Policy, Governance and MI",UK Evaluation Society,98849140,-38.00,UK - Professional Memberships & Subscriptions
BEIS,UKRI - UKRI,13/11/2020,UK - Professional Memberships & Subscriptions,"UKRI - Data Policy, Governance and MI",UK Evaluation Society,98849140,-190.00,UK - Professional Memberships & Subscriptions
BEIS,UKRI - UKRI,13/11/2020,UK - Professional Memberships & Subscriptions,"UKRI - Data Policy, Governance and MI",UK Evaluation Society,98849140,1368.00,UK - Professional Memberships & Subscriptions
BEIS,UKRI - UKRI,13/11/2020,Safety Materials & Equipment,UKRI - Estates,Brady Corporation Ltd,98849181,71.98,Safety Materials & Equipment
BEIS,UKRI - UKRI,13/11/2020,Unspecified,UKRI - GCRF Challenge Leaders,Middlesex University,98849257,14435.40,Secondments
BEIS,UKRI - UKRI,13/11/2020,Ex-Gratia Payments,UKRI - External Communications,UKRI - Medical Research Council,98849278,243.00,Ex-Gratia Payments
BEIS,UKRI - EPSRC,13/11/2020,Union Deductions,Balance Sheet,PCS Union,98849279,716.56,Union Deductions
BEIS,UKRI - EPSRC,13/11/2020,Unspecified,Balance Sheet,RCPS Pension,98849281,412324.77,Ers Pension Deductions - JSS
BEIS,UKRI - EPSRC,13/11/2020,Unspecified,Balance Sheet,RCPS Pension,98849282,101277.83,Ees Pension Deductions - JSS
BEIS,UKRI - EPSRC,13/11/2020,Unspecified,Balance Sheet,Standard Life Assurance Ltd,98849283,2728.33,Partnership Pension Deductions
BEIS,UKRI - EPSRC,13/11/2020,Unspecified,Balance Sheet,Standard Life Assurance Ltd,98849284,450.00,Other Pension Deductions
BEIS,UKRI - EPSRC,13/11/2020,Voluntary Deductions,Balance Sheet,Civil Service Benevolent Fund,98849285,27.33,Voluntary Deductions
BEIS,UKRI - EPSRC,13/11/2020,Unspecified,Balance Sheet,Cabinet Office RM Shared Services,98849286,87705.12,Ees Pension Deductions - MyCSP
BEIS,UKRI - EPSRC,13/11/2020,Unspecified,Balance Sheet,Cabinet Office RM Shared Services,98849287,413551.15,Ers Pension Deductions - MyCSP
BEIS,UKRI - EPSRC,13/11/2020,Unspecified,Balance Sheet,Cabinet Office RM Shared Services,98849288,381.09,Ees Pension Deductions - JSS
BEIS,UKRI - EPSRC,13/11/2020,Unspecified,Balance Sheet,Cabinet Office RM Shared Services,98849289,1446.58,Ers Pension Deductions - JSS
BEIS,UKRI - EPSRC,13/11/2020,Unspecified,Balance Sheet,Cabinet Office RM Shared Services,98849290,214.58,Ers Pension Deductions - JSS
BEIS,UKRI - EPSRC,13/11/2020,Unspecified,Balance Sheet,Scottish Widows,98849291,210.39,Other Pension Deductions
BEIS,UKRI - EPSRC,13/11/2020,Unspecified,Balance Sheet,Scottish Widows,98849292,4598.51,Partnership Pension Deductions
BEIS,UKRI - EPSRC,13/11/2020,Unspecified,Balance Sheet,Equitable Life Assurance Society,98849293,1.74,Other Pension Deductions
BEIS,UKRI - EPSRC,13/11/2020,Ees Pension Deductions - MRC,Balance Sheet,UKRI - Medical Research Council,98849294,15921.62,Ees Pension Deductions - MRC
BEIS,UKRI - EPSRC,13/11/2020,Ers Pension Deductions - MRC,Balance Sheet,UKRI - Medical Research Council,98849295,35493.43,Ers Pension Deductions - MRC
BEIS,UKRI - EPSRC,13/11/2020,Union Deductions,Balance Sheet,Prospect Union,98849296,36.52,Union Deductions
BEIS,UKRI - EPSRC,13/11/2020,Voluntary Deductions,Balance Sheet,Harwell Rec Soc,98849297,9.00,Voluntary Deductions
BEIS,UKRI - EPSRC,13/11/2020,Voluntary Deductions,Balance Sheet,Civil Service Sports Council,98849298,102.00,Voluntary Deductions
BEIS,UKRI - EPSRC,13/11/2020,Voluntary Deductions,Balance Sheet,Charities Aid Foundation - GAYE,98849299,11.00,Voluntary Deductions
BEIS,UKRI - EPSRC,13/11/2020,Unspecified,Balance Sheet,Equiniti Ltd,98849300,1891.11,Other Pension Deductions
BEIS,UKRI - EPSRC,13/11/2020,Voluntary Deductions,Balance Sheet,Hercules Health and Fitness Centre,98849301,10.00,Voluntary Deductions
BEIS,UKRI - EPSRC,13/11/2020,Voluntary Deductions,Balance Sheet,Simplyhealth,98849302,13.13,Voluntary Deductions
BEIS,UKRI - EPSRC,13/11/2020,Voluntary Deductions,Balance Sheet,The Office for Students,98849303,1.00,Voluntary Deductions
BEIS,UKRI - UKRI,13/11/2020,Other Allowances,UKRI - External Communications,UKRI - Medical Research Council,98849304,243.00,Other Allowances
BEIS,UKRI - UKRI,16/11/2020,Books Professional Journals & Guides,UKRI - Digital Data and Technology Library Services,Geological Society Publishing House,98783329,-99.12,Books Professional Journals & Guides
BEIS,UKRI - UKRI,16/11/2020,Advertising & Promotion,UKRI - Communications Themes and Partnerships,MSQ Partners Group Ltd,98787576,17600.56,Advertising & Promotion
BEIS,UKRI - UKRI,16/11/2020,Advertising & Promotion,UKRI - Communications Themes and Partnerships,MSQ Partners Group Ltd,98790392,31996.49,Advertising & Promotion
BEIS,UKRI - UKRI,16/11/2020,Advertising & Promotion,UKRI - Communications Themes and Partnerships,MSQ Partners Group Ltd,98808653,17600.56,Advertising & Promotion
BEIS,UKRI - UKRI,16/11/2020,Computer Software Licences,UKRI - Digital Data and Technology Recharges,Phoenix Software Ltd,98826865,1980.00,Computer Software Licences
BEIS,UKRI - UKRI,16/11/2020,Computer Software Licences,UKRI - Digital Data and Technology Recharges,Phoenix Software Ltd,98829910,591.46,Computer Software Licences
BEIS,UKRI - UKRI,16/11/2020,Computer Software Licences,UKRI - Digital Data and Technology Recharges,Phoenix Software Ltd,98830467,1035.49,Computer Software Licences
BEIS,UKRI - UKRI,16/11/2020,Computer Software Licences,UKRI - Digital Data and Technology BAU Costs,Phoenix Software Ltd,98832575,85.44,Computer Software Licences
BEIS,UKRI - UKRI,16/11/2020,Computer Software Licences,UKRI - Digital Data and Technology BAU Costs,Phoenix Software Ltd,98833323,617.88,Computer Software Licences
BEIS,UKRI - UKRI,16/11/2020,Computer Software Licences,UKRI - Digital Data and Technology BAU Costs,Phoenix Software Ltd,98836611,7441.52,Computer Software Licences
BEIS,UKRI - UKRI,16/11/2020,Library Services,UKRI - Digital Data and Technology Library Services,Geological Society Publishing House,98837942,495.60,Library Services
BEIS,UKRI - UKRI,16/11/2020,Library Services,UKRI - Digital Data and Technology Library Services,Geological Society Publishing House,98837945,611.10,Library Services
BEIS,UKRI - UKRI,16/11/2020,Computer Software Licences,UKRI - Digital Data and Technology BAU Costs,Softcat plc,98838304,5361.52,Computer Software Licences
BEIS,UKRI - UKRI,16/11/2020,Computer Software Licences,UKRI - Digital Data and Technology BAU Costs,Phoenix Software Ltd,98838590,334.03,Computer Software Licences
BEIS,UKRI - UKRI,16/11/2020,Computer Software Licences,UKRI - Digital Data and Technology BAU Costs,Phoenix Software Ltd,98838760,680.53,Computer Software Licences
BEIS,UKRI - UKRI,16/11/2020,Computer Software Licences,UKRI - Digital Data and Technology BAU Costs,Softcat plc,98840871,550.20,Computer Software Licences
BEIS,UKRI - UKRI,16/11/2020,Computer Software Licences,UKRI - Digital Data and Technology Recharges,Phoenix Software Ltd,98843188,190.80,Computer Software Licences
BEIS,UKRI - UKRI,16/11/2020,Computer Software Licences,UKRI - Digital Data and Technology BAU Costs,Phoenix Software Ltd,98843189,90.96,Computer Software Licences
BEIS,UKRI - UKRI,16/11/2020,Unspecified,UKRI - Digital Data and Technology BAU Costs,JC Web Services Ltd,98843361,10200.00,Contract Staff
BEIS,UKRI - UKRI,16/11/2020,Advertising & Promotion,UKRI - Communications Themes and Partnerships,MSQ Partners Group Ltd,98843819,17600.56,Advertising & Promotion
BEIS,UKRI - UKRI,16/11/2020,Computer Software Licences,UKRI - Digital Data and Technology BAU Costs,Phoenix Software Ltd,98844554,4209.00,Computer Software Licences
BEIS,UKRI - UKRI,16/11/2020,General Building Maintenance,UKRI - Digital Data and Technology BAU Costs,AR Electrical (Swindon) Ltd,98845233,8923.20,General Building Maintenance
BEIS,UKRI - UKRI,16/11/2020,Marketing & PR,UKRI - Communications Content,Unspecified,98846685,112.00,Marketing & PR
BEIS,UKRI - UKRI,16/11/2020,IT / Computing Support Services,UKRI - Digital Data and Technology BAU Costs,NEW SIGNATURE UK LTD,98846745,-13680.00,IT / Computing Support Services
BEIS,UKRI - UKRI,16/11/2020,IT / Computing Support Services,UKRI - Digital Data and Technology BAU Costs,NEW SIGNATURE UK LTD,98846750,13680.00,IT / Computing Support Services
BEIS,UKRI - UKRI,16/11/2020,T&S UK - Other Charges,"UKRI - Data Policy, Governance and MI",Unspecified,98847409,100.00,T&S UK - Other Charges
BEIS,UKRI - UKRI,16/11/2020,Advertising & Promotion,UKRI - Communications Themes and Partnerships,Rachel Everington Marketing Ltd,98847465,1330.00,Advertising & Promotion
BEIS,UKRI - UKRI,16/11/2020,Advertising & Promotion,UKRI - Communications Content,Whole New Chapter Ltd,98847558,300.00,Advertising & Promotion
BEIS,UKRI - UKRI,16/11/2020,Unspecified,UKRI - GCRF Challenge Leaders,University of Bristol,98848034,13921.21,Secondments
BEIS,UKRI - UKRI,16/11/2020,Design services,UKRI - JRS,Vincent Design Consultants Ltd,98848126,5100.00,Design services
BEIS,UKRI - UKRI,16/11/2020,Unspecified,UKRI - JRS,Alexander Mann Solutions Ltd,98848138,2664.00,Contract Staff
BEIS,UKRI - UKRI,16/11/2020,Advertising & Promotion,UKRI - External Communications,Filmmaker Phil Ltd,98848194,660.00,Advertising & Promotion
BEIS,UKRI - UKRI,16/11/2020,Maintenance of Research & Scientific Equipment,UKRI - Estates,Complete Engineering Group Ltd,98848566,336.60,Maintenance of Research & Scientific Equipment
BEIS,UKRI - UKRI,16/11/2020,Recruitment Costs,UKRI People and Organisation Development,Onefix Recruitment Ltd,98848645,510.00,Recruitment Costs
BEIS,UKRI - Research England,16/11/2020,Recruitment Costs,RE - Operations and Private Office,Onefix Recruitment Ltd,98848646,624.00,Recruitment Costs
BEIS,UKRI - Research England,16/11/2020,Recruitment Costs,RE - Operations and Private Office,Onefix Recruitment Ltd,98848647,624.00,Recruitment Costs
BEIS,UKRI - UKRI,16/11/2020,IT / Computing Support Services,UKRI - Digital Data and Technology BAU Costs,Sanderson Government and Defence Ltd,98848783,5760.00,IT / Computing Support Services
BEIS,UKRI - UKRI,16/11/2020,Marketing & PR,UKRI - Communications Web and Intranet Service,Frontline Communication,98849197,806.40,Marketing & PR
BEIS,UKRI - UKRI,16/11/2020,Marketing & PR,UKRI - External Communications,Cision Group Ltd,98849411,1996.80,Marketing & PR
BEIS,UKRI - UKRI,16/11/2020,Staff Training,UKRI - Project Management Office,QA Ltd,98849414,4665.60,Staff Training
BEIS,UKRI - UKRI,16/11/2020,Marketing & PR,UKRI - External Communications,Cision Group Ltd,98849415,665.38,Marketing & PR
BEIS,UKRI - UKRI,16/11/2020,Staff Training,UKRI - Project Management Office,QA Ltd,98849417,744.00,Staff Training
BEIS,UKRI - UKRI,16/11/2020,Marketing & PR,UKRI - External Communications,Cision Group Ltd,98849427,4707.00,Marketing & PR
BEIS,UKRI - UKRI,16/11/2020,Marketing & PR,UKRI - External Communications,Cision Group Ltd,98849434,1567.33,Marketing & PR
BEIS,UKRI - UKRI,16/11/2020,Marketing & PR,UKRI - External Communications,Cision Group Ltd,98849447,1934.40,Marketing & PR
BEIS,UKRI - EPSRC,16/11/2020,Nursery Deductions,Balance Sheet,EDENRED (UK GROUP) LTD,98849470,63642.75,Nursery Deductions
BEIS,UKRI - UKRI,16/11/2020,Unspecified,UKRI - Digital Data and Technology Project Costs,Alexander Mann Solutions Ltd,98849528,4095.36,Contract Staff
BEIS,UKRI - UKRI,16/11/2020,Unspecified,UKRI - Financial Accounting,Alexander Mann Solutions Ltd,98849548,2494.54,Contract Staff
BEIS,UKRI - UKRI,16/11/2020,Unspecified,UKRI - Financial Accounting,Alexander Mann Solutions Ltd,98849550,3695.58,Contract Staff
BEIS,UKRI - UKRI,16/11/2020,Unspecified,UKRI - Financial Accounting,Alexander Mann Solutions Ltd,98850253,2710.08,Agency Staff
BEIS,UKRI - UKRI,16/11/2020,Unspecified,UKRI - Digital Data and Technology Project Costs,Alexander Mann Solutions Ltd,98850263,2771.70,Contract Staff
BEIS,UKRI - UKRI,16/11/2020,Unspecified,UKRI - Management Reporting,Alexander Mann Solutions Ltd,98850264,902.35,Agency Staff
BEIS,UKRI - UKRI,16/11/2020,Recruitment Costs,UKRI People and Organisation Development,Alexander Mann Solutions Ltd,98850281,2155.80,Recruitment Costs
BEIS,UKRI - UKRI,16/11/2020,Printing & Stationery,UKRI - Strategic Finance Business Partners,Banner Group Ltd,98850296,0.90,Printing & Stationery
BEIS,UKRI - UKRI,16/11/2020,Printing & Stationery,UKRI - Strategic Finance Business Partners,Banner Group Ltd,98850296,0.90,Printing & Stationery
BEIS,UKRI - UKRI,16/11/2020,Printing & Stationery,UKRI - Strategic Finance Business Partners,Banner Group Ltd,98850296,10.26,Printing & Stationery
BEIS,UKRI - UKRI,16/11/2020,Printing & Stationery,UKRI - Strategic Finance Business Partners,Banner Group Ltd,98850296,1.25,Printing & Stationery
BEIS,UKRI - UKRI,16/11/2020,Health & Safety (inc. Medicals & Opticians),UKRI - Health and Safety,Banner Group Ltd,98850297,1.08,Health & Safety (inc. Medicals & Opticians)
BEIS,UKRI - UKRI,16/11/2020,T&S UK - Other Charges,UKRI - Corporate Services,Unspecified,98850314,137.03,T&S UK - Other Charges
BEIS,UKRI - UKRI,16/11/2020,T&S UK - Other Charges,UKRI - Corporate Services,Unspecified,98850328,30.30,T&S UK - Other Charges
BEIS,UKRI - UKRI,16/11/2020,T&S UK - Other Charges,UKRI - Human Resources Support,Unspecified,98850331,70.16,T&S UK - Other Charges
BEIS,UKRI - EPSRC,16/11/2020,T&S UK - Other Charges,Programme Delivery Physical Sciences,Unspecified,98850332,129.99,T&S UK - Other Charges
BEIS,UKRI - UKRI,16/11/2020,UK - Professional Memberships & Subscriptions,UKRI - Financial Accounting,Unspecified,98850333,89.00,UK - Professional Memberships & Subscriptions
BEIS,UKRI - UKRI,16/11/2020,Conferences & Seminars,UKRI - Assurance,Unspecified,98850335,34.80,Conferences & Seminars
BEIS,UKRI - UKRI,16/11/2020,T&S UK - Other Charges,Research Culture,Unspecified,98850337,35.51,T&S UK - Other Charges
BEIS,UKRI - UKRI,16/11/2020,T&S UK - Other Charges,Research Culture,Unspecified,98850338,91.44,T&S UK - Other Charges
BEIS,UKRI - UKRI,16/11/2020,T&S UK - Other Charges,UKRI - Strategic Finance Business Partners,Unspecified,98850341,96.98,T&S UK - Other Charges
BEIS,UKRI - UKRI,16/11/2020,T&S UK - Other Charges,UKRI - Risk and Counter Fraud,Unspecified,98850343,262.34,T&S UK - Other Charges
BEIS,UKRI - Research England,16/11/2020,T&S UK - Other Charges,RE - Knowledge Exchange,Unspecified,98850344,97.62,T&S UK - Other Charges
BEIS,UKRI - EPSRC,16/11/2020,T&S UK - Other Charges,Regional Engagement - OpEx,Unspecified,98850345,99.00,T&S UK - Other Charges
BEIS,UKRI - UKRI,16/11/2020,T&S UK - Subsistence,UKRI - GCRF Delivery,Unspecified,98850347,15.50,T&S UK - Subsistence
BEIS,UKRI - UKRI,16/11/2020,T&S UK - Subsistence,UKRI - GCRF Delivery,Unspecified,98850347,12.22,T&S UK - Subsistence
BEIS,UKRI - UKRI,16/11/2020,T&S UK - Subsistence,UKRI - GCRF Delivery,Unspecified,98850347,9.45,T&S UK - Subsistence
BEIS,UKRI - Research England,16/11/2020,T&S UK - Other Charges,RE - Knowledge Exchange,Unspecified,98850349,54.77,T&S UK - Other Charges
BEIS,UKRI - UKRI,17/11/2020,Books Professional Journals & Guides,UKRI - Digital Data and Technology Library Services,The British Library,98808695,38.30,Books Professional Journals & Guides
BEIS,UKRI - UKRI,17/11/2020,Books Professional Journals & Guides,UKRI - Digital Data and Technology Library Services,The British Library,98808695,85.68,Books Professional Journals & Guides
BEIS,UKRI - UKRI,17/11/2020,Computer Software Licences,UKRI - Digital Data and Technology BAU Costs,Softcat plc,98813688,257.28,Computer Software Licences
BEIS,UKRI - UKRI,17/11/2020,Computer Software Licences,UKRI - Digital Data and Technology BAU Costs,Softcat plc,98813715,257.28,Computer Software Licences
BEIS,UKRI - UKRI,17/11/2020,Computer Software,UKRI - Digital Data and Technology BAU Costs,LeanIX GmbH,98820041,31406.28,Computer Software
BEIS,UKRI - UKRI,17/11/2020,Computer Software,UKRI - Digital Data and Technology Project Costs,LeanIX GmbH,98820041,17487.59,Computer Software
BEIS,UKRI - EPSRC,17/11/2020,Capital Grants & Equipment to HEIs,Rosalind Franklin Institute,UKRI - Science & Technology Facilities Council,98826522,1.29,Capital Grants & Equipment to HEIs
BEIS,UKRI - EPSRC,17/11/2020,Institute Grant Expenditure,Rosalind Franklin Institute,UKRI - Science & Technology Facilities Council,98826522,934372.71,Institute Grant Expenditure
BEIS,UKRI - EPSRC,17/11/2020,Institute Grant Expenditure,Rosalind Franklin Institute,UKRI - Science & Technology Facilities Council,98826522,800000.00,Institute Grant Expenditure
BEIS,UKRI - UKRI,17/11/2020,Books Professional Journals & Guides,UKRI - Digital Data and Technology Library Services,The British Library,98830758,71.80,Books Professional Journals & Guides
BEIS,UKRI - UKRI,17/11/2020,Books Professional Journals & Guides,UKRI - Digital Data and Technology Library Services,The British Library,98830758,47.76,Books Professional Journals & Guides
BEIS,UKRI - UKRI,17/11/2020,Health & Safety (inc. Medicals & Opticians),"UKRI People, Policies and Management",Benenden Healthcare Society,98833331,1311.00,Health & Safety (inc. Medicals & Opticians)
BEIS,UKRI - UKRI,17/11/2020,Health & Safety (inc. Medicals & Opticians),"UKRI People, Policies and Management",Benenden Healthcare Society,98833332,13466.50,Health & Safety (inc. Medicals & Opticians)
BEIS,UKRI - UKRI,17/11/2020,Health & Safety (inc. Medicals & Opticians),"UKRI People, Policies and Management",Benenden Healthcare Society,98833333,1023.50,Health & Safety (inc. Medicals & Opticians)
BEIS,UKRI - UKRI,17/11/2020,Computer Software Licences,UKRI - Digital Data and Technology BAU Costs,Softcat plc,98834361,257.28,Computer Software Licences
BEIS,UKRI - UKRI,17/11/2020,Unspecified,"UKRI People, Policies and Management",Alexander Mann Solutions Ltd,98835883,11400.00,Agency Staff
BEIS,UKRI - UKRI,17/11/2020,Advertising & Promotion,UKRI - Communications Content,First Business Creative Ltd,98836505,8306.60,Advertising & Promotion
BEIS,UKRI - EPSRC,17/11/2020,Capital Grants & Equipment to HEIs,National Quantum Computing Centre - NQCC,UKRI - Science & Technology Facilities Council,98838331,778630.85,Capital Grants & Equipment to HEIs
BEIS,UKRI - EPSRC,17/11/2020,Research Grant Expenditure,National Quantum Computing Centre - NQCC,UKRI - Science & Technology Facilities Council,98838331,1475.28,Research Grant Expenditure
BEIS,UKRI - EPSRC,17/11/2020,Research Grant Expenditure,National Quantum Computing Centre - NQCC,UKRI - Science & Technology Facilities Council,98838331,54001.57,Research Grant Expenditure
BEIS,UKRI - UKRI,17/11/2020,Realised Gains,UKRI - UKRO,UK Research Office,98840062,-41918.14,Realised Gains
BEIS,UKRI - UKRI,17/11/2020,Realised Gains,UKRI - UKRO,UK Research Office,98840064,41918.14,Realised Gains
BEIS,UKRI - UKRI,17/11/2020,Marketing & PR,UKRI - Communications Web and Intranet Service,Derek Holmes T/A Derek Holmes Media,98843132,2000.00,Marketing & PR
BEIS,UKRI - UKRI,17/11/2020,Unspecified,UKRI - Digital Data and Technology Project Costs,TMI Systems Ltd,98843459,18960.00,IT Cloud Services
BEIS,UKRI - UKRI,17/11/2020,Computer Software Licences,UKRI - Digital Data and Technology BAU Costs,Softcat plc,98843974,257.28,Computer Software Licences
BEIS,UKRI - UKRI,17/11/2020,Computer Hardware,UKRI - Digital Data and Technology BAU Costs,Unspecified,98844700,62.62,Computer Hardware
BEIS,UKRI - UKRI,17/11/2020,Computer Hardware,UKRI - Digital Data and Technology BAU Costs,Unspecified,98845307,55.78,Computer Hardware
BEIS,UKRI - UKRI,17/11/2020,Computer Hardware,UKRI - Digital Data and Technology BAU Costs,Unspecified,98845310,63.02,Computer Hardware
BEIS,UKRI - UKRI,17/11/2020,Unspecified,"UKRI People, Policies and Management",Alexander Mann Solutions Ltd,98845904,6000.00,Agency Staff
BEIS,UKRI - UKRI,17/11/2020,Unspecified,"UKRI People, Policies and Management",Alexander Mann Solutions Ltd,98845919,4312.62,Agency Staff
BEIS,UKRI - UKRI,17/11/2020,Unspecified,UKRI - Digital Data and Technology BAU Costs,Zoom Video Communications Inc,98846834,1023.22,IT Cloud Services
BEIS,UKRI - Research England,17/11/2020,Research Grant Expenditure,RE- GCRF,Anglia Ruskin University,98846853,16763.14,Research Grant Expenditure
BEIS,UKRI - Research England,17/11/2020,Research Grant Expenditure,RE- GCRF,Arts University Bournemouth,98846854,1220.86,Research Grant Expenditure
BEIS,UKRI - Research England,17/11/2020,Research Grant Expenditure,RE- GCRF,University of the Arts London,98846855,31014.21,Research Grant Expenditure
BEIS,UKRI - Research England,17/11/2020,Research Grant Expenditure,RE- GCRF,Aston University,98846856,51435.12,Research Grant Expenditure
BEIS,UKRI - Research England,17/11/2020,Research Grant Expenditure,RE- GCRF,University of Bath,98846857,136791.61,Research Grant Expenditure
BEIS,UKRI - Research England,17/11/2020,Research Grant Expenditure,RE- GCRF,Bath Spa University,98846858,8854.37,Research Grant Expenditure
BEIS,UKRI - Research England,17/11/2020,Research Grant Expenditure,RE- GCRF,University of Bedfordshire,98846859,21370.98,Research Grant Expenditure
BEIS,UKRI - Research England,17/11/2020,Research Grant Expenditure,RE- GCRF,Birkbeck College,98846860,77825.76,Research Grant Expenditure
BEIS,UKRI - Research England,17/11/2020,Research Grant Expenditure,RE- GCRF,University of Birmingham,98846861,278710.79,Research Grant Expenditure
BEIS,UKRI - Research England,17/11/2020,Research Grant Expenditure,RE- GCRF,Birmingham City University,98846862,17604.13,Research Grant Expenditure
BEIS,UKRI - Research England,17/11/2020,Research Grant Expenditure,RE- GCRF,University of Bolton,98846863,4100.54,Research Grant Expenditure
BEIS,UKRI - Research England,17/11/2020,Research Grant Expenditure,RE- GCRF,Bournemouth University,98846864,25530.61,Research Grant Expenditure
BEIS,UKRI - Research England,17/11/2020,Research Grant Expenditure,RE- GCRF,University of Bradford,98846865,29161.24,Research Grant Expenditure
BEIS,UKRI - Research England,17/11/2020,Research Grant Expenditure,RE- GCRF,University of Brighton,98846866,41315.20,Research Grant Expenditure
BEIS,UKRI - Research England,17/11/2020,Research Grant Expenditure,RE- GCRF,University of Bristol,98846867,354346.09,Research Grant Expenditure
BEIS,UKRI - Research England,17/11/2020,Research Grant Expenditure,RE- GCRF,Brunel University London,98846868,102701.58,Research Grant Expenditure
BEIS,UKRI - Research England,17/11/2020,Research Grant Expenditure,RE- GCRF,Buckinghamshire New University (Bucks New University),98846869,2123.26,Research Grant Expenditure
BEIS,UKRI - Research England,17/11/2020,Research Grant Expenditure,RE- GCRF,University of Cambridge,98846870,767916.06,Research Grant Expenditure
BEIS,UKRI - Research England,17/11/2020,Research Grant Expenditure,RE- GCRF,Canterbury Christ Church University,98846871,12562.46,Research Grant Expenditure
BEIS,UKRI - Research England,17/11/2020,Research Grant Expenditure,RE- GCRF,University of Central Lancashire,98846872,29670.70,Research Grant Expenditure
BEIS,UKRI - Research England,17/11/2020,Research Grant Expenditure,RE- GCRF,University of Chester,98846873,9921.46,Research Grant Expenditure
BEIS,UKRI - Research England,17/11/2020,Research Grant Expenditure,RE- GCRF,University of Chichester,98846874,6624.85,Research Grant Expenditure
BEIS,UKRI - Research England,17/11/2020,Research Grant Expenditure,RE- GCRF,"City, University of London",98846875,91451.18,Research Grant Expenditure
BEIS,UKRI - Research England,17/11/2020,Research Grant Expenditure,RE- GCRF,Courtauld Institute of Art,98846876,13658.19,Research Grant Expenditure
BEIS,UKRI - Research England,17/11/2020,Research Grant Expenditure,RE- GCRF,Coventry University,98846877,25391.57,Research Grant Expenditure
BEIS,UKRI - Research England,17/11/2020,Research Grant Expenditure,RE- GCRF,Cranfield University,98846878,63834.55,Research Grant Expenditure
BEIS,UKRI - Research England,17/11/2020,Research Grant Expenditure,RE- GCRF,University of Cumbria,98846879,2042.16,Research Grant Expenditure
BEIS,UKRI - Research England,17/11/2020,Research Grant Expenditure,RE- GCRF,De Montfort University,98846880,32835.73,Research Grant Expenditure
BEIS,UKRI - Research England,17/11/2020,Research Grant Expenditure,RE- GCRF,University of Derby,98846881,7359.08,Research Grant Expenditure
BEIS,UKRI - Research England,17/11/2020,Research Grant Expenditure,RE- GCRF,University of Durham,98846882,201410.71,Research Grant Expenditure
BEIS,UKRI - Research England,17/11/2020,Research Grant Expenditure,RE- GCRF,University of East Anglia,98846883,123276.26,Research Grant Expenditure
BEIS,UKRI - Research England,17/11/2020,Research Grant Expenditure,RE- GCRF,University of East London,98846884,22550.30,Research Grant Expenditure
BEIS,UKRI - Research England,17/11/2020,Research Grant Expenditure,RE- GCRF,Edge Hill University College,98846885,11785.36,Research Grant Expenditure
BEIS,UKRI - Research England,17/11/2020,Research Grant Expenditure,RE- GCRF,University of Essex,98846886,72336.86,Research Grant Expenditure
BEIS,UKRI - Research England,17/11/2020,Research Grant Expenditure,RE- GCRF,University of Exeter,98846887,185683.71,Research Grant Expenditure
BEIS,UKRI - Research England,17/11/2020,Research Grant Expenditure,RE- GCRF,Falmouth University,98846888,3699.49,Research Grant Expenditure
BEIS,UKRI - Research England,17/11/2020,Research Grant Expenditure,RE- GCRF,University of Gloucestershire,98846889,6056.79,Research Grant Expenditure
BEIS,UKRI - Research England,17/11/2020,Research Grant Expenditure,RE- GCRF,Goldsmiths College University of London,98846890,50638.15,Research Grant Expenditure
BEIS,UKRI - Research England,17/11/2020,Research Grant Expenditure,RE- GCRF,University of Greenwich,98846891,25565.20,Research Grant Expenditure
BEIS,UKRI - Research England,17/11/2020,Research Grant Expenditure,RE- GCRF,Guildhall School of Music & Drama,98846892,2801.22,Research Grant Expenditure
BEIS,UKRI - Research England,17/11/2020,Research Grant Expenditure,RE- GCRF,Harper Adams University College,98846893,2542.02,Research Grant Expenditure
BEIS,UKRI - Research England,17/11/2020,Research Grant Expenditure,RE- GCRF,University of Hertfordshire,98846894,29690.73,Research Grant Expenditure
BEIS,UKRI - Research England,17/11/2020,Research Grant Expenditure,RE- GCRF,University of Huddersfield,98846895,34346.25,Research Grant Expenditure
BEIS,UKRI - Research England,17/11/2020,Research Grant Expenditure,RE- GCRF,University of Hull,98846896,55538.47,Research Grant Expenditure
BEIS,UKRI - Research England,17/11/2020,Research Grant Expenditure,RE- GCRF,Imperial College Science Tech & Med,98846897,578956.91,Research Grant Expenditure
BEIS,UKRI - Research England,17/11/2020,Research Grant Expenditure,RE- GCRF,Institute of Cancer Research,98846898,47475.11,Research Grant Expenditure
BEIS,UKRI - Research England,17/11/2020,Research Grant Expenditure,RE- GCRF,Keele University,98846899,55806.11,Research Grant Expenditure
BEIS,UKRI - Research England,17/11/2020,Research Grant Expenditure,RE- GCRF,University of Kent,98846900,119893.41,Research Grant Expenditure
BEIS,UKRI - Research England,17/11/2020,Research Grant Expenditure,RE- GCRF,King's College London,98846901,478148.69,Research Grant Expenditure
BEIS,UKRI - Research England,17/11/2020,Research Grant Expenditure,RE- GCRF,Kingston University,98846902,23453.69,Research Grant Expenditure
BEIS,UKRI - Research England,17/11/2020,Research Grant Expenditure,RE- GCRF,Lancaster University,98846903,157947.75,Research Grant Expenditure
BEIS,UKRI - Research England,17/11/2020,Research Grant Expenditure,RE- GCRF,University of Leeds,98846904,318993.16,Research Grant Expenditure
BEIS,UKRI - Research England,17/11/2020,Research Grant Expenditure,RE- GCRF,Leeds Beckett University,98846905,17050.47,Research Grant Expenditure
BEIS,UKRI - Research England,17/11/2020,Research Grant Expenditure,RE- GCRF,University of Leicester,98846906,143677.81,Research Grant Expenditure
BEIS,UKRI - Research England,17/11/2020,Research Grant Expenditure,RE- GCRF,University of Lincoln,98846907,26629.32,Research Grant Expenditure
BEIS,UKRI - Research England,17/11/2020,Research Grant Expenditure,RE- GCRF,University of Liverpool,98846908,202666.82,Research Grant Expenditure
BEIS,UKRI - Research England,17/11/2020,Research Grant Expenditure,RE- GCRF,Liverpool Hope University,98846909,8568.19,Research Grant Expenditure
BEIS,UKRI - Research England,17/11/2020,Research Grant Expenditure,RE- GCRF,Liverpool John Moores University,98846910,45396.71,Research Grant Expenditure
BEIS,UKRI - Research England,17/11/2020,Research Grant Expenditure,RE- GCRF,Liverpool School of Tropical Medicine,98846911,10080.03,Research Grant Expenditure
BEIS,UKRI - Research England,17/11/2020,Research Grant Expenditure,RE- GCRF,University College London,98846912,938054.02,Research Grant Expenditure
BEIS,UKRI - Research England,17/11/2020,Research Grant Expenditure,RE- GCRF,London Business School,98846913,32249.97,Research Grant Expenditure
BEIS,UKRI - Research England,17/11/2020,Research Grant Expenditure,RE- GCRF,London School of Economics and Political Science,98846914,166910.86,Research Grant Expenditure
BEIS,UKRI - Research England,17/11/2020,Research Grant Expenditure,RE- GCRF,London School of Hygiene & Tropical Medicine,98846915,115119.55,Research Grant Expenditure
BEIS,UKRI - Research England,17/11/2020,Research Grant Expenditure,RE- GCRF,London South Bank University,98846916,13810.13,Research Grant Expenditure
BEIS,UKRI - Research England,17/11/2020,Research Grant Expenditure,RE- GCRF,Loughborough University,98846917,146915.50,Research Grant Expenditure
BEIS,UKRI - Research England,17/11/2020,Research Grant Expenditure,RE- GCRF,The University of Manchester,98846918,457559.61,Research Grant Expenditure
BEIS,UKRI - Research England,17/11/2020,Research Grant Expenditure,RE- GCRF,Manchester Metropolitan University,98846919,49015.25,Research Grant Expenditure
BEIS,UKRI - Research England,17/11/2020,Research Grant Expenditure,RE- GCRF,Newcastle University,98846920,242337.11,Research Grant Expenditure
BEIS,UKRI - Research England,17/11/2020,Research Grant Expenditure,RE- GCRF,University of Northampton,98846921,5622.14,Research Grant Expenditure
BEIS,UKRI - Research England,17/11/2020,Research Grant Expenditure,RE- GCRF,Northumbria University,98846922,55460.51,Research Grant Expenditure
BEIS,UKRI - Research England,17/11/2020,Research Grant Expenditure,RE- GCRF,Norwich University of the Arts,98846923,1202.49,Research Grant Expenditure
BEIS,UKRI - Research England,17/11/2020,Research Grant Expenditure,RE- GCRF,Nottingham Trent University,98846924,36238.11,Research Grant Expenditure
BEIS,UKRI - Research England,17/11/2020,Research Grant Expenditure,RE- GCRF,University of Nottingham,98846925,376508.57,Research Grant Expenditure
BEIS,UKRI - Research England,17/11/2020,Research Grant Expenditure,RE- GCRF,Open University,98846926,77685.07,Research Grant Expenditure
BEIS,UKRI - Research England,17/11/2020,Research Grant Expenditure,RE- GCRF,"SOAS, University of London",98846927,40920.94,Research Grant Expenditure
BEIS,UKRI - Research England,17/11/2020,Research Grant Expenditure,RE- GCRF,University of Oxford,98846928,850309.94,Research Grant Expenditure
BEIS,UKRI - Research England,17/11/2020,Research Grant Expenditure,RE- GCRF,Oxford Brookes University,98846929,41069.24,Research Grant Expenditure
BEIS,UKRI - Research England,17/11/2020,Research Grant Expenditure,RE- GCRF,University of Plymouth,98846930,68364.77,Research Grant Expenditure
BEIS,UKRI - Research England,17/11/2020,Research Grant Expenditure,RE- GCRF,University of Portsmouth,98846931,47859.28,Research Grant Expenditure
BEIS,UKRI - Research England,17/11/2020,Research Grant Expenditure,RE- GCRF,Queen Mary University of London,98846932,223444.09,Research Grant Expenditure
BEIS,UKRI - Research England,17/11/2020,Research Grant Expenditure,RE- GCRF,University of Reading,98846933,144539.99,Research Grant Expenditure
BEIS,UKRI - Research England,17/11/2020,Research Grant Expenditure,RE- GCRF,Roehampton University (University of Roehampton),98846934,29695.03,Research Grant Expenditure
BEIS,UKRI - Research England,17/11/2020,Research Grant Expenditure,RE- GCRF,The Royal Central School of Speech and Drama,98846935,6254.75,Research Grant Expenditure
BEIS,UKRI - Research England,17/11/2020,Research Grant Expenditure,RE- GCRF,Royal College of Art,98846936,17353.21,Research Grant Expenditure
BEIS,UKRI - Research England,17/11/2020,Research Grant Expenditure,RE- GCRF,Royal College of Music,98846937,4028.87,Research Grant Expenditure
BEIS,UKRI - Research England,17/11/2020,Research Grant Expenditure,RE- GCRF,Royal Holloway & Bedford New C,98846938,103115.38,Research Grant Expenditure
BEIS,UKRI - Research England,17/11/2020,Research Grant Expenditure,RE- GCRF,Royal Veterinary College,98846939,34870.94,Research Grant Expenditure
BEIS,UKRI - Research England,17/11/2020,Research Grant Expenditure,RE- GCRF,University of Salford,98846940,30907.78,Research Grant Expenditure
BEIS,UKRI - Research England,17/11/2020,Research Grant Expenditure,RE- GCRF,University of Sheffield,98846941,311056.75,Research Grant Expenditure
BEIS,UKRI - Research England,17/11/2020,Research Grant Expenditure,RE- GCRF,Sheffield Hallam University,98846942,38706.65,Research Grant Expenditure
BEIS,UKRI - Research England,17/11/2020,Research Grant Expenditure,RE- GCRF,Solent University Ltd,98846943,1502.07,Research Grant Expenditure
BEIS,UKRI - Research England,17/11/2020,Research Grant Expenditure,RE- GCRF,University of Southampton,98846944,346808.57,Research Grant Expenditure
BEIS,UKRI - Research England,17/11/2020,Research Grant Expenditure,RE- GCRF,St Marys University,98846945,3907.54,Research Grant Expenditure
BEIS,UKRI - Research England,17/11/2020,Research Grant Expenditure,RE- GCRF,St George's University of London,98846946,17390.78,Research Grant Expenditure
BEIS,UKRI - Research England,17/11/2020,Research Grant Expenditure,RE- GCRF,Staffordshire University,98846947,6468.10,Research Grant Expenditure
BEIS,UKRI - Research England,17/11/2020,Research Grant Expenditure,RE- GCRF,University of Sunderland,98846948,10888.58,Research Grant Expenditure
BEIS,UKRI - Research England,17/11/2020,Research Grant Expenditure,RE- GCRF,University of Surrey,98846949,113685.34,Research Grant Expenditure
BEIS,UKRI - Research England,17/11/2020,Research Grant Expenditure,RE- GCRF,University of Sussex,98846950,114060.56,Research Grant Expenditure
BEIS,UKRI - Research England,17/11/2020,Research Grant Expenditure,RE- GCRF,Teesside University,98846951,11211.18,Research Grant Expenditure
BEIS,UKRI - Research England,17/11/2020,Research Grant Expenditure,RE- GCRF,University of Warwick,98846952,280981.52,Research Grant Expenditure
BEIS,UKRI - Research England,17/11/2020,Research Grant Expenditure,RE- GCRF,University of the West of England,98846953,45831.02,Research Grant Expenditure
BEIS,UKRI - Research England,17/11/2020,Research Grant Expenditure,RE- GCRF,University of Westminster,98846954,39291.42,Research Grant Expenditure
BEIS,UKRI - Research England,17/11/2020,Research Grant Expenditure,RE- GCRF,University of Winchester,98846955,6313.67,Research Grant Expenditure
BEIS,UKRI - Research England,17/11/2020,Research Grant Expenditure,RE- GCRF,University of Wolverhampton,98846956,16572.63,Research Grant Expenditure
BEIS,UKRI - Research England,17/11/2020,Research Grant Expenditure,RE- GCRF,University of Worcester,98846957,7557.04,Research Grant Expenditure
BEIS,UKRI - Research England,17/11/2020,Research Grant Expenditure,RE- GCRF,University of York,98846958,180826.60,Research Grant Expenditure
BEIS,UKRI - Research England,17/11/2020,Research Grant Expenditure,RE- HEIF,Anglia Ruskin University,98846959,422763.30,Research Grant Expenditure
BEIS,UKRI - Research England,17/11/2020,Research Grant Expenditure,RE- HEIF,University of the Arts London,98846960,548072.33,Research Grant Expenditure
BEIS,UKRI - Research England,17/11/2020,Research Grant Expenditure,RE- HEIF,Aston University,98846961,217525.15,Research Grant Expenditure
BEIS,UKRI - Research England,17/11/2020,Research Grant Expenditure,RE- HEIF,University of Bath,98846962,218836.87,Research Grant Expenditure
BEIS,UKRI - Research England,17/11/2020,Research Grant Expenditure,RE- HEIF,University of Bedfordshire,98846963,92102.35,Research Grant Expenditure
BEIS,UKRI - Research England,17/11/2020,Research Grant Expenditure,RE- HEIF,University of Birmingham,98846964,641190.00,Research Grant Expenditure
BEIS,UKRI - Research England,17/11/2020,Research Grant Expenditure,RE- HEIF,Birmingham City University,98846965,145636.43,Research Grant Expenditure
BEIS,UKRI - Research England,17/11/2020,Research Grant Expenditure,RE- HEIF,Bournemouth University,98846966,79804.24,Research Grant Expenditure
BEIS,UKRI - Research England,17/11/2020,Research Grant Expenditure,RE- HEIF,University of Bradford,98846967,93613.87,Research Grant Expenditure
BEIS,UKRI - Research England,17/11/2020,Research Grant Expenditure,RE- HEIF,University of Brighton,98846968,176572.87,Research Grant Expenditure
BEIS,UKRI - Research England,17/11/2020,Research Grant Expenditure,RE- HEIF,University of Bristol,98846969,641190.00,Research Grant Expenditure
BEIS,UKRI - Research England,17/11/2020,Research Grant Expenditure,RE- HEIF,Brunel University London,98846970,168377.30,Research Grant Expenditure
BEIS,UKRI - Research England,17/11/2020,Research Grant Expenditure,RE- HEIF,Buckinghamshire New University (Bucks New University),98846971,37800.06,Research Grant Expenditure
BEIS,UKRI - Research England,17/11/2020,Research Grant Expenditure,RE- HEIF,University of Cambridge,98846972,641190.00,Research Grant Expenditure
BEIS,UKRI - Research England,17/11/2020,Research Grant Expenditure,RE- HEIF,Canterbury Christ Church University,98846973,81996.74,Research Grant Expenditure
BEIS,UKRI - Research England,17/11/2020,Research Grant Expenditure,RE- HEIF,University of Central Lancashire,98846974,376811.62,Research Grant Expenditure
BEIS,UKRI - Research England,17/11/2020,Research Grant Expenditure,RE- HEIF,University of Chester,98846975,143366.33,Research Grant Expenditure
BEIS,UKRI - Research England,17/11/2020,Research Grant Expenditure,RE- HEIF,University of Chichester,98846976,39984.26,Research Grant Expenditure
BEIS,UKRI - Research England,17/11/2020,Research Grant Expenditure,RE- HEIF,"City, University of London",98846977,272330.75,Research Grant Expenditure
BEIS,UKRI - Research England,17/11/2020,Research Grant Expenditure,RE- HEIF,The Conservatoire for Dance and Drama,98846978,66797.53,Research Grant Expenditure
BEIS,UKRI - Research England,17/11/2020,Research Grant Expenditure,RE- HEIF,Coventry University,98846979,359549.07,Research Grant Expenditure
BEIS,UKRI - Research England,17/11/2020,Research Grant Expenditure,RE- HEIF,Cranfield University,98846980,611073.10,Research Grant Expenditure
BEIS,UKRI - Research England,17/11/2020,Research Grant Expenditure,RE- HEIF,De Montfort University,98846981,122291.75,Research Grant Expenditure
BEIS,UKRI - Research England,17/11/2020,Research Grant Expenditure,RE- HEIF,University of Derby,98846982,163445.29,Research Grant Expenditure
BEIS,UKRI - Research England,17/11/2020,Research Grant Expenditure,RE- HEIF,University of Durham,98846983,423950.00,Research Grant Expenditure
BEIS,UKRI - Research England,17/11/2020,Research Grant Expenditure,RE- HEIF,University of East Anglia,98846984,414069.11,Research Grant Expenditure
BEIS,UKRI - Research England,17/11/2020,Research Grant Expenditure,RE- HEIF,University of East London,98846985,40355.04,Research Grant Expenditure
BEIS,UKRI - Research England,17/11/2020,Research Grant Expenditure,RE- HEIF,Edge Hill University College,98846986,35728.69,Research Grant Expenditure
BEIS,UKRI - Research England,17/11/2020,Research Grant Expenditure,RE- HEIF,University of Essex,98846987,462004.40,Research Grant Expenditure
BEIS,UKRI - Research England,17/11/2020,Research Grant Expenditure,RE- HEIF,University of Exeter,98846988,607042.65,Research Grant Expenditure
BEIS,UKRI - Research England,17/11/2020,Research Grant Expenditure,RE- HEIF,Falmouth University,98846989,37848.03,Research Grant Expenditure
BEIS,UKRI - Research England,17/11/2020,Research Grant Expenditure,RE- HEIF,University of Gloucestershire,98846990,74155.06,Research Grant Expenditure
BEIS,UKRI - Research England,17/11/2020,Research Grant Expenditure,RE- HEIF,Goldsmiths College University of London,98846991,80330.45,Research Grant Expenditure
BEIS,UKRI - Research England,17/11/2020,Research Grant Expenditure,RE- HEIF,University of Greenwich,98846992,297722.00,Research Grant Expenditure
BEIS,UKRI - Research England,17/11/2020,Research Grant Expenditure,RE- HEIF,Guildhall School of Music & Drama,98846993,80417.69,Research Grant Expenditure
BEIS,UKRI - Research England,17/11/2020,Research Grant Expenditure,RE- HEIF,Harper Adams University College,98846994,62675.15,Research Grant Expenditure
BEIS,UKRI - Research England,17/11/2020,Research Grant Expenditure,RE- HEIF,Hartpury University,98846995,39443.17,Research Grant Expenditure
BEIS,UKRI - Research England,17/11/2020,Research Grant Expenditure,RE- HEIF,University of Hertfordshire,98846996,496183.51,Research Grant Expenditure
BEIS,UKRI - Research England,17/11/2020,Research Grant Expenditure,RE- HEIF,University of Huddersfield,98846997,190401.67,Research Grant Expenditure
BEIS,UKRI - Research England,17/11/2020,Research Grant Expenditure,RE- HEIF,University of Hull,98846998,192100.39,Research Grant Expenditure
BEIS,UKRI - Research England,17/11/2020,Research Grant Expenditure,RE- HEIF,Imperial College Science Tech & Med,98846999,641190.00,Research Grant Expenditure
BEIS,UKRI - Research England,17/11/2020,Research Grant Expenditure,RE- HEIF,Institute of Cancer Research,98847000,453207.97,Research Grant Expenditure
BEIS,UKRI - Research England,17/11/2020,Research Grant Expenditure,RE- HEIF,Keele University,98847001,205428.43,Research Grant Expenditure
BEIS,UKRI - Research England,17/11/2020,Research Grant Expenditure,RE- HEIF,University of Kent,98847002,208569.93,Research Grant Expenditure
BEIS,UKRI - Research England,17/11/2020,Research Grant Expenditure,RE- HEIF,King's College London,98847003,641190.00,Research Grant Expenditure
BEIS,UKRI - Research England,17/11/2020,Research Grant Expenditure,RE- HEIF,Kingston University,98847004,64771.71,Research Grant Expenditure
BEIS,UKRI - Research England,17/11/2020,Research Grant Expenditure,RE- HEIF,Lamda Ltd (London Academy of Music & Dramatic Art),98847005,207806.80,Research Grant Expenditure
BEIS,UKRI - Research England,17/11/2020,Research Grant Expenditure,RE- HEIF,Lancaster University,98847006,517294.54,Research Grant Expenditure
BEIS,UKRI - Research England,17/11/2020,Research Grant Expenditure,RE- HEIF,University of Leeds,98847007,641190.00,Research Grant Expenditure
BEIS,UKRI - Research England,17/11/2020,Research Grant Expenditure,RE- HEIF,Leeds Beckett University,98847008,400160.18,Research Grant Expenditure
BEIS,UKRI - Research England,17/11/2020,Research Grant Expenditure,RE- HEIF,University of Leicester,98847009,613856.14,Research Grant Expenditure
BEIS,UKRI - Research England,17/11/2020,Research Grant Expenditure,RE- HEIF,University of Lincoln,98847010,187174.95,Research Grant Expenditure
BEIS,UKRI - Research England,17/11/2020,Research Grant Expenditure,RE- HEIF,University of Liverpool,98847011,635308.74,Research Grant Expenditure
BEIS,UKRI - Research England,17/11/2020,Research Grant Expenditure,RE- HEIF,Liverpool Hope University,98847012,57894.57,Research Grant Expenditure
BEIS,UKRI - Research England,17/11/2020,Research Grant Expenditure,RE- HEIF,Liverpool John Moores University,98847013,167471.59,Research Grant Expenditure
BEIS,UKRI - Research England,17/11/2020,Research Grant Expenditure,RE- HEIF,Liverpool School of Tropical Medicine,98847014,483153.75,Research Grant Expenditure
BEIS,UKRI - Research England,17/11/2020,Research Grant Expenditure,RE- HEIF,University College London,98847015,641190.00,Research Grant Expenditure
BEIS,UKRI - Research England,17/11/2020,Research Grant Expenditure,RE- HEIF,London Business School,98847016,622836.42,Research Grant Expenditure
BEIS,UKRI - Research England,17/11/2020,Research Grant Expenditure,RE- HEIF,London Metropolitan University,98847017,110052.86,Research Grant Expenditure
BEIS,UKRI - Research England,17/11/2020,Research Grant Expenditure,RE- HEIF,London School of Economics and Political Science,98847018,634195.47,Research Grant Expenditure
BEIS,UKRI - Research England,17/11/2020,Research Grant Expenditure,RE- HEIF,London School of Hygiene & Tropical Medicine,98847019,249023.32,Research Grant Expenditure
BEIS,UKRI - Research England,17/11/2020,Research Grant Expenditure,RE- HEIF,London South Bank University,98847020,96117.66,Research Grant Expenditure
BEIS,UKRI - Research England,17/11/2020,Research Grant Expenditure,RE- HEIF,Loughborough University,98847021,609263.43,Research Grant Expenditure
BEIS,UKRI - Research England,17/11/2020,Research Grant Expenditure,RE- HEIF,The University of Manchester,98847022,641190.00,Research Grant Expenditure
BEIS,UKRI - Research England,17/11/2020,Research Grant Expenditure,RE- HEIF,Manchester Metropolitan University,98847023,151091.83,Research Grant Expenditure
BEIS,UKRI - Research England,17/11/2020,Research Grant Expenditure,RE- HEIF,Middlesex University,98847024,275635.86,Research Grant Expenditure
BEIS,UKRI - Research England,17/11/2020,Research Grant Expenditure,RE- HEIF,The National Film & Television School,98847025,37159.27,Research Grant Expenditure
BEIS,UKRI - Research England,17/11/2020,Research Grant Expenditure,RE- HEIF,Newcastle University,98847026,629568.05,Research Grant Expenditure
BEIS,UKRI - Research England,17/11/2020,Research Grant Expenditure,RE- HEIF,University of Northampton,98847027,104487.17,Research Grant Expenditure
BEIS,UKRI - Research England,17/11/2020,Research Grant Expenditure,RE- HEIF,Northumbria University,98847028,97288.02,Research Grant Expenditure
BEIS,UKRI - Research England,17/11/2020,Research Grant Expenditure,RE- HEIF,Nottingham Trent University,98847029,280808.12,Research Grant Expenditure
BEIS,UKRI - Research England,17/11/2020,Research Grant Expenditure,RE- HEIF,University of Nottingham,98847030,641190.00,Research Grant Expenditure
BEIS,UKRI - Research England,17/11/2020,Research Grant Expenditure,RE- HEIF,Open University,98847031,146863.20,Research Grant Expenditure
BEIS,UKRI - Research England,17/11/2020,Research Grant Expenditure,RE- HEIF,"SOAS, University of London",98847032,80464.05,Research Grant Expenditure
BEIS,UKRI - Research England,17/11/2020,Research Grant Expenditure,RE- HEIF,University of Oxford,98847033,641190.00,Research Grant Expenditure
BEIS,UKRI - Research England,17/11/2020,Research Grant Expenditure,RE- HEIF,Oxford Brookes University,98847034,187068.82,Research Grant Expenditure
BEIS,UKRI - Research England,17/11/2020,Research Grant Expenditure,RE- HEIF,University of Plymouth,98847035,289092.67,Research Grant Expenditure
BEIS,UKRI - Research England,17/11/2020,Research Grant Expenditure,RE- HEIF,University of Portsmouth,98847036,289908.60,Research Grant Expenditure
BEIS,UKRI - Research England,17/11/2020,Research Grant Expenditure,RE- HEIF,Queen Mary University of London,98847037,613615.88,Research Grant Expenditure
BEIS,UKRI - Research England,17/11/2020,Research Grant Expenditure,RE- HEIF,University of Reading,98847038,419385.03,Research Grant Expenditure
BEIS,UKRI - Research England,17/11/2020,Research Grant Expenditure,RE- HEIF,Roehampton University (University of Roehampton),98847039,74171.14,Research Grant Expenditure
BEIS,UKRI - Research England,17/11/2020,Research Grant Expenditure,RE- HEIF,Royal Academy of Dramatic Arts,98847040,107010.79,Research Grant Expenditure
BEIS,UKRI - Research England,17/11/2020,Research Grant Expenditure,RE- HEIF,Royal Agricultural University,98847041,33603.98,Research Grant Expenditure
BEIS,UKRI - Research England,17/11/2020,Research Grant Expenditure,RE- HEIF,Royal College of Art,98847042,57529.55,Research Grant Expenditure
BEIS,UKRI - Research England,17/11/2020,Research Grant Expenditure,RE- HEIF,Royal College of Music,98847043,38581.15,Research Grant Expenditure
BEIS,UKRI - Research England,17/11/2020,Research Grant Expenditure,RE- HEIF,Royal Holloway & Bedford New C,98847044,113991.12,Research Grant Expenditure
BEIS,UKRI - Research England,17/11/2020,Research Grant Expenditure,RE- HEIF,Royal Northern College of Music,98847045,53193.98,Research Grant Expenditure
BEIS,UKRI - Research England,17/11/2020,Research Grant Expenditure,RE- HEIF,Royal Veterinary College,98847046,278447.58,Research Grant Expenditure
BEIS,UKRI - Research England,17/11/2020,Research Grant Expenditure,RE- HEIF,University of Salford,98847047,224884.70,Research Grant Expenditure
BEIS,UKRI - Research England,17/11/2020,Research Grant Expenditure,RE- HEIF,University of Sheffield,98847048,641190.00,Research Grant Expenditure
BEIS,UKRI - Research England,17/11/2020,Research Grant Expenditure,RE- HEIF,Sheffield Hallam University,98847049,163283.02,Research Grant Expenditure
BEIS,UKRI - Research England,17/11/2020,Research Grant Expenditure,RE- HEIF,Solent University Ltd,98847050,209362.94,Research Grant Expenditure
BEIS,UKRI - Research England,17/11/2020,Research Grant Expenditure,RE- HEIF,University of Southampton,98847051,641190.00,Research Grant Expenditure
BEIS,UKRI - Research England,17/11/2020,Research Grant Expenditure,RE- HEIF,St Marys University,98847052,66878.33,Research Grant Expenditure
BEIS,UKRI - Research England,17/11/2020,Research Grant Expenditure,RE- HEIF,St George's University of London,98847053,88811.85,Research Grant Expenditure
BEIS,UKRI - Research England,17/11/2020,Research Grant Expenditure,RE- HEIF,Staffordshire University,98847054,143671.45,Research Grant Expenditure
BEIS,UKRI - Research England,17/11/2020,Research Grant Expenditure,RE- HEIF,University of Sunderland,98847055,96987.73,Research Grant Expenditure
BEIS,UKRI - Research England,17/11/2020,Research Grant Expenditure,RE- HEIF,University of Surrey,98847056,612474.74,Research Grant Expenditure
BEIS,UKRI - Research England,17/11/2020,Research Grant Expenditure,RE- HEIF,University of Sussex,98847057,471086.65,Research Grant Expenditure
BEIS,UKRI - Research England,17/11/2020,Research Grant Expenditure,RE- HEIF,Teesside University,98847058,162512.92,Research Grant Expenditure
BEIS,UKRI - Research England,17/11/2020,Research Grant Expenditure,RE- HEIF,Trinity Laban Conservatoire of Music and Dance,98847059,62182.57,Research Grant Expenditure
BEIS,UKRI - Research England,17/11/2020,Research Grant Expenditure,RE- HEIF,University of Warwick,98847060,623646.18,Research Grant Expenditure
BEIS,UKRI - Research England,17/11/2020,Research Grant Expenditure,RE- HEIF,University of West London,98847061,62364.94,Research Grant Expenditure
BEIS,UKRI - Research England,17/11/2020,Research Grant Expenditure,RE- HEIF,University of the West of England,98847062,260179.76,Research Grant Expenditure
BEIS,UKRI - Research England,17/11/2020,Research Grant Expenditure,RE- HEIF,University of Westminster,98847063,129251.04,Research Grant Expenditure
BEIS,UKRI - Research England,17/11/2020,Research Grant Expenditure,RE- HEIF,University of Winchester,98847064,34828.88,Research Grant Expenditure
BEIS,UKRI - Research England,17/11/2020,Research Grant Expenditure,RE- HEIF,University of Wolverhampton,98847065,181224.41,Research Grant Expenditure
BEIS,UKRI - Research England,17/11/2020,Research Grant Expenditure,RE- HEIF,University of Worcester,98847066,62956.42,Research Grant Expenditure
BEIS,UKRI - Research England,17/11/2020,Research Grant Expenditure,RE- HEIF,University of York,98847067,613399.34,Research Grant Expenditure
BEIS,UKRI - Research England,17/11/2020,Research Grant Expenditure,RE - JISC,JISC,98847068,1600000.00,Research Grant Expenditure
BEIS,UKRI - Research England,17/11/2020,Capital Grants & Equipment to HEIs,RE - JISC,JISC,98847069,2000000.00,Capital Grants & Equipment to HEIs
BEIS,UKRI - Research England,17/11/2020,Research Grant Expenditure,"RE - Museums, Galleries and Collections",Arts University Bournemouth,98847070,6385.42,Research Grant Expenditure
BEIS,UKRI - Research England,17/11/2020,Research Grant Expenditure,"RE - Museums, Galleries and Collections",University of Durham,98847071,6666.67,Research Grant Expenditure
BEIS,UKRI - Research England,17/11/2020,Research Grant Expenditure,"RE - Museums, Galleries and Collections",London School of Economics and Political Science,98847072,3750.00,Research Grant Expenditure
BEIS,UKRI - Research England,17/11/2020,Research Grant Expenditure,"RE - Museums, Galleries and Collections",Royal Academy of Music,98847073,12500.00,Research Grant Expenditure
BEIS,UKRI - Research England,17/11/2020,Research Grant Expenditure,"RE - Museums, Galleries and Collections",Courtauld Institute of Art,98847074,80416.67,Research Grant Expenditure
BEIS,UKRI - Research England,17/11/2020,Research Grant Expenditure,"RE - Museums, Galleries and Collections",University College London,98847075,25916.67,Research Grant Expenditure
BEIS,UKRI - Research England,17/11/2020,Research Grant Expenditure,"RE - Museums, Galleries and Collections",University of Birmingham,98847076,17500.00,Research Grant Expenditure
BEIS,UKRI - Research England,17/11/2020,Research Grant Expenditure,"RE - Museums, Galleries and Collections",University of Brighton,98847077,5000.00,Research Grant Expenditure
BEIS,UKRI - Research England,17/11/2020,Research Grant Expenditure,"RE - Museums, Galleries and Collections",University of Bristol,98847078,5833.33,Research Grant Expenditure
BEIS,UKRI - Research England,17/11/2020,Research Grant Expenditure,"RE - Museums, Galleries and Collections",University of Cambridge,98847079,176333.33,Research Grant Expenditure
BEIS,UKRI - Research England,17/11/2020,Research Grant Expenditure,"RE - Museums, Galleries and Collections",University of East Anglia,98847080,20833.33,Research Grant Expenditure
BEIS,UKRI - Research England,17/11/2020,Research Grant Expenditure,"RE - Museums, Galleries and Collections",University of Leeds,98847081,4166.67,Research Grant Expenditure
BEIS,UKRI - Research England,17/11/2020,Research Grant Expenditure,"RE - Museums, Galleries and Collections",The University of Manchester,98847082,172500.00,Research Grant Expenditure
BEIS,UKRI - Research England,17/11/2020,Research Grant Expenditure,"RE - Museums, Galleries and Collections",Newcastle University,98847083,16666.67,Research Grant Expenditure
BEIS,UKRI - Research England,17/11/2020,Research Grant Expenditure,"RE - Museums, Galleries and Collections",University of Oxford,98847084,296666.67,Research Grant Expenditure
BEIS,UKRI - Research England,17/11/2020,Research Grant Expenditure,"RE - Museums, Galleries and Collections",University of Reading,98847085,25000.00,Research Grant Expenditure
BEIS,UKRI - Research England,17/11/2020,Research Grant Expenditure,"RE - Museums, Galleries and Collections",University of the Arts London,98847086,3333.33,Research Grant Expenditure
BEIS,UKRI - Research England,17/11/2020,Research Grant Expenditure,"RE - Museums, Galleries and Collections",University for the Creative Arts,98847087,5833.33,Research Grant Expenditure
BEIS,UKRI - Research England,17/11/2020,Research Grant Expenditure,"RE - Museums, Galleries and Collections",University of York,98847088,6666.67,Research Grant Expenditure
BEIS,UKRI - Research England,17/11/2020,Research Grant Expenditure,RE- Quality Research (QR),AECC University College,98847089,315.85,Research Grant Expenditure
BEIS,UKRI - Research England,17/11/2020,Research Grant Expenditure,RE- Quality Research (QR),Anglia Ruskin University,98847090,252040.90,Research Grant Expenditure
BEIS,UKRI - Research England,17/11/2020,Research Grant Expenditure,RE- Quality Research (QR),Arts University Bournemouth,98847091,13509.96,Research Grant Expenditure
BEIS,UKRI - Research England,17/11/2020,Research Grant Expenditure,RE- Quality Research (QR),University of the Arts London,98847092,359626.05,Research Grant Expenditure
BEIS,UKRI - Research England,17/11/2020,Research Grant Expenditure,RE- Quality Research (QR),Aston University,98847093,638638.12,Research Grant Expenditure
BEIS,UKRI - Research England,17/11/2020,Research Grant Expenditure,RE- Quality Research (QR),University of Bath,98847094,1823905.41,Research Grant Expenditure
BEIS,UKRI - Research England,17/11/2020,Research Grant Expenditure,RE- Quality Research (QR),Bath Spa University,98847095,109904.62,Research Grant Expenditure
BEIS,UKRI - Research England,17/11/2020,Research Grant Expenditure,RE- Quality Research (QR),University of Bedfordshire,98847096,238798.86,Research Grant Expenditure
BEIS,UKRI - Research England,17/11/2020,Research Grant Expenditure,RE- Quality Research (QR),Birkbeck College,98847097,1023989.27,Research Grant Expenditure
BEIS,UKRI - Research England,17/11/2020,Research Grant Expenditure,RE- Quality Research (QR),University of Birmingham,98847098,4194616.61,Research Grant Expenditure
BEIS,UKRI - Research England,17/11/2020,Research Grant Expenditure,RE- Quality Research (QR),Birmingham City University,98847099,249070.38,Research Grant Expenditure
BEIS,UKRI - Research England,17/11/2020,Research Grant Expenditure,RE- Quality Research (QR),"Bishop Grosseteste University College, Lincoln",98847100,9260.13,Research Grant Expenditure
BEIS,UKRI - Research England,17/11/2020,Research Grant Expenditure,RE- Quality Research (QR),University of Bolton,98847101,49236.83,Research Grant Expenditure
BEIS,UKRI - Research England,17/11/2020,Research Grant Expenditure,RE- Quality Research (QR),Bournemouth University,98847102,328591.91,Research Grant Expenditure
BEIS,UKRI - Research England,17/11/2020,Research Grant Expenditure,RE- Quality Research (QR),University of Bradford,98847103,382734.08,Research Grant Expenditure
BEIS,UKRI - Research England,17/11/2020,Research Grant Expenditure,RE- Quality Research (QR),University of Brighton,98847104,505993.71,Research Grant Expenditure
BEIS,UKRI - Research England,17/11/2020,Research Grant Expenditure,RE- Quality Research (QR),University of Bristol,98847105,4851262.87,Research Grant Expenditure
BEIS,UKRI - Research England,17/11/2020,Research Grant Expenditure,RE- Quality Research (QR),Brunel University London,98847106,1159201.71,Research Grant Expenditure
BEIS,UKRI - Research England,17/11/2020,Research Grant Expenditure,RE- Quality Research (QR),Buckinghamshire New University (Bucks New University),98847107,23022.10,Research Grant Expenditure
BEIS,UKRI - Research England,17/11/2020,Research Grant Expenditure,RE- Quality Research (QR),University of Cambridge,98847108,12800719.23,Research Grant Expenditure
BEIS,UKRI - Research England,17/11/2020,Research Grant Expenditure,RE- Quality Research (QR),Canterbury Christ Church University,98847109,233568.06,Research Grant Expenditure
BEIS,UKRI - Research England,17/11/2020,Research Grant Expenditure,RE- Quality Research (QR),University of Central Lancashire,98847110,393681.57,Research Grant Expenditure
BEIS,UKRI - Research England,17/11/2020,Research Grant Expenditure,RE- Quality Research (QR),University of Chester,98847111,152729.33,Research Grant Expenditure
BEIS,UKRI - Research England,17/11/2020,Research Grant Expenditure,RE- Quality Research (QR),University of Chichester,98847112,88808.72,Research Grant Expenditure
BEIS,UKRI - Research England,17/11/2020,Research Grant Expenditure,RE- Quality Research (QR),"City, University of London",98847113,1062829.65,Research Grant Expenditure
BEIS,UKRI - Research England,17/11/2020,Research Grant Expenditure,RE- Quality Research (QR),Courtauld Institute of Art,98847114,157227.31,Research Grant Expenditure
BEIS,UKRI - Research England,17/11/2020,Research Grant Expenditure,RE- Quality Research (QR),Coventry University,98847115,355350.49,Research Grant Expenditure
BEIS,UKRI - Research England,17/11/2020,Research Grant Expenditure,RE- Quality Research (QR),Cranfield University,98847116,1043550.41,Research Grant Expenditure
BEIS,UKRI - Research England,17/11/2020,Research Grant Expenditure,RE- Quality Research (QR),University for the Creative Arts,98847117,41679.97,Research Grant Expenditure
BEIS,UKRI - Research England,17/11/2020,Research Grant Expenditure,RE- Quality Research (QR),University of Cumbria,98847118,24782.93,Research Grant Expenditure
BEIS,UKRI - Research England,17/11/2020,Research Grant Expenditure,RE- Quality Research (QR),De Montfort University,98847119,379466.96,Research Grant Expenditure
BEIS,UKRI - Research England,17/11/2020,Research Grant Expenditure,RE- Quality Research (QR),University of Derby,98847120,102680.22,Research Grant Expenditure
BEIS,UKRI - Research England,17/11/2020,Research Grant Expenditure,RE- Quality Research (QR),University of Durham,98847121,2521811.53,Research Grant Expenditure
BEIS,UKRI - Research England,17/11/2020,Research Grant Expenditure,RE- Quality Research (QR),University of East Anglia,98847122,1698039.64,Research Grant Expenditure
BEIS,UKRI - Research England,17/11/2020,Research Grant Expenditure,RE- Quality Research (QR),University of East London,98847123,292839.50,Research Grant Expenditure
BEIS,UKRI - Research England,17/11/2020,Research Grant Expenditure,RE- Quality Research (QR),Edge Hill University College,98847124,142565.62,Research Grant Expenditure
BEIS,UKRI - Research England,17/11/2020,Research Grant Expenditure,RE- Quality Research (QR),University of Essex,98847125,895442.59,Research Grant Expenditure
BEIS,UKRI - Research England,17/11/2020,Research Grant Expenditure,RE- Quality Research (QR),University of Exeter,98847126,2575621.02,Research Grant Expenditure
BEIS,UKRI - Research England,17/11/2020,Research Grant Expenditure,RE- Quality Research (QR),Falmouth University,98847127,40751.48,Research Grant Expenditure
BEIS,UKRI - Research England,17/11/2020,Research Grant Expenditure,RE- Quality Research (QR),University of Gloucestershire,98847128,75835.21,Research Grant Expenditure
BEIS,UKRI - Research England,17/11/2020,Research Grant Expenditure,RE- Quality Research (QR),St George's University of London,98847129,267278.25,Research Grant Expenditure
BEIS,UKRI - Research England,17/11/2020,Research Grant Expenditure,RE- Quality Research (QR),Staffordshire University,98847130,89781.70,Research Grant Expenditure
BEIS,UKRI - Research England,17/11/2020,Research Grant Expenditure,RE- Quality Research (QR),University of Suffolk Ltd,98847131,493.89,Research Grant Expenditure
BEIS,UKRI - Research England,17/11/2020,Research Grant Expenditure,RE- Quality Research (QR),University of Sunderland,98847132,141635.71,Research Grant Expenditure
